Ref No.,Fund Type,Dept,Cost Centre Description    ,Description    ,Creditor Name    ,GL Code Net Amount,Payment date        
2,Revenue,CCHD,Bed purchasing - Under 65s PWLD - North,Residential Homes,.,6873.04, 27-Nov-2012
3,Revenue,CCHD,Frenchay Hospital Purchasing,Residential Homes,.,2898, 27-Nov-2012
4,Revenue,CCHD,Supporting People Programme,Grants to Voluntary Bodies,1625 Independent People,17214.75, 01-Nov-2012
5,Revenue,CCHD,Supporting People Programme,Grants to Voluntary Bodies,1625 Independent People,17214.75, 30-Nov-2012
6,Revenue,CCHD,Home Care - Elderly - South,Other Small Contracts,3 Trees Community Support Ltd,94.56, 09-Nov-2012
7,Revenue,CCHD,Home Care - Elderly - North,Other Small Contracts,3 Trees Community Support Ltd,1623.28, 09-Nov-2012
8,Revenue,CCHD,Day Care - North,Private & Voluntary Day Care,3 Trees Community Support Ltd,98.5, 09-Nov-2012
9,Revenue,CCHD,Home Care - LD Under 65 - South,Private & Voluntary Home Care,3 Trees Community Support Ltd,110.32, 09-Nov-2012
10,Revenue,CCHD,PWLD Home Care - Under 65 - KH,Private & Voluntary Home Care,3 Trees Community Support Ltd,287.62, 09-Nov-2012
11,Revenue,CCHD,Home Care - Elderly - South,Other Small Contracts,3 Trees Community Support Ltd,94.56, 14-Nov-2012
12,Revenue,CCHD,Home Care - Elderly - North,Other Small Contracts,3 Trees Community Support Ltd,1607.52, 14-Nov-2012
13,Revenue,CCHD,Day Care - North,Private & Voluntary Day Care,3 Trees Community Support Ltd,94.56, 14-Nov-2012
14,Revenue,CCHD,Home Care - LD Under 65 - South,Private & Voluntary Home Care,3 Trees Community Support Ltd,110.32, 14-Nov-2012
15,Revenue,CCHD,PWLD Home Care - Under 65 - KH,Private & Voluntary Home Care,3 Trees Community Support Ltd,260.04, 14-Nov-2012
16,Revenue,CCHD,Home Care - Elderly - South,Other Small Contracts,3 Trees Community Support Ltd,94.56, 26-Nov-2012
17,Revenue,CCHD,Home Care - Elderly - North,Other Small Contracts,3 Trees Community Support Ltd,1623.28, 26-Nov-2012
18,Revenue,CCHD,Day Care - North,Private & Voluntary Day Care,3 Trees Community Support Ltd,90.62, 26-Nov-2012
19,Revenue,CCHD,Home Care - LD Under 65 - South,Private & Voluntary Home Care,3 Trees Community Support Ltd,110.32, 26-Nov-2012
20,Revenue,CCHD,PWLD Home Care - Under 65 - KH,Private & Voluntary Home Care,3 Trees Community Support Ltd,271.86, 26-Nov-2012
21,Revenue,CCHD,Home Care - Elderly - South,Other Small Contracts,3 Trees Community Support Ltd,94.56, 28-Nov-2012
22,Revenue,CCHD,Home Care - Elderly - North,Other Small Contracts,3 Trees Community Support Ltd,1607.52, 28-Nov-2012
23,Revenue,CCHD,Day Care - North,Private & Voluntary Day Care,3 Trees Community Support Ltd,90.62, 28-Nov-2012
24,Revenue,CCHD,Home Care - LD Under 65 - South,Private & Voluntary Home Care,3 Trees Community Support Ltd,110.32, 28-Nov-2012
25,Revenue,CCHD,PWLD Home Care - Under 65 - KH,Private & Voluntary Home Care,3 Trees Community Support Ltd,271.86, 28-Nov-2012
26,Revenue,CCHD,Supported Living - PS,Private & Voluntary Home Care,3 Trees Community Support Ltd,1288.77, 23-Nov-2012
27,Revenue,CCHD,Purchase of Non-Res Care - KD,Private & Voluntary Day Care,3 Trees Community Support Ltd,3697.13, 23-Nov-2012
28,Revenue,CCHD,Purchase of Non-Res Care - PS,Private & Voluntary Day Care,3 Trees Community Support Ltd,548.37, 22-Nov-2012
29,Revenue,CCHD,Purchase of Non-Res Care - KD,Private & Voluntary Day Care,3 Trees Community Support Ltd,1701.28, 30-Nov-2012
30,Revenue,CCHD,Purchase of Non-Res Care - KD,Private & Voluntary Day Care,3 Trees Community Support Ltd,1689.36, 23-Nov-2012
31,Revenue,CCHD,Purchase of Non-Res Care - KD,Private & Voluntary Day Care,3 Trees Community Support Ltd,1354.87, 23-Nov-2012
32,Revenue,CCHD,Purchase of Non-Res Care - KD,Private & Voluntary Day Care,3 Trees Community Support Ltd,5853.66, 23-Nov-2012
33,Revenue,CCHD,Supported Living - KD,Private & Voluntary Home Care,3 Trees Community Support Ltd,7871.4, 23-Nov-2012
34,Revenue,CCHD,Supported Living - PS,Private & Voluntary Home Care,3 Trees Community Support Ltd,2002.8, 13-Nov-2012
35,Revenue,CCHD,Home Care - Elderly - North,Other Small Contracts,3 Trees Community Support Ltd,858.92, 29-Nov-2012
36,Revenue,CCHD,Bed Purchasing - Elderly S117- North,Residential Homes,3Rd Floor Westbury House,1716, 27-Nov-2012
37,Revenue,CCHD,Direct Payments - Phys Dis - North,Grants to Voluntary Bodies,A4E Management Limited,22857.93, 20-Nov-2012
38,Revenue,CCHD,Day Care - South,Private & Voluntary Day Care,About Me Care and Support Limited,1109.62, 29-Nov-2012
39,Revenue,CCHD,Day Care - North,Private & Voluntary Day Care,About Me Care and Support Limited,530.4, 27-Nov-2012
40,Revenue,CCHD,Day Care - South,Private & Voluntary Day Care,About Me Care and Support Limited,2064.55, 29-Nov-2012
41,Revenue,CCHD,Day Care - North,Private & Voluntary Day Care,About Me Care and Support Limited,1201.24, 12-Nov-2012
42,Revenue,CCHD,Day Care - South,Private & Voluntary Day Care,About Me Care and Support Limited,1148.56, 06-Nov-2012
43,Revenue,CCHD,Day Care - South,Private & Voluntary Day Care,About Me Care and Support Limited,504.7, 06-Nov-2012
44,Revenue,CCHD,Day Care - South,Private & Voluntary Day Care,About Me Care and Support Limited,2028.97, 06-Nov-2012
45,Revenue,CCHD,Day Care - North,Private & Voluntary Day Care,About Me Care and Support Limited,1303.04, 27-Nov-2012
46,Revenue,CCHD,Day Care - North,Private & Voluntary Day Care,Action on Hearing Loss,541.08, 05-Nov-2012
47,Revenue,CCHD,Day Care - North,Private & Voluntary Day Care,Action on Hearing Loss,523.44, 06-Nov-2012
48,Revenue,CCHD,Elderly MH Day Care North,Private & Voluntary Day Care,Age UK South Gloucestershire,769.6, 02-Nov-2012
49,Revenue,CCHD,Elderly MH Day Care South,Private & Voluntary Day Care,Age UK South Gloucestershire,307.84, 02-Nov-2012
50,Revenue,CCHD,Elderly MH Day Care North,Private & Voluntary Day Care,Age UK South Gloucestershire,307.84, 02-Nov-2012
51,Revenue,CCHD,Elderly MH Day Care South,Private & Voluntary Day Care,Age UK South Gloucestershire,307.84, 02-Nov-2012
52,Revenue,CCHD,Home Care - Elderly - South,Other Small Contracts,Agincare Chippenham,766.26, 02-Nov-2012
53,Revenue,CCHD,Home Care - Elderly - South,Other Small Contracts,Agincare Chippenham,808.83, 07-Nov-2012
54,Revenue,CCHD,Home Care - Elderly - South,Other Small Contracts,Agincare Chippenham,936.54, 15-Nov-2012
55,Revenue,CCHD,Home Care - Elderly - South,Other Small Contracts,Agincare Chippenham,982.98, 22-Nov-2012
56,Revenue,CCHD,Home Care - Elderly - South,Other Small Contracts,Agincare UK Limited,816.57, 02-Nov-2012
57,Revenue,CCHD,Home Care - Elderly - North,Other Small Contracts,Agincare UK Limited,46.44, 02-Nov-2012
58,Revenue,CCHD,Day Care - South,Private & Voluntary Day Care,Agincare UK Limited,170.28, 02-Nov-2012
59,Revenue,CCHD,Elderly MH Day Care North,Private & Voluntary Day Care,Agincare UK Limited,116.1, 02-Nov-2012
60,Revenue,CCHD,Home Care - Elderly - South,Other Small Contracts,Agincare UK Limited,801.09, 07-Nov-2012
61,Revenue,CCHD,Home Care - Elderly - North,Other Small Contracts,Agincare UK Limited,46.44, 07-Nov-2012
62,Revenue,CCHD,Day Care - South,Private & Voluntary Day Care,Agincare UK Limited,139.32, 07-Nov-2012
63,Revenue,CCHD,Elderly MH Day Care North,Private & Voluntary Day Care,Agincare UK Limited,108.36, 07-Nov-2012
64,Revenue,CCHD,Home Care - Elderly - South,Other Small Contracts,Agincare UK Limited,820.44, 29-Nov-2012
65,Revenue,CCHD,Home Care - Elderly - North,Other Small Contracts,Agincare UK Limited,50.31, 29-Nov-2012
66,Revenue,CCHD,Day Care - South,Private & Voluntary Day Care,Agincare UK Limited,131.58, 29-Nov-2012
67,Revenue,CCHD,Elderly MH Day Care North,Private & Voluntary Day Care,Agincare UK Limited,108.36, 29-Nov-2012
68,Revenue,CCHD,Home Care - Elderly - South,Other Small Contracts,Agincare UK Limited,863.01, 12-Nov-2012
69,Revenue,CCHD,Home Care - Elderly - North,Other Small Contracts,Agincare UK Limited,46.44, 12-Nov-2012
70,Revenue,CCHD,Day Care - South,Private & Voluntary Day Care,Agincare UK Limited,127.71, 12-Nov-2012
71,Revenue,CCHD,Elderly MH Day Care North,Private & Voluntary Day Care,Agincare UK Limited,112.23, 12-Nov-2012
72,Revenue,CCHD,Home Care - Elderly - South,Other Small Contracts,Agincare UK Limited,804.96, 22-Nov-2012
73,Revenue,CCHD,Home Care - Elderly - North,Other Small Contracts,Agincare UK Limited,69.66, 22-Nov-2012
74,Revenue,CCHD,Day Care - South,Private & Voluntary Day Care,Agincare UK Limited,174.15, 22-Nov-2012
75,Revenue,CCHD,Elderly MH Day Care North,Private & Voluntary Day Care,Agincare UK Limited,104.49, 22-Nov-2012
76,Revenue,CCHD,S117 Placements PCT,Residential Homes,Alexandra House,6810.28, 27-Nov-2012
77,Revenue,CCHD,Section 117 Placements MH Younger,Residential Homes,Alexandra House,6340, 27-Nov-2012
78,Revenue,CCHD,Elderly MH Day Care North,Private & Voluntary Day Care,Alzheimer`s Society Bristol,643.68, 30-Nov-2012
79,Revenue,CCHD,Elderly MH Day Care North,Private & Voluntary Day Care,Alzheimer`s Society Bristol,1001.28, 30-Nov-2012
80,Revenue,CCHD,Elderly MH Day Care South,Private & Voluntary Day Care,Alzheimer`s Society Bristol,643.68, 30-Nov-2012
81,Revenue,CCHD,Bed Purchasing - Elderly S117- North,Private & Voluntary Day Care,Alzheimer`s Society Bristol,643.68, 30-Nov-2012
82,Revenue,CCHD,Frenchay Hospital Purchasing,Residential Homes,Amber Care Ltd,1290.2, 27-Nov-2012
83,Revenue,CCHD,Southmead Hospital Purchasing,Nursing Homes,Ambleside Nusing Ho!,2478.7, 27-Nov-2012
84,Revenue,CCHD,Frenchay Hospital Purchasing,Residential Homes,Anbridge Care Home,828.88, 27-Nov-2012
85,Revenue,CCHD,Bed purchasing - Under 65s PWLD - North,Residential Homes,Ark Care Homes Ltd,10067.92, 27-Nov-2012
86,Revenue,CCHD,Bed Purchasing - Elderly - South,Residential Homes,Ashbourne House Care Home Limited,2205.92, 27-Nov-2012
87,Revenue,CCHD,Bed and Breakfast,Bed & Breakfast,Ashley Guest Houses Ltd,1176, 23-Nov-2012
88,Revenue,CCHD,Bed and Breakfast,Bed & Breakfast,Ashley Guest Houses Ltd,768, 30-Nov-2012
89,Revenue,CCHD,Bed and Breakfast,Bed & Breakfast,Ashley Guest Houses Ltd,1110, 02-Nov-2012
90,Revenue,CCHD,Bed and Breakfast,Bed & Breakfast,Ashley Guest Houses Ltd,1176, 09-Nov-2012
91,Revenue,CCHD,Bed and Breakfast,Bed & Breakfast,Ashley Guest Houses Ltd,1176, 16-Nov-2012
92,Revenue,CCHD,Bed Purchasing - S28A - Over 65- North,Residential Homes,Aspects &  Milestones Trust,3882.32, 27-Nov-2012
93,Revenue,CCHD,Bed Purchasing - Elderly - South,Residential Homes,Aspects &  Milestones Trust,1398.4, 27-Nov-2012
94,Revenue,CCHD,Bed Purchasing - Under 65s PWLD - South,Residential Homes,Aspects &  Milestones Trust,6090.6, 27-Nov-2012
95,Revenue,CCHD,Bed Purchasing - Elderly S117- North,Residential Homes,Aspects &  Milestones Trust,1325.92, 27-Nov-2012
96,Revenue,CCHD,Bed Purchasing - Elderly S117- North,Nursing Homes,Aspects &  Milestones Trust,1944.08, 27-Nov-2012
97,Revenue,CCHD,Bed purchasing - Elderly MH - North,Nursing Homes,Aspects &  Milestones Trust,2318.24, 27-Nov-2012
98,Revenue,CCHD,Bed purchasing - Elderly PWLD - North,Residential Homes,Aspects &  Milestones Trust,3554.88, 27-Nov-2012
99,Revenue,CCHD,Bed Purchasing - Under 65s PWLD - South,Residential Homes,Aspects &  Milestones Trust,5227.12, 27-Nov-2012
100,Revenue,CCHD,Bed Purchasing - Under 65s PWLD - South,Residential Homes,Aspects &  Milestones Trust,5683.72, 27-Nov-2012
101,Revenue,CCHD,Bed Purchasing - Under 65s PWLD - South,Nursing Homes,Aspects &  Milestones Trust,2766.32, 27-Nov-2012
102,Revenue,CCHD,Bed Purchasing - Elderly S117- North,Nursing Homes,Aspects &  Milestones Trust,1944, 27-Nov-2012
103,Revenue,CCHD,Bed purchasing - Elderly MH - North,Nursing Homes,Aspects &  Milestones Trust,1430.08, 27-Nov-2012
104,Revenue,CCHD,Section 117 Placements MH Younger,Nursing Homes,Aspects &  Milestones Trust,1416, 27-Nov-2012
105,Revenue,CCHD,Bed purchasing - Elderly PWLD - South,Residential Homes,Aspects &  Milestones Trust,3199.56, 27-Nov-2012
106,Revenue,CCHD,Bed Purchasing - Elderly S117- North,Residential Homes,Aspects &  Milestones Trust,980.57, 27-Nov-2012
107,Revenue,CCHD,Bed purchasing - Elderly S117 - South,Nursing Homes,Aspects &  Milestones Trust,1944, 27-Nov-2012
108,Revenue,CCHD,Bed purchasing - Elderly PWLD - South,Residential Homes,Aspects &  Milestones Trust,4357.8, 27-Nov-2012
109,Revenue,CCHD,Bed purchasing -S28A  Under 65 - North,Nursing Homes,Aspects &  Milestones Trust,5800.72, 27-Nov-2012
110,Revenue,CCHD,Bed purchasing -S28A  Under 65 - North,Residential Homes,Aspects &  Milestones Trust,5183.96, 27-Nov-2012
111,Revenue,CCHD,Bed Purchasing - Under 65s PWLD - South,Residential Homes,Aspects &  Milestones Trust,3495.32, 27-Nov-2012
112,Revenue,CCHD,Bed purchasing - S28A Under 65 - South,Residential Homes,Aspects &  Milestones Trust,5327.8, 27-Nov-2012
113,Revenue,CCHD,Bed Purchasing - Elderly MH - South,Residential Homes,Aspects &  Milestones Trust,1283.2, 27-Nov-2012
114,Revenue,CCHD,Bed Purchasing - Elderly MH - South,Residential Homes,Aspects &  Milestones Trust,962.4, 27-Nov-2012
115,Revenue,CCHD,Bed Purchasing - Under 65s PWLD - South,Residential Homes,Aspects &  Milestones Trust,5721.6, 27-Nov-2012
116,Revenue,CCHD,Bed purchasing - Under 65s PWLD - North,Residential Homes,Aspects &  Milestones Trust,3843.72, 27-Nov-2012
117,Revenue,CCHD,Bed purchasing - S28A Under 65 - South,Nursing Homes,Aspects &  Milestones Trust,7576.08, 27-Nov-2012
118,Revenue,CCHD,MH Purchasing - Younger,Residential Homes,Aspects &  Milestones Trust,847.2, 27-Nov-2012
119,Revenue,CCHD,Bed purchasing - Elderly PWLD - South,Residential Homes,Aspects &  Milestones Trust,5276.32, 27-Nov-2012
120,Revenue,CCHD,Bed purchasing - Elderly PWLD - South,Residential Homes,Aspects &  Milestones Trust,3791.92, 27-Nov-2012
121,Revenue,CCHD,Bed purchasing - Elderly PWLD - North,Residential Homes,Aspects &  Milestones Trust,4732.52, 27-Nov-2012
122,Revenue,CCHD,Bed purchasing -S28A  Under 65 - North,Residential Homes,Aspects &  Milestones Trust,5268.68, 27-Nov-2012
123,Revenue,CCHD,Bed purchasing -S28A  Under 65 - North,Residential Homes,Aspects &  Milestones Trust,6125.96, 27-Nov-2012
124,Revenue,CCHD,Bed purchasing -S28A  Under 65 - North,Nursing Homes,Aspects &  Milestones Trust,6213.88, 27-Nov-2012
125,Revenue,CCHD,South Glos Users in South Glos Homes,Nursing Homes,Aspects &  Milestones Trust,698.79, 27-Nov-2012
126,Revenue,CCHD,Bed Purchasing - Under 65s PWLD - South,Residential Homes,Aspects &  Milestones Trust,3699.6, 27-Nov-2012
127,Revenue,CCHD,Bed purchasing -S28A  Under 65 - North,Residential Homes,Aspects &  Milestones Trust,6125.96, 27-Nov-2012
128,Revenue,CCHD,Bed purchasing - S28A Under 65 - South,Residential Homes,Aspects &  Milestones Trust,4856.92, 27-Nov-2012
129,Revenue,CCHD,Bed Purchasing - S28A - Over 65- North,Residential Homes,Aspects &  Milestones Trust,4732.76, 27-Nov-2012
130,Revenue,CCHD,Bed Purchasing - LD S28A- Over 65- South,Residential Homes,Aspects &  Milestones Trust,4015.52, 27-Nov-2012
131,Revenue,CCHD,Bed purchasing -S28A  Under 65 - North,Residential Homes,Aspects &  Milestones Trust,6125.96, 27-Nov-2012
132,Revenue,CCHD,Bed purchasing -S28A  Under 65 - North,Residential Homes,Aspects &  Milestones Trust,6125.96, 27-Nov-2012
133,Revenue,CCHD,Bed Purchasing - LD S28A- Over 65- South,Residential Homes,Aspects &  Milestones Trust,3905.44, 27-Nov-2012
134,Revenue,CCHD,Bed purchasing - S28A Under 65 - South,Residential Homes,Aspects &  Milestones Trust,5052.2, 27-Nov-2012
135,Revenue,CCHD,Bed purchasing - S28A Under 65 - South,Residential Homes,Aspects &  Milestones Trust,6626.28, 27-Nov-2012
136,Revenue,CCHD,Bed purchasing - S28A Under 65 - South,Residential Homes,Aspects &  Milestones Trust,4047.8, 27-Nov-2012
137,Revenue,CCHD,Bed Purchasing - LD S28A- Over 65- South,Residential Homes,Aspects &  Milestones Trust,5824.28, 27-Nov-2012
138,Revenue,CCHD,Bed Purchasing - S28A - Over 65- North,Residential Homes,Aspects &  Milestones Trust,3397.72, 27-Nov-2012
139,Revenue,CCHD,Bed Purchasing - LD S28A- Over 65- South,Residential Homes,Aspects &  Milestones Trust,4760.52, 27-Nov-2012
140,Revenue,CCHD,Bed Purchasing - LD S28A- Over 65- South,Residential Homes,Aspects &  Milestones Trust,4908.2, 27-Nov-2012
141,Revenue,CCHD,Bed Purchasing - LD S28A- Over 65- South,Residential Homes,Aspects &  Milestones Trust,4622.6, 27-Nov-2012
142,Revenue,CCHD,Bed Purchasing - LD S28A- Over 65- South,Residential Homes,Aspects &  Milestones Trust,5383.48, 27-Nov-2012
143,Revenue,CCHD,Bed purchasing -S28A  Under 65 - North,Residential Homes,Aspects &  Milestones Trust,7309.52, 27-Nov-2012
144,Revenue,CCHD,Bed purchasing -S28A  Under 65 - North,Nursing Homes,Aspects &  Milestones Trust,6296.44, 27-Nov-2012
145,Revenue,CCHD,Bed Purchasing - LD S28A- Over 65- South,Residential Homes,Aspects &  Milestones Trust,3492.92, 27-Nov-2012
146,Revenue,CCHD,Bed Purchasing - LD S28A- Over 65- South,Residential Homes,Aspects &  Milestones Trust,3251.48, 27-Nov-2012
147,Revenue,CCHD,Bed Purchasing - S28A - Over 65- North,Residential Homes,Aspects &  Milestones Trust,3308.72, 27-Nov-2012
148,Revenue,CCHD,Bed Purchasing - LD S28A- Over 65- South,Residential Homes,Aspects &  Milestones Trust,4720.44, 27-Nov-2012
149,Revenue,CCHD,Section 117 Placements MH Younger,Residential Homes,Aspects &  Milestones Trust,1324, 27-Nov-2012
150,Revenue,CCHD,Bed purchasing - Elderly MH - North,Residential Homes,Aspects &  Milestones Trust,849.48, 27-Nov-2012
151,Revenue,CCHD,Bed purchasing - S28A Under 65 - South,Residential Homes,Aspects &  Milestones Trust,4790.96, 27-Nov-2012
152,Revenue,CCHD,Bed purchasing - Elderly PWLD - North,Residential Homes,Aspects &  Milestones Trust,5424.04, 27-Nov-2012
153,Revenue,CCHD,Bed purchasing - Under 65s PWLD - North,Residential Homes,Aspects &  Milestones Trust,5511.12, 27-Nov-2012
154,Revenue,CCHD,Bed purchasing - Elderly MH - North,Nursing Homes,Aspects &  Milestones Trust,1096.68, 27-Nov-2012
155,Revenue,CCHD,Bed Purchasing - Under 65s PWLD - South,Residential Homes,Aspects &  Milestones Trust,3849.4, 27-Nov-2012
156,Revenue,CCHD,Bed purchasing -S28A  Under 65 - North,Residential Homes,Aspects &  Milestones Trust,5771.6, 27-Nov-2012
157,Revenue,CCHD,Bed Purchasing - S28A - Over 65- North,Residential Homes,Aspects &  Milestones Trust,3271.48, 27-Nov-2012
158,Revenue,CCHD,Section 117 Placements MH Younger,Residential Homes,Aspects &  Milestones Trust,1716, 27-Nov-2012
159,Revenue,CCHD,MH Purchasing - Younger,Residential Homes,Aspects &  Milestones Trust,1012.6, 27-Nov-2012
160,Revenue,CCHD,Bed Purchasing - S28A - Over 65- North,Residential Homes,Aspects &  Milestones Trust,3511.28, 27-Nov-2012
161,Revenue,CCHD,Bed purchasing - S28A Under 65 - South,Residential Homes,Aspects &  Milestones Trust,3563.92, 27-Nov-2012
162,Revenue,CCHD,Bed purchasing - S28A Under 65 - South,Residential Homes,Aspects &  Milestones Trust,5052.2, 27-Nov-2012
163,Revenue,CCHD,Bed purchasing - S28A Under 65 - South,Residential Homes,Aspects &  Milestones Trust,6024.64, 27-Nov-2012
164,Revenue,CCHD,Bed Purchasing - LD S28A- Over 65- South,Residential Homes,Aspects &  Milestones Trust,5898.16, 27-Nov-2012
165,Revenue,CCHD,Bed Purchasing - LD S28A- Over 65- South,Residential Homes,Aspects &  Milestones Trust,4164.96, 27-Nov-2012
166,Revenue,CCHD,Bed Purchasing - LD S28A- Over 65- South,Residential Homes,Aspects &  Milestones Trust,4720.44, 27-Nov-2012
167,Revenue,CCHD,Bed Purchasing - LD S28A- Over 65- South,Residential Homes,Aspects &  Milestones Trust,5607.6, 27-Nov-2012
168,Revenue,CCHD,Bed purchasing - S28A Under 65 - South,Residential Homes,Aspects &  Milestones Trust,7572.92, 27-Nov-2012
169,Revenue,CCHD,Bed Purchasing - LD S28A- Over 65- South,Residential Homes,Aspects &  Milestones Trust,4902.32, 27-Nov-2012
170,Revenue,CCHD,Bed purchasing -S28A  Under 65 - North,Residential Homes,Aspects &  Milestones Trust,4743.92, 27-Nov-2012
171,Revenue,CCHD,Bed Purchasing - S28A - Over 65- North,Residential Homes,Aspects &  Milestones Trust,4885.4, 27-Nov-2012
172,Revenue,CCHD,Bed Purchasing - S28A - Over 65- North,Residential Homes,Aspects &  Milestones Trust,5473.64, 27-Nov-2012
173,Revenue,CCHD,Bed purchasing - S28A Under 65 - South,Residential Homes,Aspects &  Milestones Trust,4611.44, 27-Nov-2012
174,Revenue,CCHD,Bed Purchasing - S28A - Over 65- North,Residential Homes,Aspects &  Milestones Trust,4885.4, 27-Nov-2012
175,Revenue,CCHD,Bed Purchasing - S28A - Over 65- North,Residential Homes,Aspects &  Milestones Trust,5277.28, 27-Nov-2012
176,Revenue,CCHD,Bed purchasing - S28A Under 65 - South,Residential Homes,Aspects &  Milestones Trust,4569, 27-Nov-2012
177,Revenue,CCHD,Bed purchasing -S28A  Under 65 - North,Residential Homes,Aspects &  Milestones Trust,6125.96, 27-Nov-2012
178,Revenue,CCHD,Bed Purchasing - S28A - Over 65- North,Residential Homes,Aspects &  Milestones Trust,5621.68, 27-Nov-2012
179,Revenue,CCHD,Bed purchasing -S28A  Under 65 - North,Residential Homes,Aspects &  Milestones Trust,3468.84, 27-Nov-2012
180,Revenue,CCHD,Bed Purchasing - S28A - Over 65- North,Residential Homes,Aspects &  Milestones Trust,3275.16, 27-Nov-2012
181,Revenue,CCHD,Bed Purchasing - S28A - Over 65- North,Residential Homes,Aspects &  Milestones Trust,3412.88, 27-Nov-2012
182,Revenue,CCHD,Bed Purchasing - LD S28A- Over 65- South,Residential Homes,Aspects &  Milestones Trust,3204.2, 27-Nov-2012
183,Revenue,CCHD,Bed purchasing - Elderly S117 - South,Nursing Homes,Aspects &  Milestones Trust,1945.16, 27-Nov-2012
184,Revenue,CCHD,Bed Purchasing - Elderly - South,Nursing Homes,Aspects &  Milestones Trust,1456.88, 27-Nov-2012
185,Revenue,CCHD,Bed purchasing - Under 65s PWLD - North,Residential Homes,Aspects &  Milestones Trust,6125.96, 27-Nov-2012
186,Revenue,CCHD,MH Purchasing - Younger,Nursing Homes,Aspects &  Milestones Trust,920.56, 27-Nov-2012
187,Revenue,CCHD,MH Purchasing - Younger,Nursing Homes,Aspects &  Milestones Trust,939.2, 27-Nov-2012
188,Revenue,CCHD,MH Purchasing - Younger,Residential Homes,Aspects &  Milestones Trust,1012.6, 27-Nov-2012
189,Revenue,CCHD,Bed purchasing - Elderly PWLD - South,Residential Homes,Aspects &  Milestones Trust,3399.76, 27-Nov-2012
190,Revenue,CCHD,Bed purchasing - S28A Under 65 - South,Residential Homes,Aspects &  Milestones Trust,7168.2, 27-Nov-2012
191,Revenue,CCHD,Bed purchasing - S28A Under 65 - South,Residential Homes,Aspects &  Milestones Trust,4866.72, 27-Nov-2012
192,Revenue,CCHD,Bed Purchasing - LD S28A- Over 65- South,Residential Homes,Aspects &  Milestones Trust,4628.68, 27-Nov-2012
193,Revenue,CCHD,Bed Purchasing - Under 65s PWLD - South,Residential Homes,Aspects &  Milestones Trust,4173.08, 27-Nov-2012
194,Revenue,CCHD,Bed Purchasing - LD S28A- Over 65- South,Nursing Homes,Aspects &  Milestones Trust,6294.6, 27-Nov-2012
195,Revenue,CCHD,Bed Purchasing - LD S28A- Over 65- South,Nursing Homes,Aspects &  Milestones Trust,4196.4, 27-Nov-2012
196,Revenue,CCHD,Bed Purchasing - LD S28A- Over 65- South,Residential Homes,Aspects &  Milestones Trust,5024.02, 27-Nov-2012
197,Revenue,CCHD,Bed Purchasing - LD S28A- Over 65- South,Residential Homes,Aspects &  Milestones Trust,1072.69, 27-Nov-2012
198,Revenue,CCHD,Bed Purchasing - LD S28A- Over 65- South,Residential Homes,Aspects &  Milestones Trust,5898.16, 27-Nov-2012
199,Revenue,CCHD,Bed Purchasing - LD S28A- Over 65- South,Residential Homes,Aspects &  Milestones Trust,3973.08, 27-Nov-2012
200,Revenue,CCHD,Bed Purchasing - LD S28A- Over 65- South,Residential Homes,Aspects &  Milestones Trust,4406.8, 27-Nov-2012
201,Revenue,CCHD,Bed Purchasing - LD S28A- Over 65- South,Residential Homes,Aspects &  Milestones Trust,5155.88, 27-Nov-2012
202,Revenue,CCHD,Bed Purchasing - Elderly MH - South,Residential Homes,Aspects &  Milestones Trust,1206.56, 27-Nov-2012
203,Revenue,CCHD,Bed Purchasing - Elderly S117- North,Nursing Homes,Aspects &  Milestones Trust,1944, 27-Nov-2012
204,Revenue,CCHD,Bed Purchasing - Elderly S117- North,Nursing Homes,Aspects &  Milestones Trust,1944, 27-Nov-2012
205,Revenue,CCHD,Bed Purchasing - Elderly S117- North,Residential Homes,Aspects &  Milestones Trust,1324, 27-Nov-2012
206,Revenue,CCHD,Bed purchasing - Under 65s PWLD - North,Residential Homes,Aspects & Milestones Trust,8841.64, 27-Nov-2012
207,Revenue,CCHD,Supporting People Programme,Grants to Voluntary Bodies,Aspects and Milestones Trust,2391.34, 01-Nov-2012
208,Revenue,CCHD,Supporting People Programme,Grants to Voluntary Bodies,Aspects and Milestones Trust,2391.34, 30-Nov-2012
209,Revenue,CCHD,Supporting People Programme,Grants to Voluntary Bodies,Aspects and Milestones Trust,1575.46, 01-Nov-2012
210,Revenue,CCHD,Supporting People Programme,Grants to Voluntary Bodies,Aspects and Milestones Trust,1575.46, 30-Nov-2012
211,Revenue,CCHD,Supporting People Programme,Grants to Voluntary Bodies,Aspects and Milestones Trust,3142.43, 01-Nov-2012
212,Revenue,CCHD,Supporting People Programme,Grants to Voluntary Bodies,Aspects and Milestones Trust,3142.43, 30-Nov-2012
213,Revenue,CCHD,Supporting People Programme,Grants to Voluntary Bodies,Aspects and Milestones Trust,1918.88, 01-Nov-2012
214,Revenue,CCHD,Supporting People Programme,Grants to Voluntary Bodies,Aspects and Milestones Trust,1918.88, 30-Nov-2012
215,Revenue,CCHD,Supported Living - PS,Private & Voluntary Home Care,Aspirations Support Bristol Limited,4583.28, 28-Nov-2012
216,Revenue,CCHD,Purchase of Non-Res Care - PS,Private & Voluntary Day Care,Aspirations Support Bristol Limited,2475.72, 28-Nov-2012
217,Revenue,CCHD,Bed Purchasing - Under 65s PWLD - South,Residential Homes,Autism Specialised Care Homes,5515.04, 27-Nov-2012
218,Revenue,CCHD,Cambrian Green Day Service,Maintenance by Contractor,Avon Armour Ltd,970, 30-Nov-2012
219,Revenue,CCHD,Purchase of Non-Res Care - KD,Private & Voluntary Day Care,Avon Autistic Foundation Limited,2849.7, 30-Nov-2012
220,Revenue,CCHD,Purchase of Non-Res Care - KD,Private & Voluntary Day Care,Avon Autistic Foundation Limited,4182.4, 30-Nov-2012
221,Revenue,CCHD,Purchase of RAC places,Other L.A.'s - General,Bath & North East Somerset Dist Council,3371.78, 30-Nov-2012
222,Revenue,CCHD,Purchase of RAC places,Other L.A.'s - General,Bath & North East Somerset Dist Council,17292.57, 02-Nov-2012
223,Revenue,CCHD,Frenchay Hospital Purchasing,Residential Homes,Beaufort House,661.44, 27-Nov-2012
224,Revenue,CCHD,Bed purchasing - Elderly MH - North,Residential Homes,Beaufort House,1418.36, 27-Nov-2012
225,Revenue,CCHD,Bed Purchasing - Elderly - South,Residential Homes,Beaufort House,1266.65, 27-Nov-2012
226,Revenue,CCHD,Frenchay Hospital Purchasing,Residential Homes,Beaufort House,1276.24, 27-Nov-2012
227,Revenue,CCHD,Bed purchasing - Elderly MH - North,Residential Homes,Beaufort House,1318.88, 27-Nov-2012
228,Revenue,CCHD,Bed Purchasing - Elderly - North,Residential Homes,Beaufort House,1697.4, 27-Nov-2012
229,Revenue,CCHD,Bed purchasing - Elderly MH - North,Residential Homes,Beaufort House,875.84, 27-Nov-2012
230,Revenue,CCHD,Bed purchasing - Elderly MH - North,Residential Homes,Beaufort House,1011.32, 27-Nov-2012
231,Revenue,CCHD,Bed purchasing - Elderly MH - North,Residential Homes,Beaufort House,1672.68, 27-Nov-2012
232,Revenue,CCHD,Bed Purchasing - Elderly - North,Residential Homes,Beaufort House,1509.12, 27-Nov-2012
233,Revenue,CCHD,Bed purchasing - Elderly PWLD - South,Residential Homes,Bedrock Lodge,2858.6, 27-Nov-2012
234,Revenue,CCHD,Section 117 Placements MH Younger,Residential Homes,Bedrock Lodge,1820.2, 27-Nov-2012
235,Revenue,CCHD,Frenchay Hospital Purchasing,Nursing Homes,Beech House,1226.52, 27-Nov-2012
236,Revenue,CCHD,Bed Purchasing - Elderly - North,Nursing Homes,Beech House,1142.19, 27-Nov-2012
237,Revenue,CCHD,South Glos Users in South Glos Homes,Nursing Homes,Beech House,1288.87, 27-Nov-2012
238,Revenue,CCHD,South Glos Users in South Glos Homes,Nursing Homes,Beech House,1708.14, 27-Nov-2012
239,Revenue,CCHD,Bed Purchasing - Elderly - North,Nursing Homes,Beech House,1187.03, 27-Nov-2012
240,Revenue,CCHD,Bed Purchasing - Elderly - North,Nursing Homes,Beech House,2202.92, 27-Nov-2012
241,Revenue,CCHD,Management & Support costs,Other Supplies & Services,BIP Solutions Limited,160, 13-Nov-2012
242,Revenue,CCHD,South Glos Users in South Glos Homes,Nursing Homes,Blossom Field,512.44, 27-Nov-2012
243,Revenue,CCHD,Bed Purchasing - Elderly S117- North,Nursing Homes,Blossom Field,2996.76, 27-Nov-2012
244,Revenue,CCHD,Bed Purchasing - Elderly S117- North,Residential Homes,Blossom Field,2223.9, 27-Nov-2012
245,Revenue,CCHD,South Glos Users in South Glos Homes,Nursing Homes,Blossom Field,512.44, 27-Nov-2012
246,Revenue,CCHD,Bed purchasing - Elderly MH - North,Nursing Homes,Blossom Field,1391.16, 27-Nov-2012
247,Revenue,CCHD,Bed Purchasing - Elderly - South,Nursing Homes,Blossom Field,1867.2, 27-Nov-2012
248,Revenue,CCHD,Bed Purchasing - Elderly - South,Nursing Homes,Blossom Fields,2209.91, 21-Nov-2012
249,Revenue,CCHD,Bed Purchasing - Elderly - North,Nursing Homes,Blossom Fields,5738.68, 21-Nov-2012
250,Revenue,CCHD,South Glos Users in South Glos Homes,Nursing Homes,Blossom Fields,869.6, 21-Nov-2012
251,Revenue,CCHD,Bed purchasing - Elderly MH - North,Nursing Homes,Blossom Fields,1536.23, 21-Nov-2012
252,Revenue,CCHD,Bed Purchasing - Elderly - South,Nursing Homes,Blossom Fields,1998.35, 21-Nov-2012
253,Revenue,CCHD,Bed Purchasing - Elderly - North,Nursing Homes,Blossom Fields,5874.05, 21-Nov-2012
254,Revenue,CCHD,South Glos Users in South Glos Homes,Nursing Homes,Blossom Fields,869.6, 21-Nov-2012
255,Revenue,CCHD,Bed purchasing - Elderly MH - North,Nursing Homes,Blossom Fields,1536.24, 21-Nov-2012
256,Revenue,CCHD,Training - Adult Services,Training Expenses,Bob Dawson,550, 16-Nov-2012
257,Revenue,CCHD,Frenchay Hospital Purchasing,Nursing Homes,Bradbury House,1366.76, 27-Nov-2012
258,Revenue,CCHD,Bed purchasing -S28A  Under 65 - North,Residential Homes,Bradbury House,14269.2, 27-Nov-2012
259,Revenue,CCHD,Bed Purchasing - Elderly - North,Nursing Homes,Bradbury House,975.84, 27-Nov-2012
260,Revenue,CCHD,Swift Dump Code,Residential Homes,Bradbury House Organisation,18034.6, 30-Nov-2012
261,Revenue,CCHD,Bed Purchasing - Elderly - North,Residential Homes,Bradley House,1239.2, 27-Nov-2012
262,Revenue,CCHD,Home Care - Elderly - South,Other Small Contracts,Bradley House Home Care Services,162.63, 14-Nov-2012
263,Revenue,CCHD,Home Care - Elderly - North,Other Small Contracts,Bradley House Home Care Services,1567.92, 14-Nov-2012
264,Revenue,CCHD,Day Care - North,Private & Voluntary Day Care,Bradley House Home Care Services,133.44, 14-Nov-2012
265,Revenue,CCHD,Home Care - Elderly - South,Other Small Contracts,Bradley House Home Care Services,158.46, 02-Nov-2012
266,Revenue,CCHD,Home Care - Elderly - North,Other Small Contracts,Bradley House Home Care Services,1451.16, 02-Nov-2012
267,Revenue,CCHD,Day Care - North,Private & Voluntary Day Care,Bradley House Home Care Services,129.27, 02-Nov-2012
268,Revenue,CCHD,Home Care - Elderly - South,Other Small Contracts,Bradley House Home Care Services,158.46, 02-Nov-2012
269,Revenue,CCHD,Home Care - Elderly - North,Other Small Contracts,Bradley House Home Care Services,1547.07, 02-Nov-2012
270,Revenue,CCHD,Day Care - North,Private & Voluntary Day Care,Bradley House Home Care Services,133.44, 02-Nov-2012
271,Revenue,CCHD,Home Care - Elderly - South,Other Small Contracts,Bradley House Home Care Services,166.8, 09-Nov-2012
272,Revenue,CCHD,Home Care - Elderly - North,Other Small Contracts,Bradley House Home Care Services,1517.88, 09-Nov-2012
273,Revenue,CCHD,Day Care - North,Private & Voluntary Day Care,Bradley House Home Care Services,133.44, 09-Nov-2012
274,Revenue,CCHD,Home Care - Elderly - South,Other Small Contracts,Bradley House Home Care Services,154.29, 02-Nov-2012
275,Revenue,CCHD,Home Care - Elderly - North,Other Small Contracts,Bradley House Home Care Services,1484.52, 02-Nov-2012
276,Revenue,CCHD,Day Care - North,Private & Voluntary Day Care,Bradley House Home Care Services,100.08, 02-Nov-2012
277,Revenue,CCHD,Home Care - Elderly - South,Other Small Contracts,Bradley House Home Care Services,100.08, 21-Nov-2012
278,Revenue,CCHD,Home Care - Elderly - North,Other Small Contracts,Bradley House Home Care Services,1484.52, 21-Nov-2012
279,Revenue,CCHD,Day Care - North,Private & Voluntary Day Care,Bradley House Home Care Services,129.27, 21-Nov-2012
280,Revenue,CCHD,Woodleaze,"Provisions (Food, etc)",Brake Bros,708.69, 12-Nov-2012
281,Revenue,CCHD,Alexandra Way,"Provisions (Food, etc)",Brake Bros,500.49, 12-Nov-2012
282,Revenue,CCHD,Woodleaze,"Provisions (Food, etc)",Brake Bros,615, 23-Nov-2012
283,Revenue,CCHD,Alexandra Way,"Provisions (Food, etc)",Brake Bros,527.06, 15-Nov-2012
284,Revenue,CCHD,Alexandra Way,"Provisions (Food, etc)",Brake Bros,605.32, 23-Nov-2012
285,Revenue,CCHD,Bed Purchasing - Elderly - North,Residential Homes,Bridge House Care Home,1227.08, 27-Nov-2012
286,Revenue,CCHD,Bed Purchasing - Elderly - North,Residential Homes,Bridge House Care Home,1503.04, 27-Nov-2012
287,Revenue,CCHD,Bed Purchasing - Elderly - North,Residential Homes,Bridge House Care Home,1072.84, 27-Nov-2012
288,Revenue,CCHD,Bed Purchasing - Elderly - North,Residential Homes,Bridge House Care Home,1074, 27-Nov-2012
289,Revenue,CCHD,Bed Purchasing - Elderly - North,Residential Homes,Bridge House Care Home,1322.96, 27-Nov-2012
290,Revenue,CCHD,Bed Purchasing - Elderly MH - South,Residential Homes,Brightbow,2529, 27-Nov-2012
291,Revenue,CCHD,MH Purchasing - Younger,Residential Homes,Brightbow,922.36, 27-Nov-2012
292,Revenue,CCHD,Supported Living - KD,Private & Voluntary Home Care,Bristol Houses UK Limited,1046.4, 22-Nov-2012
293,Revenue,CCHD,Day Care - North,Private & Voluntary Day Care,Bristol Houses UK Limited,1508.56, 20-Nov-2012
294,Revenue,CCHD,Younger MH non-res purchasing,Private & Voluntary Day Care,Bristol Houses UK Limited,1080, 23-Nov-2012
295,Revenue,CCHD,Day Care - North,Private & Voluntary Day Care,Bristol Houses UK Limited,2371.84, 20-Nov-2012
296,Revenue,CCHD,Bed Purchasing - Elderly S117- North,Residential Homes,Brockley Court Care Home,1818.04, 27-Nov-2012
297,Revenue,CCHD,Supporting People Programme,Grants to Voluntary Bodies,Bromford Housing Group,13916.67, 01-Nov-2012
298,Revenue,CCHD,Supporting People Programme,Grants to Voluntary Bodies,Bromford Housing Group,13916.67, 30-Nov-2012
299,Revenue,CCHD,Bed Purchasing - Elderly - North,Residential Homes,Brook Lane Residential Home,877.36, 27-Nov-2012
300,Revenue,CCHD,Bed Purchasing - Elderly - South,Nursing Homes,Brunel Care,4214.62, 27-Nov-2012
301,Revenue,CCHD,Frenchay Hospital Purchasing,Nursing Homes,Brunel Care,3154.86, 27-Nov-2012
302,Revenue,CCHD,Bed Purchasing - Elderly - South,Nursing Homes,Brunel Care,713.44, 27-Nov-2012
303,Revenue,CCHD,Bed Purchasing - Elderly - South,Nursing Homes,Brunel Care,1637.96, 27-Nov-2012
304,Revenue,CCHD,Southmead Hospital Purchasing,Nursing Homes,Brunel Care,1295.2, 27-Nov-2012
305,Revenue,CCHD,Southmead Hospital Purchasing,Residential Homes,Brunel Care,2478.72, 27-Nov-2012
306,Revenue,CCHD,Bed Purchasing - Elderly MH - South,Nursing Homes,Brunel Care,2029.8, 27-Nov-2012
307,Revenue,CCHD,Bed Purchasing - Elderly - North,Nursing Homes,Brunel Care,906.33, 27-Nov-2012
308,Revenue,CCHD,Bed Purchasing - Elderly - South,Residential Homes,Brunel Care,2538.8, 27-Nov-2012
309,Revenue,CCHD,Bed Purchasing - Elderly - South,Nursing Homes,Brunel Care,14175, 27-Nov-2012
310,Revenue,CCHD,Home Care - Elderly - North,Private & Voluntary Home Care,Brunelcare,6720, 05-Nov-2012
311,Revenue,CCHD,Home Care - Elderly - North,Private & Voluntary Home Care,Brunelcare,6720, 12-Nov-2012
312,Revenue,CCHD,Home Care - Elderly - North,Private & Voluntary Home Care,Brunelcare,6720, 19-Nov-2012
313,Revenue,CCHD,Home Care - Elderly - North,Private & Voluntary Home Care,Brunelcare,6720, 26-Nov-2012
314,Revenue,CCHD,Bed Purchasing - Elderly - South,Nursing Homes,Brunelcare,9801.88, 29-Nov-2012
315,Revenue,CCHD,Bed Purchasing - Elderly - North,Nursing Homes,Brunelcare,3178.82, 29-Nov-2012
316,Revenue,CCHD,Frenchay Hospital Purchasing,Nursing Homes,Brunelcare,6689.64, 29-Nov-2012
317,Revenue,CCHD,Southmead Hospital Purchasing,Nursing Homes,Brunelcare,9238.84, 29-Nov-2012
318,Revenue,CCHD,South Glos Users in South Glos Homes,Nursing Homes,Brunelcare,12780.01, 29-Nov-2012
319,Revenue,CCHD,Bed Purchasing - Elderly MH - South,Nursing Homes,Brunelcare,8962.62, 29-Nov-2012
320,Revenue,CCHD,Bed purchasing - Elderly S117 - South,Nursing Homes,Brunelcare,2341.32, 29-Nov-2012
321,Revenue,CCHD,Bed purchasing - Elderly MH - North,Nursing Homes,Brunelcare,1589.41, 29-Nov-2012
322,Revenue,CCHD,Bed Purchasing - Elderly S117- North,Nursing Homes,Brunelcare,3971.84, 29-Nov-2012
323,Revenue,CCHD,Home Care - Elderly - South,Other Small Contracts,Brunelcare,2905.2, 09-Nov-2012
324,Revenue,CCHD,Home Care - Elderly - North,Other Small Contracts,Brunelcare,3724.88, 09-Nov-2012
325,Revenue,CCHD,Day Care - South,Private & Voluntary Day Care,Brunelcare,145.44, 09-Nov-2012
326,Revenue,CCHD,Day Care - North,Private & Voluntary Day Care,Brunelcare,109.08, 09-Nov-2012
327,Revenue,CCHD,Under 65s -MH  Home Care Purch,Other Small Contracts,Brunelcare,234.32, 09-Nov-2012
328,Revenue,CCHD,Home care - Elderly MH - North,Other Small Contracts,Brunelcare,137.36, 09-Nov-2012
329,Revenue,CCHD,Elderly MH Day Care North,Private & Voluntary Day Care,Brunelcare,210.08, 09-Nov-2012
330,Revenue,CCHD,Home Care - Elderly - South,Other Small Contracts,Brunelcare,2885.02, 09-Nov-2012
331,Revenue,CCHD,Home Care - Elderly - North,Other Small Contracts,Brunelcare,3656.2, 09-Nov-2012
332,Revenue,CCHD,Day Care - South,Private & Voluntary Day Care,Brunelcare,145.44, 09-Nov-2012
333,Revenue,CCHD,Day Care - North,Private & Voluntary Day Care,Brunelcare,92.92, 09-Nov-2012
334,Revenue,CCHD,Under 65s -MH  Home Care Purch,Other Small Contracts,Brunelcare,226.24, 09-Nov-2012
335,Revenue,CCHD,Home care - Elderly MH - North,Other Small Contracts,Brunelcare,193.92, 09-Nov-2012
336,Revenue,CCHD,Elderly MH Day Care North,Private & Voluntary Day Care,Brunelcare,242.4, 09-Nov-2012
337,Revenue,CCHD,Home Care - Elderly - South,Other Small Contracts,Brunelcare,2929.46, 09-Nov-2012
338,Revenue,CCHD,Home Care - Elderly - North,Other Small Contracts,Brunelcare,3417.84, 09-Nov-2012
339,Revenue,CCHD,Day Care - South,Private & Voluntary Day Care,Brunelcare,141.4, 09-Nov-2012
340,Revenue,CCHD,Day Care - North,Private & Voluntary Day Care,Brunelcare,109.08, 09-Nov-2012
341,Revenue,CCHD,Under 65s -MH  Home Care Purch,Other Small Contracts,Brunelcare,226.24, 09-Nov-2012
342,Revenue,CCHD,Home care - Elderly MH - North,Other Small Contracts,Brunelcare,230.28, 09-Nov-2012
343,Revenue,CCHD,Elderly MH Day Care North,Private & Voluntary Day Care,Brunelcare,210.08, 09-Nov-2012
344,Revenue,CCHD,Home Care - Elderly - South,Other Small Contracts,Brunelcare,2602.22, 16-Nov-2012
345,Revenue,CCHD,Home Care - Elderly - North,Other Small Contracts,Brunelcare,3555.2, 16-Nov-2012
346,Revenue,CCHD,Day Care - South,Private & Voluntary Day Care,Brunelcare,145.44, 16-Nov-2012
347,Revenue,CCHD,Day Care - North,Private & Voluntary Day Care,Brunelcare,109.08, 16-Nov-2012
348,Revenue,CCHD,Under 65s -MH  Home Care Purch,Other Small Contracts,Brunelcare,234.32, 16-Nov-2012
349,Revenue,CCHD,Home care - Elderly MH - North,Other Small Contracts,Brunelcare,234.32, 16-Nov-2012
350,Revenue,CCHD,Elderly MH Day Care North,Private & Voluntary Day Care,Brunelcare,210.08, 16-Nov-2012
351,Revenue,CCHD,Home Care - Elderly - South,Other Small Contracts,Brunelcare,2565.86, 16-Nov-2012
352,Revenue,CCHD,Home Care - Elderly - North,Other Small Contracts,Brunelcare,3781.44, 16-Nov-2012
353,Revenue,CCHD,Day Care - South,Private & Voluntary Day Care,Brunelcare,72.72, 16-Nov-2012
354,Revenue,CCHD,Day Care - North,Private & Voluntary Day Care,Brunelcare,84.84, 16-Nov-2012
355,Revenue,CCHD,Under 65s -MH  Home Care Purch,Other Small Contracts,Brunelcare,218.16, 16-Nov-2012
356,Revenue,CCHD,Home care - Elderly MH - North,Other Small Contracts,Brunelcare,226.24, 16-Nov-2012
357,Revenue,CCHD,Elderly MH Day Care North,Private & Voluntary Day Care,Brunelcare,242.4, 16-Nov-2012
358,Revenue,CCHD,Home Care - Elderly - North,Private & Voluntary Home Care,Brunelcare,16507.44, 27-Nov-2012
359,Revenue,CCHD,Information Systems - Software,Computer Equipment - Purchase,BT Global Services Solutions,978.04, 08-Nov-2012
360,Revenue,CCHD,Woodleaze,Cleaning & Domestic Supplies,Bunzl Cleaning & Hygiene Supplies,796.39, 15-Nov-2012
361,Revenue,CCHD,Bed purchasing - Phys Dis - North,Nursing Homes,Bupa Care Services  Bridge House,5795.92, 27-Nov-2012
362,Revenue,CCHD,South Glos Users in all other LA Homes,Nursing Homes,Bupa Care Services  Bridge House,598.4, 27-Nov-2012
363,Revenue,CCHD,Bed purchasing - Elderly MH - North,Residential Homes,Bupa Care Services  Bridge House,1880, 27-Nov-2012
364,Revenue,CCHD,Supported Living - PS,Private & Voluntary Home Care,Camphill Communities Thornbury Limited,1736.4, 23-Nov-2012
365,Revenue,CCHD,Supported Living - KD,Private & Voluntary Home Care,Camphill Communities Thornbury Limited,2475, 22-Nov-2012
366,Revenue,CCHD,Supported Living - KD,Private & Voluntary Home Care,Camphill Communities Thornbury Limited,2572.8, 23-Nov-2012
367,Revenue,CCHD,Supported Living - KD,Private & Voluntary Home Care,Camphill Communities Thornbury Limited,2030.28, 23-Nov-2012
368,Revenue,CCHD,Supported Living - KD,Private & Voluntary Day Care,Camphill Communities Thornbury Limited,1997.32, 23-Nov-2012
369,Revenue,CCHD,Supported Living - KD,Private & Voluntary Home Care,Camphill Communities Thornbury Limited,2112.64, 30-Nov-2012
370,Revenue,CCHD,Supported Living - KD,Private & Voluntary Home Care,Camphill Communities Thornbury Limited,1997.32, 30-Nov-2012
371,Revenue,CCHD,Supported Living - KD,Private & Voluntary Home Care,Camphill Communities Thornbury Limited,2216.04, 30-Nov-2012
372,Revenue,CCHD,Supported Living - KD,Private & Voluntary Home Care,Camphill Communities Thornbury Limited,1775.92, 30-Nov-2012
373,Revenue,CCHD,Supported Living - KD,Private & Voluntary Home Care,Camphill Communities Thornbury Limited,2086.8, 30-Nov-2012
374,Revenue,CCHD,Supported Living - KD,Private & Voluntary Home Care,Camphill Communities Thornbury Limited,2269.12, 23-Nov-2012
375,Revenue,CCHD,Bed purchasing - Under 65s PWLD - North,Residential Homes,Camphill Devon Community,3185.24, 27-Nov-2012
376,Revenue,CCHD,Bed purchasing - Under 65s PWLD - North,Residential Homes,Camphill Devon Community,2234.08, 27-Nov-2012
377,Revenue,CCHD,Supported Living - PS,Private & Voluntary Home Care,Camphill Village Trust,1449.11, 28-Nov-2012
378,Revenue,CCHD,Home Care - Elderly - South,Other Small Contracts,Care 1st Homecare,2421.9, 15-Nov-2012
379,Revenue,CCHD,Home Care - Elderly - North,Other Small Contracts,Care 1st Homecare,5001.84, 15-Nov-2012
380,Revenue,CCHD,Day Care - South,Private & Voluntary Day Care,Care 1st Homecare,166.05, 15-Nov-2012
381,Revenue,CCHD,Day Care - North,Private & Voluntary Day Care,Care 1st Homecare,299.7, 15-Nov-2012
382,Revenue,CCHD,Home care - Elderly MH - North,Other Small Contracts,Care 1st Homecare,222.75, 15-Nov-2012
383,Revenue,CCHD,Elderly MH Day Care North,Private & Voluntary Day Care,Care 1st Homecare,32.4, 15-Nov-2012
384,Revenue,CCHD,Home Care - LD Under 65 - South,Private & Voluntary Home Care,Care 1st Homecare,48.6, 15-Nov-2012
385,Revenue,CCHD,PWLD Home Care - Under 65 - KH,Private & Voluntary Home Care,Care 1st Homecare,166.05, 15-Nov-2012
386,Revenue,CCHD,Home Care - Elderly - South,Other Small Contracts,Care 1st Homecare,2438.1, 15-Nov-2012
387,Revenue,CCHD,Home Care - Elderly - North,Other Small Contracts,Care 1st Homecare,5736.43, 15-Nov-2012
388,Revenue,CCHD,Day Care - South,Private & Voluntary Day Care,Care 1st Homecare,162, 15-Nov-2012
389,Revenue,CCHD,Day Care - North,Private & Voluntary Day Care,Care 1st Homecare,267.3, 15-Nov-2012
390,Revenue,CCHD,Home care - Elderly MH - North,Other Small Contracts,Care 1st Homecare,218.7, 15-Nov-2012
391,Revenue,CCHD,Elderly MH Day Care North,Private & Voluntary Day Care,Care 1st Homecare,32.4, 15-Nov-2012
392,Revenue,CCHD,Home Care - LD Under 65 - South,Private & Voluntary Home Care,Care 1st Homecare,64.8, 15-Nov-2012
393,Revenue,CCHD,PWLD Home Care - Under 65 - KH,Private & Voluntary Home Care,Care 1st Homecare,137.7, 15-Nov-2012
394,Revenue,CCHD,Home Care - Elderly - South,Other Small Contracts,Care 1st Homecare,2656.8, 22-Nov-2012
395,Revenue,CCHD,Home Care - Elderly - North,Other Small Contracts,Care 1st Homecare,5912.79, 22-Nov-2012
396,Revenue,CCHD,Day Care - South,Private & Voluntary Day Care,Care 1st Homecare,162, 22-Nov-2012
397,Revenue,CCHD,Day Care - North,Private & Voluntary Day Care,Care 1st Homecare,299.7, 22-Nov-2012
398,Revenue,CCHD,Home care - Elderly MH - North,Other Small Contracts,Care 1st Homecare,68.85, 22-Nov-2012
399,Revenue,CCHD,Home Care - LD Under 65 - South,Private & Voluntary Home Care,Care 1st Homecare,129.6, 22-Nov-2012
400,Revenue,CCHD,PWLD Home Care - Under 65 - KH,Private & Voluntary Home Care,Care 1st Homecare,170.1, 22-Nov-2012
401,Revenue,CCHD,Bed Purchasing - PWLD S 117 Placements,Residential Homes,Care Community Ltd,7464.72, 27-Nov-2012
402,Revenue,CCHD,Supported Living - KD,Private & Voluntary Home Care,Care Horizons Limited,5322.68, 16-Nov-2012
403,Revenue,CCHD,Supported Living - KD,Private & Voluntary Home Care,Care Horizons Limited,5438.3, 30-Nov-2012
404,Revenue,CCHD,Purchase of Non-Res Care - KD,Private & Voluntary Day Care,Care Horizons Limited,1667.28, 30-Nov-2012
405,Revenue,CCHD,Purchase of Non-Res Care - KD,Private & Voluntary Day Care,Care Horizons Limited,1188.77, 30-Nov-2012
406,Revenue,CCHD,Purchase of Non-Res Care - KD,Private & Voluntary Day Care,Care Horizons Limited,1306.35, 30-Nov-2012
407,Revenue,CCHD,Supported Living - PS,Private & Voluntary Home Care,Care Horizons Limited,1844.8, 20-Nov-2012
408,Revenue,CCHD,Purchase of Non-Res Care - KD,Private & Voluntary Day Care,Care Horizons Limited,1494.28, 30-Nov-2012
409,Revenue,CCHD,Supported Living - PS,Private & Voluntary Home Care,Care Horizons Limited,558.55, 30-Nov-2012
410,Revenue,CCHD,Supported Living - KD,Private & Voluntary Home Care,Care Horizons Limited,5322.68, 30-Nov-2012
411,Revenue,CCHD,Day Care - South,Private & Voluntary Day Care,Care Horizons Limited,360.22, 09-Nov-2012
412,Revenue,CCHD,Day Care - North,Private & Voluntary Day Care,Care Horizons Limited,243.04, 09-Nov-2012
413,Revenue,CCHD,Training - Adult Services,Training Expenses,Care Learning Limited,6000, 30-Nov-2012
414,Revenue,CCHD,Home Care - Elderly - South,Other Small Contracts,Care UK,7460.46, 07-Nov-2012
415,Revenue,CCHD,Home Care - Elderly - North,Other Small Contracts,Care UK,3697.76, 07-Nov-2012
416,Revenue,CCHD,Day Care - South,Private & Voluntary Day Care,Care UK,385.82, 07-Nov-2012
417,Revenue,CCHD,Day Care - North,Private & Voluntary Day Care,Care UK,851.86, 07-Nov-2012
418,Revenue,CCHD,Home care - Elderly MH - North,Other Small Contracts,Care UK,714.34, 07-Nov-2012
419,Revenue,CCHD,Elderly MH Day Care North,Private & Voluntary Day Care,Care UK,194.82, 07-Nov-2012
420,Revenue,CCHD,Home Care - Elderly - South,Other Small Contracts,Care UK,7785.16, 23-Nov-2012
421,Revenue,CCHD,Home Care - Elderly - North,Other Small Contracts,Care UK,3892.58, 23-Nov-2012
422,Revenue,CCHD,Day Care - South,Private & Voluntary Day Care,Care UK,347.62, 23-Nov-2012
423,Revenue,CCHD,Day Care - North,Private & Voluntary Day Care,Care UK,622.66, 23-Nov-2012
424,Revenue,CCHD,Home care - Elderly MH - North,Other Small Contracts,Care UK,706.7, 23-Nov-2012
425,Revenue,CCHD,Elderly MH Day Care North,Private & Voluntary Day Care,Care UK,206.28, 23-Nov-2012
426,Revenue,CCHD,Home Care - Elderly - South,Other Small Contracts,Care UK,7773.7, 23-Nov-2012
427,Revenue,CCHD,Home Care - Elderly - North,Other Small Contracts,Care UK,3682.48, 23-Nov-2012
428,Revenue,CCHD,Day Care - South,Private & Voluntary Day Care,Care UK,347.62, 23-Nov-2012
429,Revenue,CCHD,Day Care - North,Private & Voluntary Day Care,Care UK,565.36, 23-Nov-2012
430,Revenue,CCHD,Home care - Elderly MH - North,Other Small Contracts,Care UK,725.8, 23-Nov-2012
431,Revenue,CCHD,Elderly MH Day Care North,Private & Voluntary Day Care,Care UK,183.36, 23-Nov-2012
432,Revenue,CCHD,Day Care - South,Private & Voluntary Day Care,Carers R Us (Bristol) Limited,500.22, 13-Nov-2012
433,Revenue,CCHD,Home Care - Elderly - South,Other Small Contracts,Cash Friday at Lloyds TSB,196.86, 02-Nov-2012
434,Revenue,CCHD,Home Care - Elderly - North,Other Small Contracts,Cash Friday at Lloyds TSB,1119.4, 02-Nov-2012
435,Revenue,CCHD,Day Care - North,Private & Voluntary Day Care,Cash Friday at Lloyds TSB,88.78, 02-Nov-2012
436,Revenue,CCHD,Home Care - Elderly - South,Other Small Contracts,Cash Friday at Lloyds TSB,146.68, 02-Nov-2012
437,Revenue,CCHD,Home Care - Elderly - North,Other Small Contracts,Cash Friday at Lloyds TSB,1123.26, 02-Nov-2012
438,Revenue,CCHD,Day Care - North,Private & Voluntary Day Care,Cash Friday at Lloyds TSB,88.78, 02-Nov-2012
439,Revenue,CCHD,Home Care - Elderly - South,Other Small Contracts,Cash Friday at Lloyds TSB,100.36, 02-Nov-2012
440,Revenue,CCHD,Home Care - Elderly - North,Other Small Contracts,Cash Friday at Lloyds TSB,1030.62, 02-Nov-2012
441,Revenue,CCHD,Day Care - North,Private & Voluntary Day Care,Cash Friday at Lloyds TSB,27.02, 02-Nov-2012
442,Revenue,CCHD,Home Care - Elderly - South,Other Small Contracts,Cash Friday at Lloyds TSB,100.36, 20-Nov-2012
443,Revenue,CCHD,Home Care - Elderly - North,Other Small Contracts,Cash Friday at Lloyds TSB,1057.64, 20-Nov-2012
444,Revenue,CCHD,Day Care - North,Private & Voluntary Day Care,Cash Friday at Lloyds TSB,27.02, 20-Nov-2012
445,Revenue,CCHD,Home Care - Elderly - South,Other Small Contracts,Cash Friday at Lloyds TSB,100.36, 20-Nov-2012
446,Revenue,CCHD,Home Care - Elderly - North,Other Small Contracts,Cash Friday at Lloyds TSB,1108.8, 20-Nov-2012
447,Revenue,CCHD,Day Care - North,Private & Voluntary Day Care,Cash Friday at Lloyds TSB,27.02, 20-Nov-2012
448,Revenue,CCHD,Frenchay Hospital Purchasing,Nursing Homes,Cedar Care Homes Ltd,1041.52, 27-Nov-2012
449,Revenue,CCHD,Frenchay Hospital Purchasing,Residential Homes,Centenary Care Homes Ltd,1239.2, 27-Nov-2012
450,Revenue,CCHD,Bed Purchasing - Elderly - South,Residential Homes,Cepen Lodge Care Home,2155.6, 27-Nov-2012
451,Revenue,CCHD,Southmead Hospital Purchasing,Residential Homes,Charlton House Residential Home,1372.96, 27-Nov-2012
452,Revenue,CCHD,Home Care - Elderly - South,Other Small Contracts,Cherish Able Care Limited,2764.52, 07-Nov-2012
453,Revenue,CCHD,Home care - Elderly MH - North,Other Small Contracts,Cherish Able Care Limited,370.8, 07-Nov-2012
454,Revenue,CCHD,Home Care - Elderly - South,Other Small Contracts,Cherish Able Care Limited,2756.28, 09-Nov-2012
455,Revenue,CCHD,Home care - Elderly MH - North,Other Small Contracts,Cherish Able Care Limited,350.2, 09-Nov-2012
456,Revenue,CCHD,Home Care - Elderly - South,Other Small Contracts,Cherish Able Care Limited,3230.08, 16-Nov-2012
457,Revenue,CCHD,Home care - Elderly MH - North,Other Small Contracts,Cherish Able Care Limited,160.68, 16-Nov-2012
458,Revenue,CCHD,Home Care - Elderly - South,Other Small Contracts,Cherish Able Care Limited,3485.52, 23-Nov-2012
459,Revenue,CCHD,Home care - Elderly MH - North,Other Small Contracts,Cherish Able Care Limited,32.96, 23-Nov-2012
460,Revenue,CCHD,Home Care - Elderly - South,Other Small Contracts,Cherish Able Care Limited,3617.36, 30-Nov-2012
461,Revenue,CCHD,Home care - Elderly MH - North,Other Small Contracts,Cherish Able Care Limited,57.68, 30-Nov-2012
462,Revenue,CCHD,Bed purchasing -S28A  Under 65 - North,Residential Homes,Chescombe Lodge,8489.04, 27-Nov-2012
463,Revenue,CCHD,Bed Purchasing - Under 65s PWLD - South,Residential Homes,Chosen Court,6846.32, 27-Nov-2012
464,Revenue,CCHD,Bed Purchasing - PWLD S 117 Placements,Residential Homes,Chosen Court,10082.4, 27-Nov-2012
465,Revenue,CCHD,Bed Purchasing - Under 65s PWLD - South,Residential Homes,Chosen Court,5495.84, 27-Nov-2012
466,Revenue,CCHD,Bed purchasing - Under 65s PWLD - North,Residential Homes,Church House,10256, 27-Nov-2012
467,Revenue,CCHD,Bed purchasing - Under 65s PWLD - North,Residential Homes,Church House,5761.36, 27-Nov-2012
468,Revenue,CCHD,Bed Purchasing - Elderly - South,Residential Homes,Cleeve Lodge,1597.04, 27-Nov-2012
469,Revenue,CCHD,Bed Purchasing - Elderly - North,Residential Homes,Cleeve Lodge,1009.44, 27-Nov-2012
470,Revenue,CCHD,Southmead Hospital Purchasing,Residential Homes,Cleeve Lodge,1425.36, 27-Nov-2012
471,Revenue,CCHD,Bed Purchasing - Elderly - South,Residential Homes,Cleeve Lodge,1750.68, 27-Nov-2012
472,Revenue,CCHD,Bed Purchasing - Elderly - South,Residential Homes,Cleeve Lodge,1449.08, 27-Nov-2012
473,Revenue,CCHD,Bed Purchasing - Elderly - South,Residential Homes,Cleeve Lodge,2236.96, 27-Nov-2012
474,Revenue,CCHD,Bed Purchasing - Elderly - South,Residential Homes,Cleeve Lodge,1767.96, 27-Nov-2012
475,Revenue,CCHD,Frenchay Hospital Purchasing,Residential Homes,Collingwood Residential Home,1027.68, 27-Nov-2012
476,Revenue,CCHD,Bed Purchasing - Elderly - South,Residential Homes,Collingwood Residential Home,1284.12, 27-Nov-2012
477,Revenue,CCHD,Bed Purchasing - Elderly - South,Residential Homes,Collingwood Residential Home,1058.6, 27-Nov-2012
478,Revenue,CCHD,Bed Purchasing - Elderly - South,Residential Homes,Collingwood Residential Home,1323.64, 27-Nov-2012
479,Revenue,CCHD,Bed Purchasing - Elderly MH - South,Residential Homes,Collingwood Residential Home,1298.4, 27-Nov-2012
480,Revenue,CCHD,Bed Purchasing - Elderly - South,Residential Homes,Collingwood Residential Home,1247.92, 27-Nov-2012
481,Revenue,CCHD,Bed Purchasing - Elderly - South,Residential Homes,Collingwood Residential Home,1373.76, 27-Nov-2012
482,Revenue,CCHD,Bed Purchasing - Elderly - South,Residential Homes,Collingwood Residential Home,1245.88, 27-Nov-2012
483,Revenue,CCHD,Bed Purchasing - Elderly - South,Residential Homes,Collingwood Residential Home,1396.72, 27-Nov-2012
484,Revenue,CCHD,Planning and Partnerships procurement,Conference Expenses,Community Catalysts C.I.C,798.39, 27-Nov-2012
485,Revenue,CCHD,Bed and Breakfast,Bed & Breakfast,Connolly & Callaghan Limited,441, 08-Nov-2012
486,Revenue,CCHD,Bed and Breakfast,Bed & Breakfast,Connolly & Callaghan Limited,511, 08-Nov-2012
487,Revenue,CCHD,Bed and Breakfast,Bed & Breakfast,Connolly & Callaghan Limited,651, 08-Nov-2012
488,Revenue,CCHD,Bed and Breakfast,Bed & Breakfast,Connolly & Callaghan Limited,441, 14-Nov-2012
489,Revenue,CCHD,Bed and Breakfast,Bed & Breakfast,Connolly & Callaghan Limited,511, 14-Nov-2012
490,Revenue,CCHD,Bed and Breakfast,Bed & Breakfast,Connolly & Callaghan Limited,600, 14-Nov-2012
491,Revenue,CCHD,Bed and Breakfast,Bed & Breakfast,Connolly & Callaghan Limited,441, 21-Nov-2012
492,Revenue,CCHD,Bed and Breakfast,Bed & Breakfast,Connolly & Callaghan Limited,511, 21-Nov-2012
493,Revenue,CCHD,Bed and Breakfast,Bed & Breakfast,Connolly & Callaghan Limited,546, 28-Nov-2012
494,Revenue,CCHD,Bed and Breakfast,Bed & Breakfast,Connolly & Callaghan Limited,441, 28-Nov-2012
495,Revenue,CCHD,Bed and Breakfast,Bed & Breakfast,Connolly & Callaghan Limited,511, 28-Nov-2012
496,Revenue,CCHD,Newton House,Gas,Corona Energy Retail 3 Limited,693.98, 02-Nov-2012
497,Revenue,CCHD,Alexandra Way,Gas,Corona Energy Retail 3 Limited,1066.1, 02-Nov-2012
498,Revenue,CCHD,Woodleaze,Gas,Corona Energy Retail 3 Limited,926.06, 02-Nov-2012
499,Revenue,CCHD,Bed purchasing -S28A  Under 65 - North,Residential Homes,Cream Ii Ltd  Longrun House,7845.84, 27-Nov-2012
500,Revenue,CCHD,Bed Purchasing - Under 65s PWLD - South,Residential Homes,Cream Ii Ltd  Longrun House,6670.95, 27-Nov-2012
501,Revenue,CCHD,Bed purchasing -S28A  Under 65 - North,Residential Homes,Creedy Court,9074.84, 27-Nov-2012
502,Revenue,CCHD,Bed Purchasing - S28A - Over 65- North,Residential Homes,Creedy Court,7548.92, 27-Nov-2012
503,Revenue,CCHD,Brokerage and Information Service,Grants to Voluntary Bodies,D H I,9210.08, 27-Nov-2012
504,Revenue,CCHD,Tenancy Start Up Scheme,Other Supplies & Services,D H I,1250, 15-Nov-2012
505,Revenue,CCHD,Alexandra Way,"Provisions (Food, etc)",Dairy Crest Limited,534.39, 30-Nov-2012
506,Revenue,CCHD,Purchase of Non-Res Care - PS,Private & Voluntary Day Care,Daneswood,5023, 13-Nov-2012
507,Revenue,CCHD,Bed Purchasing - Under 65s PWLD - South,Residential Homes,Daneswood,10754.88, 27-Nov-2012
508,Revenue,CCHD,Bed purchasing - Under 65s PWLD - North,Residential Homes,Daneswood,8901.24, 27-Nov-2012
509,Revenue,CCHD,Learning Difficulties PSL,Other Supplies & Services,Individual,2016.44, 22-Nov-2012
510,Revenue,CCHD,Day Care - South,Private & Voluntary Day Care,Deafblind UK DO NOT USE,592.8, 01-Nov-2012
511,Revenue,CCHD,Training - Adult Services,Training Expenses,Denise Hope,750, 21-Nov-2012
512,Revenue,CCHD,Purchase of Non-Res Care - KD,Private & Voluntary Day Care,Design 4 Life Ltd,1472.08, 26-Nov-2012
513,Revenue,CCHD,Purchase of Non-Res Care - KD,Private & Voluntary Day Care,Design 4 Life Ltd,1622.46, 30-Nov-2012
514,Revenue,CCHD,Bed Purchasing - Under 65s PWLD - South,Residential Homes,Devon & Cornwall Autistic Community Trus,8588.04, 27-Nov-2012
515,Revenue,CCHD,Day Care - South,Private & Voluntary Day Care,Dhek Bhal,740.96, 29-Nov-2012
516,Revenue,CCHD,Day Care - South,Private & Voluntary Day Care,Dhek Bhal,547.22, 06-Nov-2012
517,Revenue,CCHD,Bed Purchasing - Under 65s PWLD - South,Residential Homes,Dimensions (Uk),4763.44, 27-Nov-2012
518,Revenue,CCHD,Supported Living - PS,Private & Voluntary Home Care,Dimensions (UK) Ltd,8006.68, 13-Nov-2012
519,Revenue,CCHD,Supported Living - PS,Private & Voluntary Home Care,Dimensions (UK) Ltd,1779.04, 28-Nov-2012
520,Revenue,CCHD,Supported Living - PS,Private & Voluntary Home Care,Dimensions (UK) Ltd,2047.48, 16-Nov-2012
521,Revenue,CCHD,Community Support ACM - South,Preventative Assistance,Dobbins Industrial Cleaning Limited,580, 15-Nov-2012
522,Revenue,CCHD,Community Support ACM - South,Preventative Assistance,Dobbins Industrial Cleaning Limited,430, 16-Nov-2012
523,Revenue,CCHD,Home Care - Elderly - South,Other Small Contracts,DoCare Ltd,3303.3, 02-Nov-2012
524,Revenue,CCHD,Home Care - Elderly - North,Other Small Contracts,DoCare Ltd,3603.6, 02-Nov-2012
525,Revenue,CCHD,Day Care - South,Private & Voluntary Day Care,DoCare Ltd,110.88, 02-Nov-2012
526,Revenue,CCHD,Day Care - North,Private & Voluntary Day Care,DoCare Ltd,388.08, 02-Nov-2012
527,Revenue,CCHD,Home care - Elderly MH - North,Other Small Contracts,DoCare Ltd,92.4, 02-Nov-2012
528,Revenue,CCHD,Elderly MH Day Care North,Private & Voluntary Day Care,DoCare Ltd,110.88, 02-Nov-2012
529,Revenue,CCHD,Home Care - Elderly - South,Other Small Contracts,DoCare Ltd,3331.02, 15-Nov-2012
530,Revenue,CCHD,Home Care - Elderly - North,Other Small Contracts,DoCare Ltd,4088.7, 15-Nov-2012
531,Revenue,CCHD,Day Care - South,Private & Voluntary Day Care,DoCare Ltd,115.5, 15-Nov-2012
532,Revenue,CCHD,Day Care - North,Private & Voluntary Day Care,DoCare Ltd,300.3, 15-Nov-2012
533,Revenue,CCHD,Home care - Elderly MH - North,Other Small Contracts,DoCare Ltd,97.02, 15-Nov-2012
534,Revenue,CCHD,Elderly MH Day Care North,Private & Voluntary Day Care,DoCare Ltd,60.06, 15-Nov-2012
535,Revenue,CCHD,Home Care - Elderly - South,Other Small Contracts,DoCare Ltd,3654.42, 23-Nov-2012
536,Revenue,CCHD,Home Care - Elderly - North,Other Small Contracts,DoCare Ltd,4084.08, 23-Nov-2012
537,Revenue,CCHD,Day Care - South,Private & Voluntary Day Care,DoCare Ltd,115.5, 23-Nov-2012
538,Revenue,CCHD,Day Care - North,Private & Voluntary Day Care,DoCare Ltd,392.7, 23-Nov-2012
539,Revenue,CCHD,Elderly MH Day Care North,Private & Voluntary Day Care,DoCare Ltd,60.06, 23-Nov-2012
540,Revenue,CCHD,Home Care - Elderly - South,Other Small Contracts,DoCare Ltd,3760.68, 26-Nov-2012
541,Revenue,CCHD,Home Care - Elderly - North,Other Small Contracts,DoCare Ltd,4684.68, 26-Nov-2012
542,Revenue,CCHD,Day Care - South,Private & Voluntary Day Care,DoCare Ltd,115.5, 26-Nov-2012
543,Revenue,CCHD,Day Care - North,Private & Voluntary Day Care,DoCare Ltd,351.12, 26-Nov-2012
544,Revenue,CCHD,Elderly MH Day Care North,Private & Voluntary Day Care,DoCare Ltd,110.88, 26-Nov-2012
545,Revenue,CCHD,Bed Purchasing - Elderly - South,Nursing Homes,Dunkirk Memorial House,1158.2, 27-Nov-2012
546,Revenue,CCHD,MH Purchasing - Younger,Residential Homes,Dunraven House,1810.24, 27-Nov-2012
547,Revenue,CCHD,Bed and Breakfast,Bed & Breakfast,E J Bartlett,1050, 02-Nov-2012
548,Revenue,CCHD,Bed and Breakfast,Bed & Breakfast,E J Bartlett,1470, 07-Nov-2012
549,Revenue,CCHD,Bed and Breakfast,Bed & Breakfast,E J Bartlett,525, 07-Nov-2012
550,Revenue,CCHD,Bed and Breakfast,Bed & Breakfast,E J Bartlett,630, 07-Nov-2012
551,Revenue,CCHD,Bed and Breakfast,Bed & Breakfast,E J Bartlett,1470, 13-Nov-2012
552,Revenue,CCHD,Bed and Breakfast,Bed & Breakfast,E J Bartlett,525, 16-Nov-2012
553,Revenue,CCHD,Bed and Breakfast,Bed & Breakfast,E J Bartlett,630, 13-Nov-2012
554,Revenue,CCHD,Bed and Breakfast,Bed & Breakfast,E J Bartlett,1470, 21-Nov-2012
555,Revenue,CCHD,Bed and Breakfast,Bed & Breakfast,E J Bartlett,630, 21-Nov-2012
556,Revenue,CCHD,Bed and Breakfast,Bed & Breakfast,E J Bartlett,525, 23-Nov-2012
557,Revenue,CCHD,Bed and Breakfast,Bed & Breakfast,E J Bartlett,600, 23-Nov-2012
558,Revenue,CCHD,Minor Adaptations Service,Operational Equipment,Eastman & Co (Timber) Limited,964.46, 13-Nov-2012
559,Revenue,CCHD,Bed purchasing - Under 65s PWLD - North,Residential Homes,Ebley House,7600, 27-Nov-2012
560,Revenue,CCHD,Southmead Hospital Purchasing,Residential Homes,Edgecumbe Lodge,1239.2, 27-Nov-2012
561,Revenue,CCHD,Bed Purchasing - Elderly - South,Residential Homes,Edgecumbe Lodge,1302.52, 27-Nov-2012
562,Revenue,CCHD,Bed Purchasing - Elderly - South,Residential Homes,Edgecumbe Lodge,1229.4, 27-Nov-2012
563,Revenue,CCHD,Bed Purchasing - Elderly - South,Residential Homes,Edgecumbe Lodge,4086.01, 27-Nov-2012
564,Revenue,CCHD,Bed Purchasing - Elderly - South,Residential Homes,Edgecumbe Lodge,993.76, 27-Nov-2012
565,Revenue,CCHD,Frenchay Hospital Purchasing,Residential Homes,Edgecumbe Lodge,1110.52, 27-Nov-2012
566,Revenue,CCHD,Frenchay Hospital Purchasing,Residential Homes,Edgecumbe Lodge,1056, 27-Nov-2012
567,Revenue,CCHD,Bed Purchasing - Elderly MH - South,Residential Homes,Edgecumbe Lodge,1147.84, 27-Nov-2012
568,Revenue,CCHD,Southmead Hospital Purchasing,Residential Homes,Edgemont House Ltd,1403.2, 27-Nov-2012
569,Revenue,CCHD,Southmead Hospital Purchasing,Residential Homes,Edgemont House Ltd,2110.63, 27-Nov-2012
570,Revenue,CCHD,Bed Purchasing - Elderly - South,Residential Homes,Edgemont House Ltd,1353.44, 27-Nov-2012
571,Revenue,CCHD,Bed Purchasing - Elderly - South,Residential Homes,Edgemont House Ltd,1243.44, 27-Nov-2012
572,Revenue,CCHD,Southmead Hospital Purchasing,Residential Homes,Edgemont House Ltd,1880, 27-Nov-2012
573,Revenue,CCHD,Southmead Hospital Purchasing,Residential Homes,Edgemont House Ltd,1368.5, 27-Nov-2012
574,Revenue,CCHD,Frenchay Hospital Purchasing,Residential Homes,Edgemont House Ltd,1361.56, 27-Nov-2012
575,Revenue,CCHD,Bed Purchasing - Elderly - South,Residential Homes,Edgemont House Ltd,940, 27-Nov-2012
576,Revenue,CCHD,South Glos Users in South Glos Homes,Nursing Homes,Edgemont View Nursing Home,823.01, 27-Nov-2012
577,Revenue,CCHD,Bed Purchasing - Elderly - South,Nursing Homes,Edgemont View Nursing Home,1418.52, 27-Nov-2012
578,Revenue,CCHD,Frenchay Hospital Purchasing,Nursing Homes,Edgemont View Nursing Home,1341.28, 27-Nov-2012
579,Revenue,CCHD,Bed Purchasing - Elderly - South,Nursing Homes,Edgemont View Nursing Home,1295.2, 27-Nov-2012
580,Revenue,CCHD,Bed Purchasing - Elderly - South,Nursing Homes,Edgemont View Nursing Home,1602.76, 27-Nov-2012
581,Revenue,CCHD,Frenchay Hospital Purchasing,Nursing Homes,Edgemont View Nursing Home,606.84, 27-Nov-2012
582,Revenue,CCHD,Telecare,Other Supplies & Services,Eldercare,13171.77, 21-Nov-2012
583,Revenue,CCHD,Supporting People Programme,Grants to Voluntary Bodies,Elim Housing Association Ltd,4898.24, 01-Nov-2012
584,Revenue,CCHD,Supporting People Programme,Grants to Voluntary Bodies,Elim Housing Association Ltd,4898.24, 30-Nov-2012
585,Revenue,CCHD,Home Care - Elderly - South,Other Small Contracts,Elite Home Care Ltd,2667.28, 02-Nov-2012
586,Revenue,CCHD,Day Care - South,Private & Voluntary Day Care,Elite Home Care Ltd,155.88, 02-Nov-2012
587,Revenue,CCHD,Under 65s -MH  Home Care Purch,Other Small Contracts,Elite Home Care Ltd,86.6, 02-Nov-2012
588,Revenue,CCHD,Home care - Elderly MH - North,Other Small Contracts,Elite Home Care Ltd,368.05, 02-Nov-2012
589,Revenue,CCHD,Home Care - Elderly - South,Other Small Contracts,Elite Home Care Ltd,2658.62, 02-Nov-2012
590,Revenue,CCHD,Day Care - South,Private & Voluntary Day Care,Elite Home Care Ltd,151.55, 02-Nov-2012
591,Revenue,CCHD,Under 65s -MH  Home Care Purch,Other Small Contracts,Elite Home Care Ltd,82.27, 02-Nov-2012
592,Revenue,CCHD,Home care - Elderly MH - North,Other Small Contracts,Elite Home Care Ltd,355.06, 02-Nov-2012
593,Revenue,CCHD,Home Care - Elderly - South,Other Small Contracts,Elite Home Care Ltd,2281.91, 02-Nov-2012
594,Revenue,CCHD,Day Care - South,Private & Voluntary Day Care,Elite Home Care Ltd,51.96, 02-Nov-2012
595,Revenue,CCHD,Under 65s -MH  Home Care Purch,Other Small Contracts,Elite Home Care Ltd,86.6, 02-Nov-2012
596,Revenue,CCHD,Home care - Elderly MH - North,Other Small Contracts,Elite Home Care Ltd,363.72, 02-Nov-2012
597,Revenue,CCHD,Home Care - Elderly - South,Other Small Contracts,Elite Home Care Ltd,2585.01, 02-Nov-2012
598,Revenue,CCHD,Under 65s -MH  Home Care Purch,Other Small Contracts,Elite Home Care Ltd,86.6, 02-Nov-2012
599,Revenue,CCHD,Home care - Elderly MH - North,Other Small Contracts,Elite Home Care Ltd,363.72, 02-Nov-2012
600,Revenue,CCHD,Home Care - Elderly - South,Other Small Contracts,Elite Home Care Ltd,2190.98, 09-Nov-2012
601,Revenue,CCHD,Under 65s -MH  Home Care Purch,Other Small Contracts,Elite Home Care Ltd,86.6, 09-Nov-2012
602,Revenue,CCHD,Home care - Elderly MH - North,Other Small Contracts,Elite Home Care Ltd,363.72, 09-Nov-2012
603,Revenue,CCHD,Home Care - Elderly - South,Other Small Contracts,Elite Home Care Ltd,2251.6, 14-Nov-2012
604,Revenue,CCHD,Under 65s -MH  Home Care Purch,Other Small Contracts,Elite Home Care Ltd,86.6, 14-Nov-2012
605,Revenue,CCHD,Home care - Elderly MH - North,Other Small Contracts,Elite Home Care Ltd,363.72, 14-Nov-2012
606,Revenue,CCHD,Home Care - Elderly - South,Other Small Contracts,Elite Home Care Ltd,2165, 21-Nov-2012
607,Revenue,CCHD,Under 65s -MH  Home Care Purch,Other Small Contracts,Elite Home Care Ltd,82.27, 21-Nov-2012
608,Revenue,CCHD,Home care - Elderly MH - North,Other Small Contracts,Elite Home Care Ltd,355.06, 21-Nov-2012
609,Revenue,CCHD,Bed Purchasing - Elderly - South,Residential Homes,Elmbridge Residential Home Ltd,1309.56, 27-Nov-2012
610,Revenue,CCHD,Frenchay Hospital Purchasing,Nursing Homes,Elmwood Nursing Home,2213.12, 27-Nov-2012
611,Revenue,CCHD,Supporting People Programme,Grants to Voluntary Bodies,English Churches Housing Group,2069, 30-Nov-2012
612,Revenue,CCHD,Supporting People Programme,Grants to Voluntary Bodies,English Churches Housing Group,1441.12, 14-Nov-2012
613,Revenue,CCHD,Younger MH non-res purchasing,Private & Voluntary Day Care,Enham,638.72, 23-Nov-2012
614,Revenue,CCHD,Younger MH non-res purchasing,Private & Voluntary Day Care,Enham,638.72, 22-Nov-2012
615,Revenue,CCHD,Home Care - Elderly - South,Other Small Contracts,Everycare (Bristol) Ltd,2788.8, 02-Nov-2012
616,Revenue,CCHD,Home Care - Elderly - North,Other Small Contracts,Everycare (Bristol) Ltd,1906.8, 02-Nov-2012
617,Revenue,CCHD,Home Care - Elderly - South,Other Small Contracts,Everycare (Bristol) Ltd,2696.4, 02-Nov-2012
618,Revenue,CCHD,Home Care - Elderly - North,Other Small Contracts,Everycare (Bristol) Ltd,1948.8, 02-Nov-2012
619,Revenue,CCHD,Home Care - Elderly - South,Other Small Contracts,Everycare (Bristol) Ltd,2696.4, 12-Nov-2012
620,Revenue,CCHD,Home Care - Elderly - North,Other Small Contracts,Everycare (Bristol) Ltd,1974, 12-Nov-2012
621,Revenue,CCHD,Home Care - Elderly - South,Other Small Contracts,Everycare (Bristol) Ltd,2675.4, 15-Nov-2012
622,Revenue,CCHD,Home Care - Elderly - North,Other Small Contracts,Everycare (Bristol) Ltd,1965.6, 15-Nov-2012
623,Revenue,CCHD,Home Care - Elderly - South,Other Small Contracts,Everycare (Bristol) Ltd,2129.4, 22-Nov-2012
624,Revenue,CCHD,Home Care - Elderly - North,Other Small Contracts,Everycare (Bristol) Ltd,1873.2, 22-Nov-2012
625,Revenue,CCHD,Bed Purchasing - Elderly - South,Nursing Homes,Fairview Court,1182.44, 27-Nov-2012
626,Revenue,CCHD,Southmead Hospital Purchasing,Nursing Homes,Fairview Court,1467.32, 27-Nov-2012
627,Revenue,CCHD,Bed purchasing - Elderly MH - North,Nursing Homes,Fairview Court,1604.64, 27-Nov-2012
628,Revenue,CCHD,Southmead Hospital Purchasing,Nursing Homes,Fairview Court,1885.92, 27-Nov-2012
629,Revenue,CCHD,South Glos Users in South Glos Homes,Nursing Homes,Fairview Court,869.6, 27-Nov-2012
630,Revenue,CCHD,Bed Purchasing - Elderly MH - South,Residential Homes,Fairview Court,1403.2, 27-Nov-2012
631,Revenue,CCHD,Bed Purchasing - Elderly - South,Residential Homes,Fairview Court,2623.36, 27-Nov-2012
632,Revenue,CCHD,Bed Purchasing - Elderly - South,Residential Homes,Fairview Court,2118.56, 27-Nov-2012
633,Revenue,CCHD,South Glos Users in South Glos Homes,Nursing Homes,Fairview Court,1273.34, 27-Nov-2012
634,Revenue,CCHD,Bed Purchasing - Elderly - North,Nursing Homes,Fairview Court,1094.64, 27-Nov-2012
635,Revenue,CCHD,South Glos Users in South Glos Homes,Nursing Homes,Fairview Court,1288.87, 27-Nov-2012
636,Revenue,CCHD,Bed Purchasing - Elderly - South,Residential Homes,Fairview House,634.12, 27-Nov-2012
637,Revenue,CCHD,Frenchay Hospital Purchasing,Residential Homes,Fairview House,1233.32, 27-Nov-2012
638,Revenue,CCHD,Bed Purchasing - Elderly - South,Residential Homes,Fairview House,1255.24, 27-Nov-2012
639,Revenue,CCHD,Frenchay Hospital Purchasing,Residential Homes,Fairview House,995.44, 27-Nov-2012
640,Revenue,CCHD,Bed Purchasing - Elderly - South,Residential Homes,Fairview House,1239.2, 27-Nov-2012
641,Revenue,CCHD,Bed purchasing - Elderly S117 - South,Residential Homes,Fairview House,1870.92, 27-Nov-2012
642,Revenue,CCHD,Southmead Hospital Purchasing,Residential Homes,Fairview House,1021.08, 27-Nov-2012
643,Revenue,CCHD,Southmead Hospital Purchasing,Residential Homes,Fairview House,1111.28, 27-Nov-2012
644,Revenue,CCHD,Bed Purchasing - Elderly MH - South,Residential Homes,Fairview House,1097.2, 27-Nov-2012
645,Revenue,CCHD,Frenchay Hospital Purchasing,Residential Homes,Fairview House,1239.2, 27-Nov-2012
646,Revenue,CCHD,Southmead Hospital Purchasing,Residential Homes,Fairview House,1239.2, 27-Nov-2012
647,Revenue,CCHD,Bed Purchasing - Elderly MH - South,Residential Homes,Fairview House,1038.44, 27-Nov-2012
648,Revenue,CCHD,Bed Purchasing - Elderly MH - South,Residential Homes,Fairview House,1198.68, 27-Nov-2012
649,Revenue,CCHD,Bed Purchasing - Elderly - North,Residential Homes,Faith House,871.16, 27-Nov-2012
650,Revenue,CCHD,Frenchay Hospital Purchasing,Residential Homes,Faith House,1302, 27-Nov-2012
651,Revenue,CCHD,Bed purchasing - Under 65s PWLD - North,Residential Homes,Fernbank,16958.8, 27-Nov-2012
652,Revenue,CCHD,Purchase of Non-Res Care - PS,Private & Voluntary Day Care,Firstpoint Homecare Ltd,1284.67, 12-Nov-2012
653,Revenue,CCHD,Purchase of Non-Res Care - PS,Private & Voluntary Day Care,Firstpoint Homecare Ltd,1282.07, 12-Nov-2012
654,Revenue,CCHD,Purchase of Non-Res Care - PS,Private & Voluntary Day Care,Firstpoint Homecare Ltd,1282.07, 13-Nov-2012
655,Revenue,CCHD,Purchase of Non-Res Care - PS,Private & Voluntary Day Care,Firstpoint Homecare Ltd,1979.66, 14-Nov-2012
656,Revenue,CCHD,Purchase of Non-Res Care - PS,Private & Voluntary Day Care,Firstpoint Homecare Ltd,1047.43, 20-Nov-2012
657,Revenue,CCHD,Purchase of Non-Res Care - PS,Private & Voluntary Day Care,Firstpoint Homecare Ltd,1283.57, 23-Nov-2012
658,Revenue,CCHD,Home Care - Elderly - South,Other Small Contracts,Firstpoint Homecare Ltd,1660.6, 12-Nov-2012
659,Revenue,CCHD,Home Care - Elderly - North,Other Small Contracts,Firstpoint Homecare Ltd,695.4, 12-Nov-2012
660,Revenue,CCHD,Day Care - South,Private & Voluntary Day Care,Firstpoint Homecare Ltd,619.4, 12-Nov-2012
661,Revenue,CCHD,Day Care - North,Private & Voluntary Day Care,Firstpoint Homecare Ltd,380, 12-Nov-2012
662,Revenue,CCHD,Under 65s -MH  Home Care Purch,Other Small Contracts,Firstpoint Homecare Ltd,91.2, 12-Nov-2012
663,Revenue,CCHD,Younger MH non-res purchasing,Private & Voluntary Day Care,Firstpoint Homecare Ltd,167.2, 12-Nov-2012
664,Revenue,CCHD,Home care - Elderly MH - North,Other Small Contracts,Firstpoint Homecare Ltd,155.8, 12-Nov-2012
665,Revenue,CCHD,Elderly MH Day Care North,Private & Voluntary Day Care,Firstpoint Homecare Ltd,91.2, 12-Nov-2012
666,Revenue,CCHD,Home Care - Elderly - South,Other Small Contracts,Firstpoint Homecare Ltd,1683.4, 09-Nov-2012
667,Revenue,CCHD,Home Care - Elderly - North,Other Small Contracts,Firstpoint Homecare Ltd,729.6, 09-Nov-2012
668,Revenue,CCHD,Day Care - South,Private & Voluntary Day Care,Firstpoint Homecare Ltd,486.4, 09-Nov-2012
669,Revenue,CCHD,Day Care - North,Private & Voluntary Day Care,Firstpoint Homecare Ltd,342, 09-Nov-2012
670,Revenue,CCHD,Under 65s -MH  Home Care Purch,Other Small Contracts,Firstpoint Homecare Ltd,91.2, 09-Nov-2012
671,Revenue,CCHD,Younger MH non-res purchasing,Private & Voluntary Day Care,Firstpoint Homecare Ltd,129.2, 09-Nov-2012
672,Revenue,CCHD,Home care - Elderly MH - North,Other Small Contracts,Firstpoint Homecare Ltd,155.8, 09-Nov-2012
673,Revenue,CCHD,Elderly MH Day Care North,Private & Voluntary Day Care,Firstpoint Homecare Ltd,91.2, 09-Nov-2012
674,Revenue,CCHD,Home Care - Elderly - South,Other Small Contracts,Firstpoint Homecare Ltd,1740.4, 09-Nov-2012
675,Revenue,CCHD,Home Care - Elderly - North,Other Small Contracts,Firstpoint Homecare Ltd,699.2, 09-Nov-2012
676,Revenue,CCHD,Day Care - South,Private & Voluntary Day Care,Firstpoint Homecare Ltd,486.4, 09-Nov-2012
677,Revenue,CCHD,Day Care - North,Private & Voluntary Day Care,Firstpoint Homecare Ltd,380, 09-Nov-2012
678,Revenue,CCHD,Younger MH non-res purchasing,Private & Voluntary Day Care,Firstpoint Homecare Ltd,68.4, 09-Nov-2012
679,Revenue,CCHD,Home care - Elderly MH - North,Other Small Contracts,Firstpoint Homecare Ltd,155.8, 09-Nov-2012
680,Revenue,CCHD,Elderly MH Day Care North,Private & Voluntary Day Care,Firstpoint Homecare Ltd,95, 09-Nov-2012
681,Revenue,CCHD,Home Care - Elderly - South,Other Small Contracts,Firstpoint Homecare Ltd,1721.4, 09-Nov-2012
682,Revenue,CCHD,Home Care - Elderly - North,Other Small Contracts,Firstpoint Homecare Ltd,763.8, 09-Nov-2012
683,Revenue,CCHD,Day Care - South,Private & Voluntary Day Care,Firstpoint Homecare Ltd,524.4, 09-Nov-2012
684,Revenue,CCHD,Day Care - North,Private & Voluntary Day Care,Firstpoint Homecare Ltd,349.6, 09-Nov-2012
685,Revenue,CCHD,Under 65s -MH  Home Care Purch,Other Small Contracts,Firstpoint Homecare Ltd,91.2, 09-Nov-2012
686,Revenue,CCHD,Younger MH non-res purchasing,Private & Voluntary Day Care,Firstpoint Homecare Ltd,68.4, 09-Nov-2012
687,Revenue,CCHD,Home care - Elderly MH - North,Other Small Contracts,Firstpoint Homecare Ltd,155.8, 09-Nov-2012
688,Revenue,CCHD,Elderly MH Day Care North,Private & Voluntary Day Care,Firstpoint Homecare Ltd,91.2, 09-Nov-2012
689,Revenue,CCHD,Home Care - Elderly - South,Other Small Contracts,Firstpoint Homecare Ltd,1740.4, 14-Nov-2012
690,Revenue,CCHD,Home Care - Elderly - North,Other Small Contracts,Firstpoint Homecare Ltd,722, 14-Nov-2012
691,Revenue,CCHD,Day Care - South,Private & Voluntary Day Care,Firstpoint Homecare Ltd,596.6, 14-Nov-2012
692,Revenue,CCHD,Day Care - North,Private & Voluntary Day Care,Firstpoint Homecare Ltd,349.6, 14-Nov-2012
693,Revenue,CCHD,Under 65s -MH  Home Care Purch,Other Small Contracts,Firstpoint Homecare Ltd,91.2, 14-Nov-2012
694,Revenue,CCHD,Younger MH non-res purchasing,Private & Voluntary Day Care,Firstpoint Homecare Ltd,68.4, 14-Nov-2012
695,Revenue,CCHD,Home care - Elderly MH - North,Other Small Contracts,Firstpoint Homecare Ltd,155.8, 14-Nov-2012
696,Revenue,CCHD,Elderly MH Day Care North,Private & Voluntary Day Care,Firstpoint Homecare Ltd,91.2, 14-Nov-2012
697,Revenue,CCHD,Home Care - Elderly - South,Other Small Contracts,Firstpoint Homecare Ltd,1793.6, 28-Nov-2012
698,Revenue,CCHD,Home Care - Elderly - North,Other Small Contracts,Firstpoint Homecare Ltd,767.6, 28-Nov-2012
699,Revenue,CCHD,Day Care - South,Private & Voluntary Day Care,Firstpoint Homecare Ltd,573.8, 28-Nov-2012
700,Revenue,CCHD,Day Care - North,Private & Voluntary Day Care,Firstpoint Homecare Ltd,353.4, 28-Nov-2012
701,Revenue,CCHD,Under 65s -MH  Home Care Purch,Other Small Contracts,Firstpoint Homecare Ltd,91.2, 28-Nov-2012
702,Revenue,CCHD,Younger MH non-res purchasing,Private & Voluntary Day Care,Firstpoint Homecare Ltd,129.2, 28-Nov-2012
703,Revenue,CCHD,Home care - Elderly MH - North,Other Small Contracts,Firstpoint Homecare Ltd,155.8, 28-Nov-2012
704,Revenue,CCHD,Elderly MH Day Care North,Private & Voluntary Day Care,Firstpoint Homecare Ltd,91.2, 28-Nov-2012
705,Revenue,CCHD,Home Care - Elderly - South,Other Small Contracts,Firstpoint Homecare Ltd,1808.8, 28-Nov-2012
706,Revenue,CCHD,Home Care - Elderly - North,Other Small Contracts,Firstpoint Homecare Ltd,744.8, 28-Nov-2012
707,Revenue,CCHD,Day Care - South,Private & Voluntary Day Care,Firstpoint Homecare Ltd,649.8, 28-Nov-2012
708,Revenue,CCHD,Day Care - North,Private & Voluntary Day Care,Firstpoint Homecare Ltd,353.4, 28-Nov-2012
709,Revenue,CCHD,Under 65s -MH  Home Care Purch,Other Small Contracts,Firstpoint Homecare Ltd,91.2, 28-Nov-2012
710,Revenue,CCHD,Younger MH non-res purchasing,Private & Voluntary Day Care,Firstpoint Homecare Ltd,106.4, 28-Nov-2012
711,Revenue,CCHD,Home care - Elderly MH - North,Other Small Contracts,Firstpoint Homecare Ltd,155.8, 28-Nov-2012
712,Revenue,CCHD,Elderly MH Day Care North,Private & Voluntary Day Care,Firstpoint Homecare Ltd,91.2, 28-Nov-2012
713,Revenue,CCHD,Bed Purchasing - Elderly - South,Nursing Homes,Four Seasons Health Care,921.96, 27-Nov-2012
714,Revenue,CCHD,Bed Purchasing - Elderly - South,Nursing Homes,Four Seasons Health Care,1281.72, 27-Nov-2012
715,Revenue,CCHD,Frenchay Hospital Purchasing,Residential Homes,Four Seasons Health Care,892.12, 27-Nov-2012
716,Revenue,CCHD,Bed Purchasing - Elderly MH - South,Nursing Homes,Four Seasons Health Care,1363.2, 27-Nov-2012
717,Revenue,CCHD,Southmead Hospital Purchasing,Residential Homes,Four Seasons Health Care,612.86, 27-Nov-2012
718,Revenue,CCHD,Frenchay Hospital Purchasing,Nursing Homes,Four Seasons Health Care,1363.2, 27-Nov-2012
719,Revenue,CCHD,South Glos Users in South Glos Homes,Nursing Homes,Four Seasons Health Care,1164.64, 27-Nov-2012
720,Revenue,CCHD,Southmead Hospital Purchasing,Nursing Homes,Four Seasons Health Care,1363.2, 27-Nov-2012
721,Revenue,CCHD,Southmead Hospital Purchasing,Nursing Homes,Four Seasons Health Care,1578.88, 27-Nov-2012
722,Revenue,CCHD,Frenchay Hospital Purchasing,Nursing Homes,Four Seasons Health Care,1335.92, 27-Nov-2012
723,Revenue,CCHD,Bed Purchasing - Elderly - South,Nursing Homes,Four Seasons Health Care,1365.04, 27-Nov-2012
724,Revenue,CCHD,Southmead Hospital Purchasing,Nursing Homes,Four Seasons Health Care,1363.2, 27-Nov-2012
725,Revenue,CCHD,Bed Purchasing - Elderly - South,Nursing Homes,Four Seasons Health Care,1361.64, 27-Nov-2012
726,Revenue,CCHD,Cash for Change Discharges,Nursing Homes,Four Seasons Health Care,1363.2, 27-Nov-2012
727,Revenue,CCHD,Bed Purchasing - Elderly - South,Nursing Homes,Four Seasons Health Care,1327.2, 27-Nov-2012
728,Revenue,CCHD,Southmead Hospital Purchasing,Nursing Homes,Four Seasons Health Care,1363.2, 27-Nov-2012
729,Revenue,CCHD,Bed Purchasing - Elderly - South,Nursing Homes,Four Seasons Health Care,1260.92, 27-Nov-2012
730,Revenue,CCHD,Southmead Hospital Purchasing,Residential Homes,Four Seasons Health Care,543.56, 27-Nov-2012
731,Revenue,CCHD,Bed Purchasing - Elderly - North,Residential Homes,Four Seasons Health Care,1239.2, 27-Nov-2012
732,Revenue,CCHD,Southmead Hospital Purchasing,Nursing Homes,Four Seasons Health Care,1606.63, 27-Nov-2012
733,Revenue,CCHD,Southmead Hospital Purchasing,Nursing Homes,Four Seasons Health Care,1363.2, 27-Nov-2012
734,Revenue,CCHD,Bed Purchasing - Elderly - North,Nursing Homes,Four Seasons Health Care,4040.92, 27-Nov-2012
735,Revenue,CCHD,Bed Purchasing - Elderly - North,Nursing Homes,Four Seasons Health Care,1363.2, 27-Nov-2012
736,Revenue,CCHD,Southmead Hospital Purchasing,Nursing Homes,Four Seasons Health Care,1269.2, 27-Nov-2012
737,Revenue,CCHD,Frenchay Hospital Purchasing,Nursing Homes,Four Seasons Health Care,1159.2, 27-Nov-2012
738,Revenue,CCHD,Bed Purchasing - Elderly - South,Nursing Homes,Four Seasons Health Care,1363.2, 27-Nov-2012
739,Revenue,CCHD,Bed Purchasing - Elderly - South,Nursing Homes,Four Seasons Health Care,1308.24, 27-Nov-2012
740,Revenue,CCHD,Bed Purchasing - Elderly MH - South,Nursing Homes,Four Seasons Health Care,1363.2, 27-Nov-2012
741,Revenue,CCHD,Bed Purchasing - Elderly - South,Nursing Homes,Four Seasons Health Care,1067.16, 27-Nov-2012
742,Revenue,CCHD,Bed Purchasing - Elderly - South,Nursing Homes,Four Seasons Health Care,1327.2, 27-Nov-2012
743,Revenue,CCHD,Frenchay Hospital Purchasing,Nursing Homes,Four Seasons Health Care,1071.6, 27-Nov-2012
744,Revenue,CCHD,Bed Purchasing - Elderly MH - South,Residential Homes,Four Seasons Health Care,1084.52, 27-Nov-2012
745,Revenue,CCHD,Bed Purchasing - Elderly - South,Nursing Homes,Four Seasons Health Care,1363.2, 27-Nov-2012
746,Revenue,CCHD,Bed Purchasing - Elderly - South,Nursing Homes,Four Seasons Health Care,917.72, 27-Nov-2012
747,Revenue,CCHD,Bed Purchasing - Elderly - South,Nursing Homes,Four Seasons Health Care,1361.8, 27-Nov-2012
748,Revenue,CCHD,Southmead Hospital Purchasing,Nursing Homes,Four Seasons Health Care,1363.2, 27-Nov-2012
749,Revenue,CCHD,Southmead Hospital Purchasing,Nursing Homes,Four Seasons Health Care,876.35, 27-Nov-2012
750,Revenue,CCHD,Frenchay Hospital Purchasing,Nursing Homes,Four Seasons Health Care,1371.2, 27-Nov-2012
751,Revenue,CCHD,Bed Purchasing - Elderly MH - South,Nursing Homes,Four Seasons Health Care,1212.44, 27-Nov-2012
752,Revenue,CCHD,Frenchay Hospital Purchasing,Nursing Homes,Four Seasons Health Care,1117.14, 27-Nov-2012
753,Revenue,CCHD,Bed purchasing - Elderly MH - North,Nursing Homes,Four Seasons Health Care,780.24, 27-Nov-2012
754,Revenue,CCHD,South Glos Users in South Glos Homes,Nursing Homes,Four Seasons Health Care,1459.69, 27-Nov-2012
755,Revenue,CCHD,Bed Purchasing - Elderly - North,Nursing Homes,Four Seasons Health Care,956.44, 27-Nov-2012
756,Revenue,CCHD,Frenchay Hospital Purchasing,Nursing Homes,Four Seasons Health Care,1363.2, 27-Nov-2012
757,Revenue,CCHD,Frenchay Hospital Purchasing,Nursing Homes,Four Seasons Health Care,1271.88, 27-Nov-2012
758,Revenue,CCHD,Southmead Hospital Purchasing,Residential Homes,Four Seasons Health Care,1230.28, 27-Nov-2012
759,Revenue,CCHD,Bed Purchasing - Elderly - South,Nursing Homes,Four Seasons Health Care,1535.2, 27-Nov-2012
760,Revenue,CCHD,Bed Purchasing - Elderly - North,Nursing Homes,Four Seasons Health Care,1535.2, 27-Nov-2012
761,Revenue,CCHD,Bed Purchasing - Elderly - North,Residential Homes,Four Seasons Health Care,1026.48, 27-Nov-2012
762,Revenue,CCHD,South Glos Users in South Glos Homes,Nursing Homes,Four Seasons Health Care,2437.99, 27-Nov-2012
763,Revenue,CCHD,Frenchay Hospital Purchasing,Nursing Homes,Four Seasons Health Care,1363.2, 27-Nov-2012
764,Revenue,CCHD,Frenchay Hospital Purchasing,Nursing Homes,Four Seasons Health Care,1535.2, 27-Nov-2012
765,Revenue,CCHD,Bed purchasing - Elderly MH - North,Nursing Homes,Four Seasons Health Care,1327.2, 27-Nov-2012
766,Revenue,CCHD,Frenchay Hospital Purchasing,Nursing Homes,Four Seasons Health Care,1308.64, 27-Nov-2012
767,Revenue,CCHD,South Glos Users in South Glos Homes,Nursing Homes,Four Seasons Health Care,652.2, 27-Nov-2012
768,Revenue,CCHD,Bed Purchasing - Elderly - North,Nursing Homes,Four Seasons Health Care,1363.2, 27-Nov-2012
769,Revenue,CCHD,Southmead Hospital Purchasing,Nursing Homes,Four Seasons Health Care,1363.2, 27-Nov-2012
770,Revenue,CCHD,Bed Purchasing - Elderly - North,Nursing Homes,Four Seasons Health Care,1363.2, 27-Nov-2012
771,Revenue,CCHD,Bed Purchasing - Elderly - North,Nursing Homes,Four Seasons Health Care,1287.44, 27-Nov-2012
772,Revenue,CCHD,Bed purchasing - Elderly MH - North,Nursing Homes,Four Seasons Health Care,1457.48, 27-Nov-2012
773,Revenue,CCHD,Bed Purchasing - Elderly - North,Nursing Homes,Four Seasons Health Care,1264.2, 27-Nov-2012
774,Revenue,CCHD,Bed Purchasing - Elderly - North,Nursing Homes,Four Seasons Health Care,1096.56, 27-Nov-2012
775,Revenue,CCHD,Southmead Hospital Purchasing,Nursing Homes,Four Seasons Health Care,1356.56, 27-Nov-2012
776,Revenue,CCHD,Frenchay Hospital Purchasing,Nursing Homes,Four Seasons Health Care,1284.4, 27-Nov-2012
777,Revenue,CCHD,Bed purchasing - Elderly MH - North,Nursing Homes,Four Seasons Health Care,1435.64, 27-Nov-2012
778,Revenue,CCHD,Frenchay Hospital Purchasing,Nursing Homes,Four Seasons Health Care,1343.4, 27-Nov-2012
779,Revenue,CCHD,Bed Purchasing - Elderly - North,Nursing Homes,Four Seasons Health Care,1027.36, 27-Nov-2012
780,Revenue,CCHD,Bed Purchasing - Elderly - North,Residential Homes,Four Seasons Health Care,670.04, 27-Nov-2012
781,Revenue,CCHD,Frenchay Hospital Purchasing,Nursing Homes,Four Seasons Health Care,1522.72, 27-Nov-2012
782,Revenue,CCHD,Bed purchasing - Elderly MH - North,Residential Homes,Four Seasons Health Care,1306.04, 27-Nov-2012
783,Revenue,CCHD,Bed Purchasing - Elderly - North,Nursing Homes,Four Seasons Health Care,1499.2, 27-Nov-2012
784,Revenue,CCHD,Bed Purchasing - Elderly - North,Nursing Homes,Four Seasons Health Care,1363.2, 27-Nov-2012
785,Revenue,CCHD,Bed Purchasing - Elderly - North,Nursing Homes,Four Seasons Health Care,1431.8, 27-Nov-2012
786,Revenue,CCHD,Bed Purchasing - Elderly - North,Residential Homes,Four Seasons Health Care,1103.14, 27-Nov-2012
787,Revenue,CCHD,Southmead Hospital Purchasing,Residential Homes,Four Seasons Health Care,705.16, 27-Nov-2012
788,Revenue,CCHD,Southmead Hospital Purchasing,Nursing Homes,Four Seasons Health Care,1442.32, 27-Nov-2012
789,Revenue,CCHD,Frenchay Hospital Purchasing,Nursing Homes,Four Seasons Health Care,1211.32, 27-Nov-2012
790,Revenue,CCHD,Southmead Hospital Purchasing,Nursing Homes,Four Seasons Health Care,1535.2, 27-Nov-2012
791,Revenue,CCHD,South Glos Users in South Glos Homes,Nursing Homes,Four Seasons Health Care,2608.8, 27-Nov-2012
792,Revenue,CCHD,Southmead Hospital Purchasing,Nursing Homes,Four Seasons Health Care,1347.32, 27-Nov-2012
793,Revenue,CCHD,Bed Purchasing - Elderly - North,Nursing Homes,Four Seasons Health Care,1535.2, 27-Nov-2012
794,Revenue,CCHD,Bed purchasing - Elderly MH - North,Residential Homes,Four Seasons Health Care,1197.16, 27-Nov-2012
795,Revenue,CCHD,Southmead Hospital Purchasing,Residential Homes,Four Seasons Health Care,1239.2, 27-Nov-2012
796,Revenue,CCHD,Southmead Hospital Purchasing,Nursing Homes,Four Seasons Health Care,940.68, 27-Nov-2012
797,Revenue,CCHD,Bed purchasing - Elderly MH - North,Residential Homes,Four Seasons Health Care,1366.04, 27-Nov-2012
798,Revenue,CCHD,Bed Purchasing - Elderly - North,Nursing Homes,Four Seasons Health Care,1346.6, 27-Nov-2012
799,Revenue,CCHD,Southmead Hospital Purchasing,Nursing Homes,Four Seasons Health Care,1207.08, 27-Nov-2012
800,Revenue,CCHD,Bed purchasing - Elderly MH - North,Nursing Homes,Four Seasons Health Care,1025.24, 27-Nov-2012
801,Revenue,CCHD,Bed Purchasing - Elderly - North,Nursing Homes,Four Seasons Health Care,2044.81, 27-Nov-2012
802,Revenue,CCHD,South Glos Users in South Glos Homes,Nursing Homes,Four Seasons Health Care,3493.93, 27-Nov-2012
803,Revenue,CCHD,Bed Purchasing - Elderly - North,Nursing Homes,Four Seasons Health Care,2629.03, 27-Nov-2012
804,Revenue,CCHD,Bed Purchasing - Elderly - North,Nursing Homes,Four Seasons Health Care,1363.2, 27-Nov-2012
805,Revenue,CCHD,South Glos Users in South Glos Homes,Nursing Homes,Four Seasons Health Care,636.67, 27-Nov-2012
806,Revenue,CCHD,Bed Purchasing - Elderly - North,Residential Homes,Four Seasons Health Care,1263.2, 27-Nov-2012
807,Revenue,CCHD,Frenchay Hospital Purchasing,Residential Homes,Four Seasons Health Care,1239.2, 27-Nov-2012
808,Revenue,CCHD,Bed Purchasing - Elderly - North,Nursing Homes,Four Seasons Health Care,1363.2, 27-Nov-2012
809,Revenue,CCHD,Bed Purchasing - Elderly - North,Nursing Homes,Four Seasons Health Care,827.65, 27-Nov-2012
810,Revenue,CCHD,Frenchay Hospital Purchasing,Nursing Homes,Four Seasons Health Care,1204.44, 27-Nov-2012
811,Revenue,CCHD,Bed Purchasing - Elderly - North,Nursing Homes,Four Seasons Health Care,1300.48, 27-Nov-2012
812,Revenue,CCHD,Frenchay Hospital Purchasing,Nursing Homes,Four Seasons Health Care,1363.2, 27-Nov-2012
813,Revenue,CCHD,Bed Purchasing - Elderly - North,Nursing Homes,Four Seasons Health Care,1273.72, 27-Nov-2012
814,Revenue,CCHD,Southmead Hospital Purchasing,Nursing Homes,Four Seasons Health Care,1303.36, 27-Nov-2012
815,Revenue,CCHD,Frenchay Hospital Purchasing,Nursing Homes,Four Seasons Health Care,1363.2, 27-Nov-2012
816,Revenue,CCHD,Frenchay Hospital Purchasing,Nursing Homes,Four Seasons Health Care,973.72, 27-Nov-2012
817,Revenue,CCHD,Frenchay Hospital Purchasing,Nursing Homes,Four Seasons Health Care,1363.2, 27-Nov-2012
818,Revenue,CCHD,Southmead Hospital Purchasing,Nursing Homes,Four Seasons Health Care,605.72, 27-Nov-2012
819,Revenue,CCHD,Bed Purchasing - Elderly - North,Nursing Homes,Four Seasons Health Care,1070.48, 27-Nov-2012
820,Revenue,CCHD,Frenchay Hospital Purchasing,Nursing Homes,Four Seasons Health Care,1363.2, 27-Nov-2012
821,Revenue,CCHD,Southmead Hospital Purchasing,Nursing Homes,Four Seasons Health Care,758.2, 27-Nov-2012
822,Revenue,CCHD,Frenchay Hospital Purchasing,Nursing Homes,Four Seasons Health Care,1363.2, 27-Nov-2012
823,Revenue,CCHD,Frenchay Hospital Purchasing,Nursing Homes,Four Seasons Health Care,1379.2, 27-Nov-2012
824,Revenue,CCHD,Bed Purchasing - Elderly - South,Nursing Homes,Four Seasons Health Care,1060.72, 27-Nov-2012
825,Revenue,CCHD,Southmead Hospital Purchasing,Nursing Homes,Four Seasons Health Care,1286.4, 27-Nov-2012
826,Revenue,CCHD,Southmead Hospital Purchasing,Residential Homes,Four Seasons Health Care,1118.04, 27-Nov-2012
827,Revenue,CCHD,Southmead Hospital Purchasing,Nursing Homes,Four Seasons Health Care,1363.2, 27-Nov-2012
828,Revenue,CCHD,Frenchay Hospital Purchasing,Nursing Homes,Four Seasons Health Care,1329.52, 27-Nov-2012
829,Revenue,CCHD,Southmead Hospital Purchasing,Nursing Homes,Four Seasons Health Care,1336.84, 27-Nov-2012
830,Revenue,CCHD,Bed purchasing - Phys Dis - North,Nursing Homes,Four Seasons Health Care,1367.76, 27-Nov-2012
831,Revenue,CCHD,Southmead Hospital Purchasing,Nursing Homes,Four Seasons Health Care,1292.36, 27-Nov-2012
832,Revenue,CCHD,Bed purchasing - Elderly MH - North,Residential Homes,Four Seasons Health Care,1396.2, 27-Nov-2012
833,Revenue,CCHD,Southmead Hospital Purchasing,Nursing Homes,Four Seasons Health Care,1363.2, 27-Nov-2012
834,Revenue,CCHD,Southmead Hospital Purchasing,Nursing Homes,Four Seasons Health Care,632.92, 27-Nov-2012
835,Revenue,CCHD,Bed purchasing - Elderly MH - North,Residential Homes,Four Seasons Health Care,661.84, 27-Nov-2012
836,Revenue,CCHD,Southmead Hospital Purchasing,Residential Homes,Four Seasons Health Care,1163.68, 27-Nov-2012
837,Revenue,CCHD,Frenchay Hospital Purchasing,Residential Homes,Four Seasons Health Care,3677.14, 27-Nov-2012
838,Revenue,CCHD,Frenchay Hospital Purchasing,Residential Homes,Four Seasons Health Care,1716, 27-Nov-2012
839,Revenue,CCHD,Bed Purchasing - Elderly - North,Residential Homes,Four Seasons Health Care,1496, 27-Nov-2012
840,Revenue,CCHD,Frenchay Hospital Purchasing,Nursing Homes,Four Seasons Health Care,1225.56, 27-Nov-2012
841,Revenue,CCHD,Southmead Hospital Purchasing,Residential Homes,Four Seasons Health Care,1316, 27-Nov-2012
842,Revenue,CCHD,Bed purchasing - Elderly PWLD - South,Residential Homes,Four Seasons Health Care,1239.2, 27-Nov-2012
843,Revenue,CCHD,Bed purchasing - Elderly PWLD - South,Residential Homes,Four Seasons Health Care,13299, 27-Nov-2012
844,Revenue,CCHD,Frenchay Hospital Purchasing,Nursing Homes,Four Seasons Health Care,1363.2, 27-Nov-2012
845,Revenue,CCHD,Southmead Hospital Purchasing,Nursing Homes,Four Seasons Health Care,1103.76, 27-Nov-2012
846,Revenue,CCHD,Bed Purchasing - Elderly - South,Nursing Homes,Four Seasons Health Care,1286.52, 27-Nov-2012
847,Revenue,CCHD,Bed Purchasing - Elderly - South,Nursing Homes,Four Seasons Health Care,1352.48, 27-Nov-2012
848,Revenue,CCHD,Bed purchasing - Elderly S117 - South,Nursing Homes,Four Seasons Health Care,1800.79, 27-Nov-2012
849,Revenue,CCHD,Southmead Hospital Purchasing,Nursing Homes,Four Seasons Health Care,1261.23, 27-Nov-2012
850,Revenue,CCHD,Southmead Hospital Purchasing,Nursing Homes,Four Seasons Health Care,1138.92, 27-Nov-2012
851,Revenue,CCHD,Bed Purchasing - Elderly - South,Residential Homes,Four Seasons Health Care,865.28, 27-Nov-2012
852,Revenue,CCHD,Southmead Hospital Purchasing,Residential Homes,Four Seasons Health Care,1386, 27-Nov-2012
853,Revenue,CCHD,Southmead Hospital Purchasing,Residential Homes,Four Seasons Health Care,1223.31, 27-Nov-2012
854,Revenue,CCHD,Frenchay Hospital Purchasing,Nursing Homes,Four Seasons Health Care,769.44, 27-Nov-2012
855,Revenue,CCHD,Bed Purchasing - Elderly - South,Nursing Homes,Four Seasons Health Care,947.2, 27-Nov-2012
856,Revenue,CCHD,Frenchay Hospital Purchasing,Nursing Homes,Four Seasons Health Care,1051.43, 27-Nov-2012
857,Revenue,CCHD,Bed Purchasing - Elderly - South,Residential Homes,Four Seasons Health Care,1084.8, 27-Nov-2012
858,Revenue,CCHD,Bed purchasing - Elderly S117 - South,Nursing Homes,Four Seasons Health Care,1840, 27-Nov-2012
859,Revenue,CCHD,Frenchay Hospital Purchasing,Residential Homes,Four Seasons Health Care,1102.84, 27-Nov-2012
860,Revenue,CCHD,Bed Purchasing - Elderly MH - South,Nursing Homes,Four Seasons Health Care,1174.8, 27-Nov-2012
861,Revenue,CCHD,Southmead Hospital Purchasing,Residential Homes,Four Seasons Health Care,1323.96, 27-Nov-2012
862,Revenue,CCHD,Southmead Hospital Purchasing,Nursing Homes,Four Seasons Health Care,1363.2, 27-Nov-2012
863,Revenue,CCHD,Bed Purchasing - Elderly - North,Residential Homes,Four Seasons Health Care,4488, 27-Nov-2012
864,Revenue,CCHD,Bed Purchasing - Elderly MH - South,Residential Homes,Four Seasons Health Care,936.64, 27-Nov-2012
865,Revenue,CCHD,Southmead Hospital Purchasing,Nursing Homes,Four Seasons Health Care,1363.2, 27-Nov-2012
866,Revenue,CCHD,Frenchay Hospital Purchasing,Nursing Homes,Four Seasons Health Care,1109.56, 27-Nov-2012
867,Revenue,CCHD,Frenchay Hospital Purchasing,Nursing Homes,Four Seasons Health Care,1363.2, 27-Nov-2012
868,Revenue,CCHD,Frenchay Hospital Purchasing,Nursing Homes,Four Seasons Health Care,681.6, 27-Nov-2012
869,Revenue,CCHD,Southmead Hospital Purchasing,Nursing Homes,Four Seasons Health Care,991.8, 27-Nov-2012
870,Revenue,CCHD,Southmead Hospital Purchasing,Nursing Homes,Four Seasons Health Care,982.32, 27-Nov-2012
871,Revenue,CCHD,Bed Purchasing - Elderly - North,Residential Homes,Four Seasons Health Care,1363.6, 27-Nov-2012
872,Revenue,CCHD,Frenchay Hospital Purchasing,Residential Homes,Four Seasons Health Care,1232.16, 27-Nov-2012
873,Revenue,CCHD,Bed Purchasing - Elderly - North,Nursing Homes,Four Seasons Health Care,1263.48, 27-Nov-2012
874,Revenue,CCHD,Bed Purchasing - Elderly - South,Residential Homes,Four Seasons Health Care,1206.36, 27-Nov-2012
875,Revenue,CCHD,Bed Purchasing - Elderly - South,Nursing Homes,Four Seasons Health Care,1171.6, 27-Nov-2012
876,Revenue,CCHD,Bed Purchasing - Elderly S117- North,Residential Homes,Four Seasons Health Care,2011.04, 27-Nov-2012
877,Revenue,CCHD,Frenchay Hospital Purchasing,Residential Homes,Four Seasons Health Care,1515.84, 27-Nov-2012
878,Revenue,CCHD,Bed purchasing - Phys Dis - North,Nursing Homes,Four Seasons Health Care,845.76, 27-Nov-2012
879,Revenue,CCHD,Home Care - Elderly - South,Other Small Contracts,Freedom Social Care Recruitment,1088.96, 02-Nov-2012
880,Revenue,CCHD,Home Care - Elderly - North,Other Small Contracts,Freedom Social Care Recruitment,2578.47, 02-Nov-2012
881,Revenue,CCHD,Day Care - South,Private & Voluntary Day Care,Freedom Social Care Recruitment,63.1, 02-Nov-2012
882,Revenue,CCHD,Home Care - Elderly - South,Other Small Contracts,Freedom Social Care Recruitment,931.15, 15-Nov-2012
883,Revenue,CCHD,Home Care - Elderly - North,Other Small Contracts,Freedom Social Care Recruitment,2578.48, 15-Nov-2012
884,Revenue,CCHD,Day Care - South,Private & Voluntary Day Care,Freedom Social Care Recruitment,63.12, 15-Nov-2012
885,Revenue,CCHD,Home care - Elderly MH - North,Other Small Contracts,Freedom Social Care Recruitment,15.78, 15-Nov-2012
886,Revenue,CCHD,Home Care - Elderly - South,Other Small Contracts,Freedom Social Care Recruitment,1029.78, 02-Nov-2012
887,Revenue,CCHD,Home Care - Elderly - North,Other Small Contracts,Freedom Social Care Recruitment,2478.39, 02-Nov-2012
888,Revenue,CCHD,Day Care - South,Private & Voluntary Day Care,Freedom Social Care Recruitment,63.12, 02-Nov-2012
889,Revenue,CCHD,Home care - Elderly MH - North,Other Small Contracts,Freedom Social Care Recruitment,15.79, 02-Nov-2012
890,Revenue,CCHD,Home Care - Elderly - South,Other Small Contracts,Freedom Social Care Recruitment,822.7, 15-Nov-2012
891,Revenue,CCHD,Home Care - Elderly - North,Other Small Contracts,Freedom Social Care Recruitment,2493.16, 15-Nov-2012
892,Revenue,CCHD,Day Care - South,Private & Voluntary Day Care,Freedom Social Care Recruitment,55.3, 15-Nov-2012
893,Revenue,CCHD,Home care - Elderly MH - North,Other Small Contracts,Freedom Social Care Recruitment,19.75, 15-Nov-2012
894,Revenue,CCHD,Home Care - Elderly - South,Other Small Contracts,Freedom Social Care Recruitment,790, 15-Nov-2012
895,Revenue,CCHD,Home Care - Elderly - North,Other Small Contracts,Freedom Social Care Recruitment,2540.56, 15-Nov-2012
896,Revenue,CCHD,Day Care - South,Private & Voluntary Day Care,Freedom Social Care Recruitment,63.2, 15-Nov-2012
897,Revenue,CCHD,Home care - Elderly MH - North,Other Small Contracts,Freedom Social Care Recruitment,15.8, 15-Nov-2012
898,Revenue,CCHD,Freeways,Residential Homes,Freeways Trust Limited,44356.49, 21-Nov-2012
899,Revenue,CCHD,Purchase of Non-Res Care - KD,Private & Voluntary Day Care,Freeways Trust Limited,631.32, 30-Nov-2012
900,Revenue,CCHD,Supported Living - PS,Private & Voluntary Home Care,Freeways Trust Limited,1342.4, 13-Nov-2012
901,Revenue,CCHD,Bed purchasing - Under 65s PWLD - North,Residential Homes,Freeways Trust Ltd,2791.88, 27-Nov-2012
902,Revenue,CCHD,Bed purchasing - S28A Under 65 - South,Residential Homes,Freeways Trust Ltd,2876.4, 27-Nov-2012
903,Revenue,CCHD,Bed purchasing - Under 65s PWLD - North,Residential Homes,Freeways Trust Ltd,2232.52, 27-Nov-2012
904,Revenue,CCHD,Bed purchasing - Under 65s PWLD - North,Residential Homes,Freeways Trust Ltd,2657.64, 27-Nov-2012
905,Revenue,CCHD,Bed purchasing - Under 65s PWLD - North,Residential Homes,Freeways Trust Ltd,2232.52, 27-Nov-2012
906,Revenue,CCHD,Bed purchasing - Under 65s PWLD - North,Residential Homes,Freeways Trust Ltd,2666.28, 27-Nov-2012
907,Revenue,CCHD,Bed Purchasing - Under 65s PWLD - South,Residential Homes,Freeways Trust Ltd,3259.12, 27-Nov-2012
908,Revenue,CCHD,Bed purchasing - Elderly PWLD - North,Residential Homes,Freeways Trust Ltd,2219.24, 27-Nov-2012
909,Revenue,CCHD,Bed Purchasing - Under 65s PWLD - South,Residential Homes,Freeways Trust Ltd,2364.28, 27-Nov-2012
910,Revenue,CCHD,Bed purchasing - Under 65s PWLD - North,Residential Homes,Freeways Trust Ltd,2666.28, 27-Nov-2012
911,Revenue,CCHD,Bed purchasing - Elderly PWLD - North,Residential Homes,Freeways Trust Ltd,2492.24, 27-Nov-2012
912,Revenue,CCHD,Section 117 Placements MH Younger,Residential Homes,Freeways Trust Ltd,3292.4, 27-Nov-2012
913,Revenue,CCHD,Bed Purchasing - Under 65s PWLD - South,Residential Homes,Freeways Trust Ltd,3349.08, 27-Nov-2012
914,Revenue,CCHD,Bed Purchasing - Elderly - South,Nursing Homes,Frenchay Park Nursing Home,8630.73, 27-Nov-2012
915,Revenue,CCHD,Planning and Partnerships procurement,Conference Expenses,Gateway Revival Church,1585, 16-Nov-2012
916,Revenue,CCHD,Bed Purchasing - Under 65s PWLD - South,Residential Homes,Glasallt Fawr,4505.4, 27-Nov-2012
917,Revenue,CCHD,Bed Purchasing - Elderly - North,Nursing Homes,Glebe House Nursing Home,1381.88, 27-Nov-2012
918,Revenue,CCHD,South Glos Users in South Glos Homes,Nursing Homes,Glebe House Nursing Home,1164.64, 27-Nov-2012
919,Revenue,CCHD,Bed purchasing - Elderly MH - North,Residential Homes,Glebe House Nursing Home,782.8, 27-Nov-2012
920,Revenue,CCHD,South Glos Users in South Glos Homes,Nursing Homes,Glebe House Nursing Home,590.09, 27-Nov-2012
921,Revenue,CCHD,Bed Purchasing - Elderly - South,Residential Homes,Glebe House Nursing Home,1963.52, 27-Nov-2012
922,Revenue,CCHD,Southmead Hospital Purchasing,Nursing Homes,Glebe House Nursing Home,1295.2, 27-Nov-2012
923,Revenue,CCHD,Bed Purchasing - Elderly - North,Residential Homes,Glebe House Nursing Home,2529.76, 27-Nov-2012
924,Revenue,CCHD,Bed purchasing - Phys Dis - South,Nursing Homes,Glenside Centre For Brain Injury,7072.36, 27-Nov-2012
925,Revenue,CCHD,Bed Purchasing - Under 65s PWLD - South,Residential Homes,Gordena Care Home,2063.36, 27-Nov-2012
926,Revenue,CCHD,Bed purchasing - Elderly PWLD - South,Residential Homes,Gordena Care Home,4691.96, 27-Nov-2012
927,Revenue,CCHD,Bed purchasing - Elderly PWLD - South,Residential Homes,Gordena Care Home,2904.2, 27-Nov-2012
928,Revenue,CCHD,Bed Purchasing - Under 65s PWLD - South,Residential Homes,Gordena Care Home,1894.04, 27-Nov-2012
929,Revenue,CCHD,Bed Purchasing - Under 65s PWLD - South,Residential Homes,Gordena Care Limited,4119.84, 27-Nov-2012
930,Revenue,CCHD,Bed purchasing - S28A Under 65 - South,Residential Homes,Gordena Care Limited,4018.24, 27-Nov-2012
931,Revenue,CCHD,Bed purchasing - Under 65s PWLD - North,Residential Homes,Gordena Care Limited,3762.44, 27-Nov-2012
932,Revenue,CCHD,Bed Purchasing - Elderly - South,Residential Homes,Gwendoline House,1480.12, 27-Nov-2012
933,Revenue,CCHD,Bed Purchasing - Elderly - South,Residential Homes,Gwendoline House,1158.88, 27-Nov-2012
934,Revenue,CCHD,Bed Purchasing - Elderly MH - South,Residential Homes,Gwendoline House,1263.36, 27-Nov-2012
935,Revenue,CCHD,Southmead Hospital Purchasing,Residential Homes,Gwendoline House,1239.2, 27-Nov-2012
936,Revenue,CCHD,Bed Purchasing - Elderly - South,Residential Homes,Gwendoline House,1418.24, 27-Nov-2012
937,Revenue,CCHD,Bed Purchasing - Elderly - South,Residential Homes,Gwendoline House,1123.12, 27-Nov-2012
938,Revenue,CCHD,Bed Purchasing - Elderly - South,Residential Homes,Gwendoline House,1558.44, 27-Nov-2012
939,Revenue,CCHD,Bed Purchasing - Elderly - South,Residential Homes,Harefield Hall,1115.96, 27-Nov-2012
940,Revenue,CCHD,Bed Purchasing - Elderly MH - South,Residential Homes,Harefield Hall,1091.48, 27-Nov-2012
941,Revenue,CCHD,Training - Adult Services,Training Expenses,Harrison Hall Associates,1950, 16-Nov-2012
942,Revenue,CCHD,Southmead Hospital Purchasing,Nursing Homes,Haven Lodge,1371.08, 27-Nov-2012
943,Revenue,CCHD,Swift Dump Code,Residential Homes,HC-One Limited,16905.23, 01-Nov-2012
944,Revenue,CCHD,Bed Purchasing - Elderly - North,Nursing Homes,Hc-One Ltd,2849.03, 27-Nov-2012
945,Revenue,CCHD,Bed purchasing - Elderly PWLD - South,Nursing Homes,Hc-One Ltd,3832.4, 27-Nov-2012
946,Revenue,CCHD,Bed purchasing - Elderly MH - North,Nursing Homes,Hc-One Ltd,2934.4, 27-Nov-2012
947,Revenue,CCHD,South Glos Users in Gloucestershire Home,Nursing Homes,Hc-One Ltd,869.6, 27-Nov-2012
948,Revenue,CCHD,Bed purchasing - Elderly MH - North,Nursing Homes,Hc-One Ltd,2418.32, 27-Nov-2012
949,Revenue,CCHD,Bed purchasing - Elderly MH - North,Nursing Homes,Hc-One Ltd,2934.4, 27-Nov-2012
950,Revenue,CCHD,South Glos Users in Gloucestershire Home,Nursing Homes,Hc-One Ltd,869.6, 27-Nov-2012
951,Revenue,CCHD,Bed purchasing - Elderly MH - North,Nursing Homes,Hc-One Ltd,2313.92, 27-Nov-2012
952,Revenue,CCHD,Bed purchasing - Elderly MH - North,Nursing Homes,Hc-One Ltd,1467.2, 27-Nov-2012
953,Revenue,CCHD,Bed purchasing - Elderly MH - North,Nursing Homes,Hc-One Ltd,1142.64, 27-Nov-2012
954,Revenue,CCHD,Bed purchasing - Elderly MH - North,Nursing Homes,Hc-One Ltd,890.8, 27-Nov-2012
955,Revenue,CCHD,Bed Purchasing - Elderly S117- North,Nursing Homes,Hc-One Ltd,3858.4, 27-Nov-2012
956,Revenue,CCHD,Frenchay Hospital Purchasing,Residential Homes,Hc-One Ltd,2959.52, 27-Nov-2012
957,Revenue,CCHD,Frenchay Hospital Purchasing,Nursing Homes,Hc-One Ltd,2351.52, 27-Nov-2012
958,Revenue,CCHD,Day Care - South,Private & Voluntary Day Care,Headway Bristol,857.52, 30-Nov-2012
959,Revenue,CCHD,Community Support ACM - North,Preventative Assistance,Helen & Douglas House,2100, 21-Nov-2012
960,Revenue,CCHD,Supported Living - PS,Private & Voluntary Home Care,HFT,3722.08, 20-Nov-2012
961,Revenue,CCHD,Bed purchasing - Under 65s PWLD - North,Residential Homes,Holmleigh Care Homes Ltd,3962.92, 27-Nov-2012
962,Revenue,CCHD,Bed Purchasing - Under 65s PWLD - South,Residential Homes,Holmleigh Care Homes Ltd,4980.72, 27-Nov-2012
963,Revenue,CCHD,Bed purchasing - Under 65s PWLD - North,Residential Homes,Home Farm Trust Ltd  5-6 Brook Office Pa,2784.12, 27-Nov-2012
964,Revenue,CCHD,Bed purchasing - Elderly PWLD - South,Residential Homes,Home Farm Trust Ltd  5-6 Brook Office Pa,4285, 27-Nov-2012
965,Revenue,CCHD,Bed purchasing - Under 65s PWLD - North,Residential Homes,Home Farm Trust Ltd  5-6 Brook Office Pa,3367.08, 27-Nov-2012
966,Revenue,CCHD,Bed Purchasing - Under 65s PWLD - South,Residential Homes,Home Farm Trust Ltd  5-6 Brook Office Pa,4463, 27-Nov-2012
967,Revenue,CCHD,Bed purchasing - Under 65s PWLD - North,Residential Homes,Home From Home Care Ltd,9029.56, 27-Nov-2012
968,Revenue,CCHD,Bed Purchasing - Elderly - South,Nursing Homes,Horfield Care Limited,4043.98, 06-Nov-2012
969,Revenue,CCHD,Bed Purchasing - Elderly - North,Nursing Homes,Horfield Care Limited,3449.23, 06-Nov-2012
970,Revenue,CCHD,Frenchay Hospital Purchasing,Nursing Homes,Horfield Care Limited,3010.84, 06-Nov-2012
971,Revenue,CCHD,Southmead Hospital Purchasing,Nursing Homes,Horfield Care Limited,7653.72, 06-Nov-2012
972,Revenue,CCHD,Home Care - Elderly - North,Private & Voluntary Home Care,Housing 21,35812.8, 09-Nov-2012
973,Revenue,CCHD,Supporting People Programme,Grants to Voluntary Bodies,Housing 21,912.61, 01-Nov-2012
974,Revenue,CCHD,Supporting People Programme,Grants to Voluntary Bodies,Housing 21,912.61, 30-Nov-2012
975,Revenue,CCHD,Supporting People Programme,Grants to Voluntary Bodies,Housing 21,601.61, 01-Nov-2012
976,Revenue,CCHD,Supporting People Programme,Grants to Voluntary Bodies,Housing 21,601.61, 30-Nov-2012
977,Revenue,CCHD,Home Care - Elderly - South,Private & Voluntary Home Care,Housing 21,22605.08, 01-Nov-2012
978,Revenue,CCHD,Home Care - Elderly - South,Private & Voluntary Home Care,Housing 21,22605.08, 30-Nov-2012
979,Revenue,CCHD,Care Management Team - South,Agency Staff (Operational)/PCT Pay,IPE,2559.56, 14-Nov-2012
980,Revenue,CCHD,Southmead Hospital Purchasing,Nursing Homes,Jasmine Court,2174.09, 27-Nov-2012
981,Revenue,CCHD,Training - Adult Services,Training Expenses,Jo Williams,945, 13-Nov-2012
982,Revenue,CCHD,Bed Purchasing - Elderly - North,Residential Homes,Katherine House,1192.12, 27-Nov-2012
983,Revenue,CCHD,Bed purchasing - Elderly S117 - South,Residential Homes,Kenver House Residential Home,1879.04, 27-Nov-2012
984,Revenue,CCHD,Frenchay Hospital Purchasing,Residential Homes,Kenver House Residential Home,2114.96, 27-Nov-2012
985,Revenue,CCHD,Bed Purchasing - Elderly MH - South,Residential Homes,Kenver House Residential Home,1354.08, 27-Nov-2012
986,Revenue,CCHD,Bed purchasing - Elderly S117 - South,Residential Homes,Kenver House Residential Home,1879.04, 27-Nov-2012
987,Revenue,CCHD,Bed Purchasing - Elderly MH - South,Residential Homes,Kenver House Residential Home,1273.72, 27-Nov-2012
988,Revenue,CCHD,Bed Purchasing - Elderly S117- North,Residential Homes,Kenver House Residential Home,1880, 27-Nov-2012
989,Revenue,CCHD,Southmead Hospital Purchasing,Residential Homes,Kenver House Residential Home,1638.16, 27-Nov-2012
990,Revenue,CCHD,Bed Purchasing - Elderly - South,Residential Homes,Kenver House Residential Home,1638.16, 27-Nov-2012
991,Revenue,CCHD,Frenchay Hospital Purchasing,Residential Homes,Kenver House Residential Home,1638.16, 27-Nov-2012
992,Revenue,CCHD,Bed Purchasing - Elderly MH - South,Residential Homes,Kenver House Residential Home,1184.36, 27-Nov-2012
993,Revenue,CCHD,Frenchay Hospital Purchasing,Residential Homes,Kenver House Residential Home,1410.6, 27-Nov-2012
994,Revenue,CCHD,Bed Purchasing - Elderly MH - South,Residential Homes,Kenver House Residential Home,1167.88, 27-Nov-2012
995,Revenue,CCHD,Bed Purchasing - Elderly MH - South,Residential Homes,Kenver House Residential Home,1402.24, 27-Nov-2012
996,Revenue,CCHD,Bed Purchasing - Elderly - South,Residential Homes,Kenver House Residential Home,1529.44, 27-Nov-2012
997,Revenue,CCHD,Bed Purchasing - Elderly - South,Residential Homes,Kenver House Residential Home,3550.11, 27-Nov-2012
998,Revenue,CCHD,Frenchay Hospital Purchasing,Residential Homes,Kenver House Residential Home,1561.28, 27-Nov-2012
999,Revenue,CCHD,Bed Purchasing - Elderly - South,Residential Homes,Kenver House Residential Home,1579.66, 27-Nov-2012
1000,Revenue,CCHD,Frenchay Hospital Purchasing,Residential Homes,Kenver House Residential Home,1522, 27-Nov-2012
1001,Revenue,CCHD,Supporting People Programme,Grants to Voluntary Bodies,Keyring Living Support Networks,2847.11, 01-Nov-2012
1002,Revenue,CCHD,Supporting People Programme,Grants to Voluntary Bodies,Keyring Living Support Networks,2847.11, 30-Nov-2012
1003,Revenue,CCHD,Swift Dump Code,Residential Homes,Kingscourt,13880.8, 30-Nov-2012
1004,Revenue,CCHD,Supporting People Programme,Grants to Voluntary Bodies,Kingswood Young Homeless Project,17125, 01-Nov-2012
1005,Revenue,CCHD,Supporting People Programme,Grants to Voluntary Bodies,Kingswood Young Homeless Project,17125, 30-Nov-2012
1006,Revenue,CCHD,Bed purchasing - Under 65s PWLD - North,Residential Homes,Kisimul Group,11255.24, 27-Nov-2012
1007,Revenue,CCHD,Supporting People Programme,Grants to Voluntary Bodies,Knightstone Housing Association Limited,1433.33, 01-Nov-2012
1008,Revenue,CCHD,Supporting People Programme,Grants to Voluntary Bodies,Knightstone Housing Association Limited,1433.33, 30-Nov-2012
1009,Revenue,CCHD,Supporting People Programme,Grants to Voluntary Bodies,Knightstone Housing Association Limited,28936.03, 01-Nov-2012
1010,Revenue,CCHD,Supporting People Programme,Grants to Voluntary Bodies,Knightstone Housing Association Limited,28936.03, 30-Nov-2012
1011,Revenue,CCHD,Supporting People Programme,Grants to Voluntary Bodies,Knightstone Housing Association Limited,2173.77, 01-Nov-2012
1012,Revenue,CCHD,Supporting People Programme,Grants to Voluntary Bodies,Knightstone Housing Association Limited,2173.77, 30-Nov-2012
1013,Revenue,CCHD,Supporting People Programme,Grants to Voluntary Bodies,Knightstone Housing Association Limited,4847.07, 01-Nov-2012
1014,Revenue,CCHD,Supporting People Programme,Grants to Voluntary Bodies,Knightstone Housing Association Limited,4847.07, 30-Nov-2012
1015,Revenue,CCHD,Supporting People Programme,Grants to Voluntary Bodies,Knightstone Housing Association Limited,1866, 01-Nov-2012
1016,Revenue,CCHD,Supporting People Programme,Grants to Voluntary Bodies,Knightstone Housing Association Limited,1866, 30-Nov-2012
1017,Revenue,CCHD,Home Care - Elderly - South,Other Small Contracts,Kumari Care Limited,3873.48, 09-Nov-2012
1018,Revenue,CCHD,Home Care - Elderly - North,Other Small Contracts,Kumari Care Limited,827.13, 09-Nov-2012
1019,Revenue,CCHD,Day Care - South,Private & Voluntary Day Care,Kumari Care Limited,152.8, 09-Nov-2012
1020,Revenue,CCHD,Under 65s -MH  Home Care Purch,Other Small Contracts,Kumari Care Limited,148.98, 09-Nov-2012
1021,Revenue,CCHD,PWLD Home Care - Under 65 - KH,Private & Voluntary Home Care,Kumari Care Limited,129.88, 09-Nov-2012
1022,Revenue,CCHD,Home Care - Elderly - South,Other Small Contracts,Kumari Care Limited,3995.72, 09-Nov-2012
1023,Revenue,CCHD,Home Care - Elderly - North,Other Small Contracts,Kumari Care Limited,827.13, 09-Nov-2012
1024,Revenue,CCHD,Day Care - South,Private & Voluntary Day Care,Kumari Care Limited,290.32, 09-Nov-2012
1025,Revenue,CCHD,Under 65s -MH  Home Care Purch,Other Small Contracts,Kumari Care Limited,148.98, 09-Nov-2012
1026,Revenue,CCHD,PWLD Home Care - Under 65 - KH,Private & Voluntary Home Care,Kumari Care Limited,309.42, 09-Nov-2012
1027,Revenue,CCHD,Home Care - Elderly - South,Other Small Contracts,Kumari Care Limited,4014.82, 09-Nov-2012
1028,Revenue,CCHD,Home Care - Elderly - North,Other Small Contracts,Kumari Care Limited,827.18, 09-Nov-2012
1029,Revenue,CCHD,Day Care - South,Private & Voluntary Day Care,Kumari Care Limited,233.02, 09-Nov-2012
1030,Revenue,CCHD,Under 65s -MH  Home Care Purch,Other Small Contracts,Kumari Care Limited,148.98, 09-Nov-2012
1031,Revenue,CCHD,PWLD Home Care - Under 65 - KH,Private & Voluntary Home Care,Kumari Care Limited,294.14, 09-Nov-2012
1032,Revenue,CCHD,Home Care - Elderly - South,Other Small Contracts,Kumari Care Limited,3896.4, 09-Nov-2012
1033,Revenue,CCHD,Home Care - Elderly - North,Other Small Contracts,Kumari Care Limited,823.48, 09-Nov-2012
1034,Revenue,CCHD,Day Care - South,Private & Voluntary Day Care,Kumari Care Limited,282.68, 09-Nov-2012
1035,Revenue,CCHD,Under 65s -MH  Home Care Purch,Other Small Contracts,Kumari Care Limited,148.98, 09-Nov-2012
1036,Revenue,CCHD,PWLD Home Care - Under 65 - KH,Private & Voluntary Home Care,Kumari Care Limited,61.12, 09-Nov-2012
1037,Revenue,CCHD,Home Care - Elderly - South,Other Small Contracts,Kumari Care Limited,4003.36, 21-Nov-2012
1038,Revenue,CCHD,Home Care - Elderly - North,Other Small Contracts,Kumari Care Limited,827.13, 21-Nov-2012
1039,Revenue,CCHD,Day Care - South,Private & Voluntary Day Care,Kumari Care Limited,229.2, 21-Nov-2012
1040,Revenue,CCHD,Under 65s -MH  Home Care Purch,Other Small Contracts,Kumari Care Limited,130.68, 21-Nov-2012
1041,Revenue,CCHD,PWLD Home Care - Under 65 - KH,Private & Voluntary Home Care,Kumari Care Limited,308.09, 21-Nov-2012
1042,Revenue,CCHD,Home Care - Elderly - South,Other Small Contracts,Kumari Care Limited,3788.08, 28-Nov-2012
1043,Revenue,CCHD,Home Care - Elderly - North,Other Small Contracts,Kumari Care Limited,827.13, 28-Nov-2012
1044,Revenue,CCHD,Day Care - South,Private & Voluntary Day Care,Kumari Care Limited,244.48, 28-Nov-2012
1045,Revenue,CCHD,Under 65s -MH  Home Care Purch,Other Small Contracts,Kumari Care Limited,168.37, 28-Nov-2012
1046,Revenue,CCHD,PWLD Home Care - Under 65 - KH,Private & Voluntary Home Care,Kumari Care Limited,199.61, 28-Nov-2012
1047,Revenue,CCHD,Home Care - Elderly - South,Other Small Contracts,Kumari Care Limited,4037.74, 28-Nov-2012
1048,Revenue,CCHD,Home Care - Elderly - North,Other Small Contracts,Kumari Care Limited,827.13, 28-Nov-2012
1049,Revenue,CCHD,Day Care - South,Private & Voluntary Day Care,Kumari Care Limited,233.02, 28-Nov-2012
1050,Revenue,CCHD,Under 65s -MH  Home Care Purch,Other Small Contracts,Kumari Care Limited,148.98, 28-Nov-2012
1051,Revenue,CCHD,PWLD Home Care - Under 65 - KH,Private & Voluntary Home Care,Kumari Care Limited,68.76, 28-Nov-2012
1052,Revenue,CCHD,Swift Dump Code,Residential Homes,Laurel Court,1716, 30-Nov-2012
1053,Revenue,CCHD,Social Lettings Agency,Other Supplies & Services,Individual,565, 14-Nov-2012
1054,Revenue,CCHD,Bed purchasing - Phys Dis - North,Nursing Homes,Leonard Cheshire  National Account Centr,2631.76, 27-Nov-2012
1055,Revenue,CCHD,Bed purchasing - Phys Dis - North,Residential Homes,Leonard Cheshire  National Account Centr,2330.6, 27-Nov-2012
1056,Revenue,CCHD,Bed Purchasing - Under 65s PWLD - South,Residential Homes,Leonard Cheshire  National Account Centr,2932.12, 27-Nov-2012
1057,Revenue,CCHD,Bed Purchasing - Elderly - North,Nursing Homes,Leonard Cheshire  National Account Centr,3436.6, 27-Nov-2012
1058,Revenue,CCHD,Bed purchasing - Phys Dis - North,Nursing Homes,Leonard Cheshire  National Account Centr,2736.6, 27-Nov-2012
1059,Revenue,CCHD,Bed Purchasing - Elderly - North,Residential Homes,Leonard Cheshire  National Account Centr,3122.24, 27-Nov-2012
1060,Revenue,CCHD,Bed purchasing - Phys Dis - North,Nursing Homes,Leonard Cheshire  National Account Centr,5624.88, 27-Nov-2012
1061,Revenue,CCHD,South Glos Users in B&NES Homes,Nursing Homes,Leonard Cheshire  National Account Centr,869.6, 27-Nov-2012
1062,Revenue,CCHD,Bed purchasing - Phys Dis - North,Nursing Homes,Leonard Cheshire  National Account Centr,3183.12, 27-Nov-2012
1063,Revenue,CCHD,Bed purchasing - Phys Dis - North,Residential Homes,Leonard Cheshire  National Account Centr,5725.44, 27-Nov-2012
1064,Revenue,CCHD,Bed Purchasing - Elderly - North,Nursing Homes,Leonard Cheshire  National Account Centr,3521.32, 27-Nov-2012
1065,Revenue,CCHD,Bed purchasing - Phys Dis - North,Nursing Homes,Leonard Cheshire  National Account Centr,3193.16, 27-Nov-2012
1066,Revenue,CCHD,Bed Purchasing - Elderly - South,Nursing Homes,Leonard Cheshire  National Account Centr,2841.24, 27-Nov-2012
1067,Revenue,CCHD,Southmead Hospital Purchasing,Nursing Homes,Leonard Cheshire  National Account Centr,5955.76, 27-Nov-2012
1068,Revenue,CCHD,South Glos Users in all other LA Homes,Nursing Homes,Leonard Cheshire  National Account Centr,1196.8, 27-Nov-2012
1069,Revenue,CCHD,Bed purchasing - Phys Dis - North,Nursing Homes,Leonard Cheshire  National Account Centr,6557.04, 27-Nov-2012
1070,Revenue,CCHD,South Glos Users in B&NES Homes,Nursing Homes,Leonard Cheshire  National Account Centr,869.6, 27-Nov-2012
1071,Revenue,CCHD,Frenchay Hospital Purchasing,Residential Homes,Leonard Cheshire  National Account Centr,3738.32, 27-Nov-2012
1072,Revenue,CCHD,Bed Purchasing - LD S28A- Over 65- South,Residential Homes,Leonard Cheshire  National Account Centr,2879.08, 27-Nov-2012
1073,Revenue,CCHD,Swift Dump Code,Residential Homes,Leonard Cheshire Disability,3576.28, 01-Nov-2012
1074,Revenue,CCHD,Community Support ACM - South,Preventative Assistance,Leonard Cheshire Disability,4374.72, 28-Nov-2012
1075,Revenue,CCHD,Bed Purchasing - Elderly - South,Nursing Homes,Leonard Elms Care Home,1528.76, 27-Nov-2012
1076,Revenue,CCHD,Supported Living - KD,Private & Voluntary Home Care,Lifeways Community Care (Gloucester) Ltd,8792, 16-Nov-2012
1077,Revenue,CCHD,Bed Purchasing - Elderly - South,Residential Homes,Little Croft,1996.36, 27-Nov-2012
1078,Revenue,CCHD,Bed Purchasing - Elderly - South,Residential Homes,Little Croft,1239.2, 27-Nov-2012
1079,Revenue,CCHD,Bed Purchasing - Elderly - South,Residential Homes,Little Croft,1418.6, 27-Nov-2012
1080,Revenue,CCHD,Bed Purchasing - Elderly - South,Residential Homes,Little Croft,1431.48, 27-Nov-2012
1081,Revenue,CCHD,Bed Purchasing - Elderly - South,Residential Homes,Little Croft,1838.36, 27-Nov-2012
1082,Revenue,CCHD,Bed Purchasing - Elderly - South,Residential Homes,Little Croft,1250.72, 27-Nov-2012
1083,Revenue,CCHD,Frenchay Hospital Purchasing,Residential Homes,Little Croft,1239.2, 27-Nov-2012
1084,Revenue,CCHD,Frenchay Hospital Purchasing,Residential Homes,Little Croft,885.14, 27-Nov-2012
1085,Revenue,CCHD,Bed Purchasing - Elderly MH - South,Residential Homes,Little Croft,1172.88, 27-Nov-2012
1086,Revenue,CCHD,Southmead Hospital Purchasing,Residential Homes,Little Croft,1202.52, 27-Nov-2012
1087,Revenue,CCHD,Bed Purchasing - Elderly - South,Residential Homes,Little Croft,1596.08, 27-Nov-2012
1088,Revenue,CCHD,Bed purchasing - Under 65s PWLD - North,Residential Homes,Littlecroft Residential Homes  Longcroft,6524.44, 27-Nov-2012
1089,Revenue,CCHD,Supporting People Programme,Grants to Voluntary Bodies,Livability Housing,1257.4, 27-Nov-2012
1090,Revenue,CCHD,Supported Living - PS,Private & Voluntary Home Care,Lloyds TSB Commercial Finance Limited,3998.44, 23-Nov-2012
1091,Revenue,CCHD,Supported Living - PS,Private & Voluntary Home Care,Lloyds TSB Commercial Finance Limited,3864.35, 23-Nov-2012
1092,Revenue,CCHD,Supported Living - PS,Private & Voluntary Home Care,Lloyds TSB Commercial Finance Limited,3812.79, 20-Nov-2012
1093,Revenue,CCHD,Supported Living - PS,Private & Voluntary Home Care,Lloyds TSB Commercial Finance Limited,5957.88, 20-Nov-2012
1094,Revenue,CCHD,Supported Living - PS,Private & Voluntary Home Care,Lloyds TSB Commercial Finance Limited,3916.59, 20-Nov-2012
1095,Revenue,CCHD,Supported Living - PS,Private & Voluntary Home Care,Lloyds TSB Commercial Finance Limited,3712.9, 23-Nov-2012
1096,Revenue,CCHD,Supported Living - PS,Private & Voluntary Home Care,Lloyds TSB Commercial Finance Limited,3753.22, 30-Nov-2012
1097,Revenue,CCHD,Supported Living - PS,Private & Voluntary Home Care,Lloyds TSB Commercial Finance Limited,3557.86, 30-Nov-2012
1098,Revenue,CCHD,Supported Living - PS,Private & Voluntary Home Care,Lloyds TSB Commercial Finance Limited,3649.17, 20-Nov-2012
1099,Revenue,CCHD,Supported Living - PS,Private & Voluntary Home Care,Lloyds TSB Commercial Finance Limited,590.52, 28-Nov-2012
1100,Revenue,CCHD,Home Care - Elderly - South,Other Small Contracts,Lloyds TSB Commercial Finance Limited,394.74, 09-Nov-2012
1101,Revenue,CCHD,Home Care - Elderly - North,Other Small Contracts,Lloyds TSB Commercial Finance Limited,4972.95, 09-Nov-2012
1102,Revenue,CCHD,Day Care - South,Private & Voluntary Day Care,Lloyds TSB Commercial Finance Limited,232.2, 09-Nov-2012
1103,Revenue,CCHD,Day Care - North,Private & Voluntary Day Care,Lloyds TSB Commercial Finance Limited,429.57, 09-Nov-2012
1104,Revenue,CCHD,Home care - Elderly MH - North,Other Small Contracts,Lloyds TSB Commercial Finance Limited,189.63, 09-Nov-2012
1105,Revenue,CCHD,Home Care - Elderly - South,Other Small Contracts,Lloyds TSB Commercial Finance Limited,460.53, 09-Nov-2012
1106,Revenue,CCHD,Home Care - Elderly - North,Other Small Contracts,Lloyds TSB Commercial Finance Limited,5143.23, 09-Nov-2012
1107,Revenue,CCHD,Day Care - South,Private & Voluntary Day Care,Lloyds TSB Commercial Finance Limited,216.72, 09-Nov-2012
1108,Revenue,CCHD,Day Care - North,Private & Voluntary Day Care,Lloyds TSB Commercial Finance Limited,429.57, 09-Nov-2012
1109,Revenue,CCHD,Home Care - Elderly - South,Other Small Contracts,Lloyds TSB Commercial Finance Limited,468.27, 09-Nov-2012
1110,Revenue,CCHD,Home Care - Elderly - North,Other Small Contracts,Lloyds TSB Commercial Finance Limited,5433.48, 09-Nov-2012
1111,Revenue,CCHD,Day Care - South,Private & Voluntary Day Care,Lloyds TSB Commercial Finance Limited,208.98, 09-Nov-2012
1112,Revenue,CCHD,Day Care - North,Private & Voluntary Day Care,Lloyds TSB Commercial Finance Limited,371.52, 09-Nov-2012
1113,Revenue,CCHD,Home Care - Elderly - South,Other Small Contracts,Lloyds TSB Commercial Finance Limited,325.08, 16-Nov-2012
1114,Revenue,CCHD,Home Care - Elderly - North,Other Small Contracts,Lloyds TSB Commercial Finance Limited,6029.46, 16-Nov-2012
1115,Revenue,CCHD,Day Care - South,Private & Voluntary Day Care,Lloyds TSB Commercial Finance Limited,201.24, 16-Nov-2012
1116,Revenue,CCHD,Day Care - North,Private & Voluntary Day Care,Lloyds TSB Commercial Finance Limited,445.05, 16-Nov-2012
1117,Revenue,CCHD,Supported Living - PS,Private & Voluntary Home Care,Loga Care Ltd T/A Logacre,3672.9, 20-Nov-2012
1118,Revenue,CCHD,Supported Living - PS,Private & Voluntary Home Care,Loga Care Ltd T/A Logacre,3795.33, 20-Nov-2012
1119,Revenue,CCHD,Supported Living - PS,Private & Voluntary Home Care,London Borough of Sutton,5631.78, 14-Nov-2012
1120,Revenue,CCHD,Bed Purchasing - Under 65s PWLD - South,Residential Homes,Longton Court,9508.88, 27-Nov-2012
1121,Revenue,CCHD,Social Lettings Agency,Other Supplies & Services,Individual,565, 01-Nov-2012
1122,Revenue,CCHD,Social Lettings Agency,Other Supplies & Services,Individual,565, 30-Nov-2012
1123,Revenue,CCHD,Southmead Hospital Purchasing,Nursing Homes,Majestic 3 Limited,1001.96, 27-Nov-2012
1124,Revenue,CCHD,Frenchay Hospital Purchasing,Residential Homes,Manor Cottage,696.6, 27-Nov-2012
1125,Revenue,CCHD,Bed Purchasing - Elderly - South,Residential Homes,Manor Cottage,1190.88, 27-Nov-2012
1126,Revenue,CCHD,Bed Purchasing - Elderly - South,Residential Homes,Manor Cottage,1903.2, 27-Nov-2012
1127,Revenue,CCHD,Bed Purchasing - Elderly - South,Residential Homes,Manor Cottage,1424.84, 27-Nov-2012
1128,Revenue,CCHD,Supporting People Programme,Grants to Voluntary Bodies,Maples Community Housing Limited,2652.15, 01-Nov-2012
1129,Revenue,CCHD,Supporting People Programme,Grants to Voluntary Bodies,Maples Community Housing Limited,2652.15, 30-Nov-2012
1130,Revenue,CCHD,Section 117 Placements MH Younger,Private & Voluntary Day Care,Maples Community Housing Limited,3274.71, 23-Nov-2012
1131,Revenue,CCHD,Social Lettings Agency,Other Supplies & Services,Individual,655.41, 23-Nov-2012
1132,Revenue,CCHD,Bed Purchasing - Under 65s PWLD - South,Residential Homes,Marsden Healthcare Limited,894.48, 23-Nov-2012
1133,Revenue,CCHD,Bed purchasing - Elderly PWLD - South,Residential Homes,Marsden Healthcare Limited,3177.12, 23-Nov-2012
1134,Revenue,CCHD,Bed purchasing - Elderly PWLD - South,Residential Homes,Marsden Healthcare Limited,1496.2, 23-Nov-2012
1135,Revenue,CCHD,Bed Purchasing - Elderly MH - South,Nursing Homes,Meadow Care Home,1467.28, 27-Nov-2012
1136,Revenue,CCHD,Home Care - Elderly - South,Private & Voluntary Home Care,Mears Care,48154.25, 28-Nov-2012
1137,Revenue,CCHD,Home Care - Elderly - South,Other Small Contracts,Mears Care,442.86, 05-Nov-2012
1138,Revenue,CCHD,Home Care - Elderly - North,Other Small Contracts,Mears Care,6324.48, 05-Nov-2012
1139,Revenue,CCHD,Day Care - South,Private & Voluntary Day Care,Mears Care,87.84, 05-Nov-2012
1140,Revenue,CCHD,Day Care - North,Private & Voluntary Day Care,Mears Care,248.88, 05-Nov-2012
1141,Revenue,CCHD,Under 65s -MH  Home Care Purch,Other Small Contracts,Mears Care,109.8, 05-Nov-2012
1142,Revenue,CCHD,Home care - Elderly MH - North,Other Small Contracts,Mears Care,655.14, 05-Nov-2012
1143,Revenue,CCHD,Elderly MH Day Care North,Private & Voluntary Day Care,Mears Care,32.94, 05-Nov-2012
1144,Revenue,CCHD,Home Care - Elderly LD - KH,Private & Voluntary Home Care,Mears Care,51.24, 05-Nov-2012
1145,Revenue,CCHD,Home Care - Elderly - South,Other Small Contracts,Mears Care,450.18, 12-Nov-2012
1146,Revenue,CCHD,Home Care - Elderly - North,Other Small Contracts,Mears Care,6276.9, 12-Nov-2012
1147,Revenue,CCHD,Day Care - South,Private & Voluntary Day Care,Mears Care,91.5, 12-Nov-2012
1148,Revenue,CCHD,Day Care - North,Private & Voluntary Day Care,Mears Care,245.22, 12-Nov-2012
1149,Revenue,CCHD,Under 65s -MH  Home Care Purch,Other Small Contracts,Mears Care,113.46, 12-Nov-2012
1150,Revenue,CCHD,Home care - Elderly MH - North,Other Small Contracts,Mears Care,673.44, 12-Nov-2012
1151,Revenue,CCHD,Elderly MH Day Care North,Private & Voluntary Day Care,Mears Care,29.28, 12-Nov-2012
1152,Revenue,CCHD,Home Care - Elderly LD - KH,Private & Voluntary Home Care,Mears Care,51.24, 12-Nov-2012
1153,Revenue,CCHD,Home Care - Elderly - South,Other Small Contracts,Mears Care,439.2, 16-Nov-2012
1154,Revenue,CCHD,Home Care - Elderly - North,Other Small Contracts,Mears Care,6569.7, 16-Nov-2012
1155,Revenue,CCHD,Day Care - South,Private & Voluntary Day Care,Mears Care,91.5, 16-Nov-2012
1156,Revenue,CCHD,Day Care - North,Private & Voluntary Day Care,Mears Care,248.88, 16-Nov-2012
1157,Revenue,CCHD,Under 65s -MH  Home Care Purch,Other Small Contracts,Mears Care,109.8, 16-Nov-2012
1158,Revenue,CCHD,Home care - Elderly MH - North,Other Small Contracts,Mears Care,691.74, 16-Nov-2012
1159,Revenue,CCHD,Elderly MH Day Care North,Private & Voluntary Day Care,Mears Care,29.28, 16-Nov-2012
1160,Revenue,CCHD,Home Care - Elderly LD - KH,Private & Voluntary Home Care,Mears Care,51.24, 16-Nov-2012
1161,Revenue,CCHD,Home Care - Elderly - South,Other Small Contracts,Mears Care,442.86, 29-Nov-2012
1162,Revenue,CCHD,Home Care - Elderly - North,Other Small Contracts,Mears Care,6540.42, 29-Nov-2012
1163,Revenue,CCHD,Day Care - South,Private & Voluntary Day Care,Mears Care,98.82, 29-Nov-2012
1164,Revenue,CCHD,Day Care - North,Private & Voluntary Day Care,Mears Care,248.88, 29-Nov-2012
1165,Revenue,CCHD,Under 65s -MH  Home Care Purch,Other Small Contracts,Mears Care,109.8, 29-Nov-2012
1166,Revenue,CCHD,Home care - Elderly MH - North,Other Small Contracts,Mears Care,699.06, 29-Nov-2012
1167,Revenue,CCHD,Elderly MH Day Care North,Private & Voluntary Day Care,Mears Care,32.94, 29-Nov-2012
1168,Revenue,CCHD,Home Care - Elderly LD - KH,Private & Voluntary Home Care,Mears Care,51.24, 29-Nov-2012
1169,Revenue,CCHD,Home Care - Elderly - North,Other Small Contracts,Medacs Home Care,698.92, 12-Nov-2012
1170,Revenue,CCHD,Home care - Elderly MH - North,Other Small Contracts,Medacs Home Care,117.64, 12-Nov-2012
1171,Revenue,CCHD,Home Care - Elderly - North,Other Small Contracts,Medacs Home Care,647.02, 12-Nov-2012
1172,Revenue,CCHD,Home care - Elderly MH - North,Other Small Contracts,Medacs Home Care,128.02, 12-Nov-2012
1173,Revenue,CCHD,Home Care - Elderly - North,Other Small Contracts,Medacs Home Care,460.18, 12-Nov-2012
1174,Revenue,CCHD,Home care - Elderly MH - North,Other Small Contracts,Medacs Home Care,141.86, 12-Nov-2012
1175,Revenue,CCHD,Home Care - Elderly - North,Other Small Contracts,Medacs Home Care,657.4, 12-Nov-2012
1176,Revenue,CCHD,Home care - Elderly MH - North,Other Small Contracts,Medacs Home Care,134.94, 12-Nov-2012
1177,Revenue,CCHD,Home Care - Elderly - North,Other Small Contracts,Medacs Home Care,698.92, 12-Nov-2012
1178,Revenue,CCHD,Home care - Elderly MH - North,Other Small Contracts,Medacs Home Care,117.64, 12-Nov-2012
1179,Revenue,CCHD,Home Care - Elderly - North,Other Small Contracts,Medacs Home Care,781.83, 12-Nov-2012
1180,Revenue,CCHD,Home care - Elderly MH - North,Other Small Contracts,Medacs Home Care,128.02, 12-Nov-2012
1181,Revenue,CCHD,NRS Contract,Daily Living Equipment,Medequip Assistive Technology Ltd,58296.05, 14-Nov-2012
1182,Revenue,CCHD,NRS Contract,Daily Living Equipment,Medequip Assistive Technology Ltd,89720.73, 14-Nov-2012
1183,Revenue,CCHD,Home Care - Elderly - South,Other Small Contracts,Medico Nursing & Homecare Ltd,2052.65, 12-Nov-2012
1184,Revenue,CCHD,Home Care - Elderly - North,Other Small Contracts,Medico Nursing & Homecare Ltd,9740.81, 12-Nov-2012
1185,Revenue,CCHD,Day Care - South,Private & Voluntary Day Care,Medico Nursing & Homecare Ltd,50.64, 12-Nov-2012
1186,Revenue,CCHD,Day Care - North,Private & Voluntary Day Care,Medico Nursing & Homecare Ltd,627.59, 12-Nov-2012
1187,Revenue,CCHD,Home care - Elderly MH - North,Other Small Contracts,Medico Nursing & Homecare Ltd,751.16, 12-Nov-2012
1188,Revenue,CCHD,Home Care - LD Under 65 - South,Private & Voluntary Home Care,Medico Nursing & Homecare Ltd,270.08, 12-Nov-2012
1189,Revenue,CCHD,PWLD Home Care - Under 65 - KH,Private & Voluntary Home Care,Medico Nursing & Homecare Ltd,742.73, 12-Nov-2012
1190,Revenue,CCHD,Home Care - Elderly - South,Other Small Contracts,Medico Nursing & Homecare Ltd,1915.88, 09-Nov-2012
1191,Revenue,CCHD,Home Care - Elderly - North,Other Small Contracts,Medico Nursing & Homecare Ltd,9543.14, 09-Nov-2012
1192,Revenue,CCHD,Day Care - North,Private & Voluntary Day Care,Medico Nursing & Homecare Ltd,581.8, 09-Nov-2012
1193,Revenue,CCHD,Home care - Elderly MH - North,Other Small Contracts,Medico Nursing & Homecare Ltd,738.5, 09-Nov-2012
1194,Revenue,CCHD,Home Care - LD Under 65 - South,Private & Voluntary Home Care,Medico Nursing & Homecare Ltd,270.08, 09-Nov-2012
1195,Revenue,CCHD,PWLD Home Care - Under 65 - KH,Private & Voluntary Home Care,Medico Nursing & Homecare Ltd,662.54, 09-Nov-2012
1196,Revenue,CCHD,Home Care - Elderly - South,Other Small Contracts,Medico Nursing & Homecare Ltd,1801.94, 09-Nov-2012
1197,Revenue,CCHD,Home Care - Elderly - North,Other Small Contracts,Medico Nursing & Homecare Ltd,9856.28, 09-Nov-2012
1198,Revenue,CCHD,Day Care - North,Private & Voluntary Day Care,Medico Nursing & Homecare Ltd,595.02, 09-Nov-2012
1199,Revenue,CCHD,Home care - Elderly MH - North,Other Small Contracts,Medico Nursing & Homecare Ltd,776.48, 09-Nov-2012
1200,Revenue,CCHD,Elderly MH Day Care North,Private & Voluntary Day Care,Medico Nursing & Homecare Ltd,118.16, 09-Nov-2012
1201,Revenue,CCHD,Home Care - LD Under 65 - South,Private & Voluntary Home Care,Medico Nursing & Homecare Ltd,270.08, 09-Nov-2012
1202,Revenue,CCHD,PWLD Home Care - Under 65 - KH,Private & Voluntary Home Care,Medico Nursing & Homecare Ltd,738.5, 09-Nov-2012
1203,Revenue,CCHD,Home Care - Elderly - South,Other Small Contracts,Medico Nursing & Homecare Ltd,1907.44, 12-Nov-2012
1204,Revenue,CCHD,Home Care - Elderly - North,Other Small Contracts,Medico Nursing & Homecare Ltd,9942.78, 12-Nov-2012
1205,Revenue,CCHD,Day Care - South,Private & Voluntary Day Care,Medico Nursing & Homecare Ltd,25.32, 12-Nov-2012
1206,Revenue,CCHD,Day Care - North,Private & Voluntary Day Care,Medico Nursing & Homecare Ltd,616.12, 12-Nov-2012
1207,Revenue,CCHD,Home care - Elderly MH - North,Other Small Contracts,Medico Nursing & Homecare Ltd,742.72, 12-Nov-2012
1208,Revenue,CCHD,Elderly MH Day Care North,Private & Voluntary Day Care,Medico Nursing & Homecare Ltd,122.38, 12-Nov-2012
1209,Revenue,CCHD,Home Care - LD Under 65 - South,Private & Voluntary Home Care,Medico Nursing & Homecare Ltd,270.08, 12-Nov-2012
1210,Revenue,CCHD,PWLD Home Care - Under 65 - KH,Private & Voluntary Home Care,Medico Nursing & Homecare Ltd,713.2, 12-Nov-2012
1211,Revenue,CCHD,Home Care - Elderly - South,Other Small Contracts,Medico Nursing & Homecare Ltd,1835.7, 09-Nov-2012
1212,Revenue,CCHD,Home Care - Elderly - North,Other Small Contracts,Medico Nursing & Homecare Ltd,10346.41, 09-Nov-2012
1213,Revenue,CCHD,Day Care - South,Private & Voluntary Day Care,Medico Nursing & Homecare Ltd,101.28, 09-Nov-2012
1214,Revenue,CCHD,Day Care - North,Private & Voluntary Day Care,Medico Nursing & Homecare Ltd,628.78, 09-Nov-2012
1215,Revenue,CCHD,Home care - Elderly MH - North,Other Small Contracts,Medico Nursing & Homecare Ltd,730.06, 09-Nov-2012
1216,Revenue,CCHD,Elderly MH Day Care North,Private & Voluntary Day Care,Medico Nursing & Homecare Ltd,50.64, 09-Nov-2012
1217,Revenue,CCHD,Home Care - LD Under 65 - South,Private & Voluntary Home Care,Medico Nursing & Homecare Ltd,261.64, 09-Nov-2012
1218,Revenue,CCHD,PWLD Home Care - Under 65 - KH,Private & Voluntary Home Care,Medico Nursing & Homecare Ltd,721.62, 09-Nov-2012
1219,Revenue,CCHD,Home Care - Elderly - South,Other Small Contracts,Medico Nursing & Homecare Ltd,1873.68, 09-Nov-2012
1220,Revenue,CCHD,Home Care - Elderly - North,Other Small Contracts,Medico Nursing & Homecare Ltd,9278.44, 09-Nov-2012
1221,Revenue,CCHD,Day Care - South,Private & Voluntary Day Care,Medico Nursing & Homecare Ltd,25.32, 09-Nov-2012
1222,Revenue,CCHD,Day Care - North,Private & Voluntary Day Care,Medico Nursing & Homecare Ltd,582.36, 09-Nov-2012
1223,Revenue,CCHD,Home care - Elderly MH - North,Other Small Contracts,Medico Nursing & Homecare Ltd,734.28, 09-Nov-2012
1224,Revenue,CCHD,Elderly MH Day Care North,Private & Voluntary Day Care,Medico Nursing & Homecare Ltd,118.16, 09-Nov-2012
1225,Revenue,CCHD,Home Care - LD Under 65 - South,Private & Voluntary Home Care,Medico Nursing & Homecare Ltd,261.64, 09-Nov-2012
1226,Revenue,CCHD,PWLD Home Care - Under 65 - KH,Private & Voluntary Home Care,Medico Nursing & Homecare Ltd,670.98, 09-Nov-2012
1227,Revenue,CCHD,Home Care - Elderly - South,Other Small Contracts,Medico Nursing & Homecare Ltd,1894.78, 09-Nov-2012
1228,Revenue,CCHD,Home Care - Elderly - North,Other Small Contracts,Medico Nursing & Homecare Ltd,9474.67, 09-Nov-2012
1229,Revenue,CCHD,Day Care - South,Private & Voluntary Day Care,Medico Nursing & Homecare Ltd,25.32, 09-Nov-2012
1230,Revenue,CCHD,Day Care - North,Private & Voluntary Day Care,Medico Nursing & Homecare Ltd,586.58, 09-Nov-2012
1231,Revenue,CCHD,Home care - Elderly MH - North,Other Small Contracts,Medico Nursing & Homecare Ltd,742.72, 09-Nov-2012
1232,Revenue,CCHD,Elderly MH Day Care North,Private & Voluntary Day Care,Medico Nursing & Homecare Ltd,118.16, 09-Nov-2012
1233,Revenue,CCHD,Home Care - LD Under 65 - South,Private & Voluntary Home Care,Medico Nursing & Homecare Ltd,270.08, 09-Nov-2012
1234,Revenue,CCHD,PWLD Home Care - Under 65 - KH,Private & Voluntary Home Care,Medico Nursing & Homecare Ltd,708.96, 09-Nov-2012
1235,Revenue,CCHD,Woodleaze,Furniture & Fittings Loose,Medipost (UK) Limited,485.52, 27-Nov-2012
1236,Revenue,CCHD,Woodleaze,Furniture & Fittings Loose,Medipost (UK) Limited,7.14, 27-Nov-2012
1237,Revenue,CCHD,Woodleaze,Drugs & Medical Supplies,Medipost (UK) Limited,487.86, 27-Nov-2012
1238,Revenue,CCHD,Bed Purchasing - Under 65s PWLD - South,Residential Homes,Mencap,2198.88, 27-Nov-2012
1239,Revenue,CCHD,Supported Living (S28a) South,Private & Voluntary Home Care,Mencap - PS North,3751.02, 13-Nov-2012
1240,Revenue,CCHD,Supported Living (S28a) South,Private & Voluntary Home Care,Mencap - PS North,3751.02, 13-Nov-2012
1241,Revenue,CCHD,Supporting People Programme,Grants to Voluntary Bodies,Merlin Housing Society,1016.8, 01-Nov-2012
1242,Revenue,CCHD,Supporting People Programme,Grants to Voluntary Bodies,Merlin Housing Society,1016.8, 30-Nov-2012
1243,Revenue,CCHD,Supporting People Programme,Grants to Voluntary Bodies,Merlin Housing Society,15252, 01-Nov-2012
1244,Revenue,CCHD,Supporting People Programme,Grants to Voluntary Bodies,Merlin Housing Society,15252, 30-Nov-2012
1245,Revenue,CCHD,Supporting People Programme,Grants to Voluntary Bodies,Merlin Housing Society,2399.99, 01-Nov-2012
1246,Revenue,CCHD,Supporting People Programme,Grants to Voluntary Bodies,Merlin Housing Society,2399.99, 30-Nov-2012
1247,Revenue,CCHD,Supporting People Programme,Grants to Voluntary Bodies,Merlin Housing Society,50840, 01-Nov-2012
1248,Revenue,CCHD,Supporting People Programme,Grants to Voluntary Bodies,Merlin Housing Society,50840, 30-Nov-2012
1249,Revenue,CCHD,Frenchay Hospital Purchasing,Residential Homes,Milburn Finance,1035.6, 27-Nov-2012
1250,Revenue,CCHD,Home Care - Elderly - South,Other Small Contracts,Milestones Outreach Dementia Services,1184.2, 26-Nov-2012
1251,Revenue,CCHD,Home Care - Elderly - North,Other Small Contracts,Milestones Outreach Dementia Services,481.32, 26-Nov-2012
1252,Revenue,CCHD,Day Care - South,Private & Voluntary Day Care,Milestones Outreach Dementia Services,126.06, 26-Nov-2012
1253,Revenue,CCHD,Day Care - North,Private & Voluntary Day Care,Milestones Outreach Dementia Services,164.16, 26-Nov-2012
1254,Revenue,CCHD,Home care - Elderly MH - North,Other Small Contracts,Milestones Outreach Dementia Services,240.66, 26-Nov-2012
1255,Revenue,CCHD,Elderly MH Day Care North,Private & Voluntary Day Care,Milestones Outreach Dementia Services,382, 26-Nov-2012
1256,Revenue,CCHD,Home Care - Elderly - South,Other Small Contracts,Milestones Outreach Dementia Services,924.44, 26-Nov-2012
1257,Revenue,CCHD,Home Care - Elderly - North,Other Small Contracts,Milestones Outreach Dementia Services,446.94, 26-Nov-2012
1258,Revenue,CCHD,Day Care - South,Private & Voluntary Day Care,Milestones Outreach Dementia Services,61.12, 26-Nov-2012
1259,Revenue,CCHD,Day Care - North,Private & Voluntary Day Care,Milestones Outreach Dementia Services,164.16, 26-Nov-2012
1260,Revenue,CCHD,Home care - Elderly MH - North,Other Small Contracts,Milestones Outreach Dementia Services,229.2, 26-Nov-2012
1261,Revenue,CCHD,Elderly MH Day Care North,Private & Voluntary Day Care,Milestones Outreach Dementia Services,244.48, 26-Nov-2012
1262,Revenue,CCHD,Home Care - Elderly - South,Other Small Contracts,Milestones Outreach Dementia Services,1310.26, 26-Nov-2012
1263,Revenue,CCHD,Home Care - Elderly - North,Other Small Contracts,Milestones Outreach Dementia Services,508.06, 26-Nov-2012
1264,Revenue,CCHD,Day Care - South,Private & Voluntary Day Care,Milestones Outreach Dementia Services,126.06, 26-Nov-2012
1265,Revenue,CCHD,Day Care - North,Private & Voluntary Day Care,Milestones Outreach Dementia Services,164.16, 26-Nov-2012
1266,Revenue,CCHD,Home care - Elderly MH - North,Other Small Contracts,Milestones Outreach Dementia Services,229.2, 26-Nov-2012
1267,Revenue,CCHD,Elderly MH Day Care North,Private & Voluntary Day Care,Milestones Outreach Dementia Services,244.48, 26-Nov-2012
1268,Revenue,CCHD,Elderly MH Day Care South,Private & Voluntary Day Care,Milestones Trust,640, 02-Nov-2012
1269,Revenue,CCHD,Supported Living - PS,Private & Voluntary Home Care,Milestones Trust,607.88, 13-Nov-2012
1270,Revenue,CCHD,Supported Living - PS,Private & Voluntary Home Care,Milestones Trust,1971.61, 13-Nov-2012
1271,Revenue,CCHD,Supported Living - PS,Private & Voluntary Home Care,Milestones Trust,1797.49, 13-Nov-2012
1272,Revenue,CCHD,Supported Living - PS,Private & Voluntary Home Care,Milestones Trust,695.89, 13-Nov-2012
1273,Revenue,CCHD,Supported Living (S28a) South,Private & Voluntary Home Care,Milestones Trust,3544.76, 14-Nov-2012
1274,Revenue,CCHD,Supported Living (S28a) South,Private & Voluntary Home Care,Milestones Trust,3572, 14-Nov-2012
1275,Revenue,CCHD,Supported Living - PS,Private & Voluntary Home Care,Milestones Trust,3160.17, 13-Nov-2012
1276,Revenue,CCHD,Supported Living (S28a) South,Private & Voluntary Home Care,Milestones Trust,3778.73, 14-Nov-2012
1277,Revenue,CCHD,Supported Living (S28a) North,Private & Voluntary Home Care,Milestones Trust,5052.92, 29-Nov-2012
1278,Revenue,CCHD,Supported Living - KD,Private & Voluntary Home Care,Milestones Trust,5172.36, 08-Nov-2012
1279,Revenue,CCHD,Supported Living (S28a) North,Private & Voluntary Home Care,Milestones Trust,3857.95, 29-Nov-2012
1280,Revenue,CCHD,Supported Living (S28a) North,Private & Voluntary Home Care,Milestones Trust,3479.2, 29-Nov-2012
1281,Revenue,CCHD,Supported Living (S28a) North,Private & Voluntary Home Care,Milestones Trust,3479.2, 29-Nov-2012
1282,Revenue,CCHD,Purchase of Non-Res Care - PS,Private & Voluntary Day Care,Milestones Trust,664.61, 13-Nov-2012
1283,Revenue,CCHD,Supported Living (S28a) South,Private & Voluntary Home Care,Milestones Trust,5869.72, 14-Nov-2012
1284,Revenue,CCHD,Supported Living - KD,Private & Voluntary Home Care,Milestones Trust,539.87, 26-Nov-2012
1285,Revenue,CCHD,Supported Living (S28a) South,Private & Voluntary Home Care,Milestones Trust,676.67, 14-Nov-2012
1286,Revenue,CCHD,Supported Living (S28a) North,Private & Voluntary Home Care,Milestones Trust,3936.2, 09-Nov-2012
1287,Revenue,CCHD,Supported Living (S28a) North,Private & Voluntary Home Care,Milestones Trust,3936.2, 09-Nov-2012
1288,Revenue,CCHD,Supported Living - PS,Private & Voluntary Home Care,Milestones Trust,670, 13-Nov-2012
1289,Revenue,CCHD,Supported Living - PS,Private & Voluntary Home Care,Milestones Trust,988.35, 13-Nov-2012
1290,Revenue,CCHD,Supported Living (S28a) South,Private & Voluntary Home Care,Milestones Trust,4258.27, 14-Nov-2012
1291,Revenue,CCHD,Supported Living (S28a) North,Private & Voluntary Home Care,Milestones Trust,8907.78, 29-Nov-2012
1292,Revenue,CCHD,Supported Living (S28a) North,Private & Voluntary Home Care,Milestones Trust,8910.85, 29-Nov-2012
1293,Revenue,CCHD,Supported Living - PS,Private & Voluntary Home Care,Milestones Trust,17957.39, 14-Nov-2012
1294,Revenue,CCHD,Supported Living (S28a) North,Private & Voluntary Home Care,Milestones Trust,3719.65, 30-Nov-2012
1295,Revenue,CCHD,Supported Living (S28a) North,Private & Voluntary Home Care,Milestones Trust,3224.93, 30-Nov-2012
1296,Revenue,CCHD,Supported Living (S28a) North,Private & Voluntary Home Care,Milestones Trust,3120.9, 30-Nov-2012
1297,Revenue,CCHD,Supported Living (S28a) North,Private & Voluntary Home Care,Milestones Trust,2897.95, 30-Nov-2012
1298,Revenue,CCHD,Supported Living (S28a) North,Private & Voluntary Home Care,Milestones Trust,3269.22, 30-Nov-2012
1299,Revenue,CCHD,Supported Living (S28a) North,Private & Voluntary Home Care,Milestones Trust,3163.76, 29-Nov-2012
1300,Revenue,CCHD,Purchase of Non-Res Care - PS,Private & Voluntary Day Care,Milestones Trust,536.41, 14-Nov-2012
1301,Revenue,CCHD,Supported Living - KD,Private & Voluntary Home Care,Milestones Trust,1731.3, 30-Nov-2012
1302,Revenue,CCHD,Supported Living - PS,Private & Voluntary Home Care,Milestones Trust,1820.61, 13-Nov-2012
1303,Revenue,CCHD,Purchase of Non-Res Care - PS,Private & Voluntary Day Care,Milestones Trust,1696.44, 13-Nov-2012
1304,Revenue,CCHD,Purchase of Non-Res Care - PS,Private & Voluntary Day Care,Milestones Trust,1225.72, 13-Nov-2012
1305,Revenue,CCHD,Purchase of Non-Res Care - PS,Private & Voluntary Day Care,Milestones Trust,1194, 13-Nov-2012
1306,Revenue,CCHD,Purchase of Non-Res Care - PS,Private & Voluntary Day Care,Milestones Trust,1150.39, 13-Nov-2012
1307,Revenue,CCHD,Supported Living - PS,Private & Voluntary Home Care,Milestones Trust,620.82, 13-Nov-2012
1308,Revenue,CCHD,Purchase of Non-Res Care - PS,Private & Voluntary Day Care,Milestones Trust,1458.39, 13-Nov-2012
1309,Revenue,CCHD,Purchase of Non-Res Care - PS,Private & Voluntary Day Care,Milestones Trust,1817.59, 13-Nov-2012
1310,Revenue,CCHD,Purchase of Non-Res Care - PS,Private & Voluntary Day Care,Milestones Trust,573.36, 13-Nov-2012
1311,Revenue,CCHD,Purchase of Non-Res Care - PS,Private & Voluntary Day Care,Milestones Trust,1613.37, 13-Nov-2012
1312,Revenue,CCHD,Purchase of Non-Res Care - PS,Private & Voluntary Day Care,Milestones Trust,521.4, 14-Nov-2012
1313,Revenue,CCHD,Purchase of Non-Res Care - PS,Private & Voluntary Day Care,Milestones Trust,1301.54, 13-Nov-2012
1314,Revenue,CCHD,Purchase of Non-Res Care - PS,Private & Voluntary Day Care,Milestones Trust,1502.08, 13-Nov-2012
1315,Revenue,CCHD,Purchase of Non-Res Care - PS,Private & Voluntary Day Care,Milestones Trust,1278.59, 13-Nov-2012
1316,Revenue,CCHD,Supported Living - PS,Private & Voluntary Home Care,Milestones Trust,1761, 13-Nov-2012
1317,Revenue,CCHD,Supported Living - PS,Private & Voluntary Home Care,Milestones Trust,14851.2, 20-Nov-2012
1318,Revenue,CCHD,Supported Living - PS,Private & Voluntary Home Care,Milestones Trust,17501.59, 14-Nov-2012
1319,Revenue,CCHD,Supported Living - PS,Private & Voluntary Home Care,Milestones Trust,13960, 14-Nov-2012
1320,Revenue,CCHD,Elderly MH Day Care South,Private & Voluntary Day Care,Milestones Trust,760, 27-Nov-2012
1321,Revenue,CCHD,Elderly MH Day Care North,Private & Voluntary Day Care,Milestones Trust,520, 27-Nov-2012
1322,Revenue,CCHD,Supported Living - PS,Private & Voluntary Home Care,Milestones Trust,551.14, 23-Nov-2012
1323,Revenue,CCHD,Purchase of Non-Res Care - PS,Private & Voluntary Day Care,Milestones Trust,575.46, 23-Nov-2012
1324,Revenue,CCHD,Supported Living - PS,Private & Voluntary Home Care,Milestones Trust,668.88, 23-Nov-2012
1325,Revenue,CCHD,Supported Living - PS,Private & Voluntary Home Care,Milestones Trust,1332.59, 23-Nov-2012
1326,Revenue,CCHD,Supported Living - PS,Private & Voluntary Home Care,Milestones Trust,2224.72, 23-Nov-2012
1327,Revenue,CCHD,Supported Living - PS,Private & Voluntary Home Care,Milestones Trust,1377.83, 23-Nov-2012
1328,Revenue,CCHD,Supported Living (S28a) South,Private & Voluntary Home Care,Milestones Trust,574.48, 28-Nov-2012
1329,Revenue,CCHD,Bed purchasing - Elderly S117 - South,Nursing Homes,Mimosa Healthcare Holdings Ltd,1919.72, 27-Nov-2012
1330,Revenue,CCHD,Frenchay Hospital Purchasing,Nursing Homes,Mimosa Healthcare Holdings Ltd,1295.2, 27-Nov-2012
1331,Revenue,CCHD,Bed purchasing - Elderly MH - North,Nursing Homes,Mimosa Healthcare Holdings Ltd,862.52, 27-Nov-2012
1332,Revenue,CCHD,Bed Purchasing - Elderly - South,Nursing Homes,Mimosa Healthcare Holdings Ltd,959.72, 27-Nov-2012
1333,Revenue,CCHD,Frenchay Hospital Purchasing,Nursing Homes,Mimosa Healthcare Holdings Ltd,1295.2, 27-Nov-2012
1334,Revenue,CCHD,Southmead Hospital Purchasing,Residential Homes,Mimosa Healthcare Holdings Ltd,5111.66, 27-Nov-2012
1335,Revenue,CCHD,Southmead Hospital Purchasing,Nursing Homes,Mimosa Healthcare Holdings Ltd,1366.88, 27-Nov-2012
1336,Revenue,CCHD,Non Priority Bond Scheme,Other Supplies & Services,Miss L J Lawrenson,550, 06-Nov-2012
1337,Revenue,CCHD,Swift Dump Code,Residential Homes,Modus Care Ltd,17585.6, 29-Nov-2012
1338,Revenue,CCHD,Bed Purchasing - LD S28A- Over 65- South,Nursing Homes,Mortimer House Nursing Home,2996.52, 23-Nov-2012
1339,Revenue,CCHD,Bed Purchasing - LD S28A- Over 65- South,Nursing Homes,Mortimer House Nursing Home,2553.84, 23-Nov-2012
1340,Revenue,CCHD,Bed Purchasing - LD S28A- Over 65- South,Nursing Homes,Mortimer House Nursing Home,3271.92, 23-Nov-2012
1341,Revenue,CCHD,Bed purchasing - Elderly PWLD - South,Nursing Homes,Mortimer House Nursing Home,608.15, 23-Nov-2012
1342,Revenue,CCHD,Bed Purchasing - LD S28A- Over 65- South,Nursing Homes,Mortimer House Nursing Home,3277.24, 23-Nov-2012
1343,Revenue,CCHD,Bed Purchasing - S28A - Over 65- North,Nursing Homes,Mortimer House Nursing Home,7238.4, 23-Nov-2012
1344,Revenue,CCHD,Bed Purchasing - S28A - Over 65- North,Nursing Homes,Mortimer House Nursing Home,7238.4, 23-Nov-2012
1345,Revenue,CCHD,Bed purchasing - Elderly S117 - South,Residential Homes,Mostyn Lodge Residential Home,1880, 27-Nov-2012
1346,Revenue,CCHD,Frenchay Hospital Purchasing,Residential Homes,Mostyn Lodge Residential Home,622.96, 27-Nov-2012
1347,Revenue,CCHD,Supported Living - PS,Private & Voluntary Home Care,Moving On,3586.08, 20-Nov-2012
1348,Revenue,CCHD,Supported Living - PS,Private & Voluntary Home Care,Moving On,3738.97, 20-Nov-2012
1349,Revenue,CCHD,Supported Living - PS,Private & Voluntary Home Care,Moving On,6345.05, 20-Nov-2012
1350,Revenue,CCHD,Supported Living - PS,Private & Voluntary Home Care,Moving On,6549.77, 20-Nov-2012
1351,Revenue,CCHD,Social Lettings Agency,Other Supplies & Services,Individual,565, 26-Nov-2012
1352,Revenue,CCHD,Social Lettings Agency,Other Supplies & Services,Individual,850, 12-Nov-2012
1353,Revenue,CCHD,Under 65s PWLD - KH,Residential Homes,Mr J Davis & Mrs S Davis,1870.91, 06-Nov-2012
1354,Revenue,CCHD,Social Lettings Agency,Other Supplies & Services,Individual,565, 08-Nov-2012
1355,Revenue,CCHD,Social Lettings Agency,Other Supplies & Services,Individual,632.81, 20-Nov-2012
1356,Revenue,CCHD,Tenancy Start Up Scheme,Other Supplies & Services,Individual,1300, 06-Nov-2012
1357,Revenue,CCHD,Social Lettings Agency,Other Supplies & Services,Individual,551.44, 08-Nov-2012
1358,Revenue,CCHD,Social Lettings Agency,Other Supplies & Services,Individual,565, 07-Nov-2012
1359,Revenue,CCHD,Social Lettings Agency,Other Supplies & Services,Individual,672.8, 02-Nov-2012
1360,Revenue,CCHD,Social Lettings Agency,Other Supplies & Services,Individual,672.8, 21-Nov-2012
1361,Revenue,CCHD,Social Lettings Agency,Other Supplies & Services,Individual,632.81, 15-Nov-2012
1362,Revenue,CCHD,Elderly MH Day Care South,Private & Voluntary Day Care,Mrs B Kimber,664.92, 27-Nov-2012
1363,Revenue,CCHD,Elderly MH Day Care South,Private & Voluntary Day Care,Mrs B Kimber,517.16, 26-Nov-2012
1364,Revenue,CCHD,Supported Living - PS,Private & Voluntary Home Care,Mrs B Kimber,8556.67, 26-Nov-2012
1365,Revenue,CCHD,Supported Living - PS,Private & Voluntary Home Care,Mrs B Kimber,10691.63, 13-Nov-2012
1366,Revenue,CCHD,Day Care - South,Private & Voluntary Day Care,Mrs B Kimber,969.71, 23-Nov-2012
1367,Revenue,CCHD,Purchase of Non-Res Care - KD,Private & Voluntary Day Care,Mrs B Kimber,829.86, 23-Nov-2012
1368,Revenue,CCHD,Supported Living - PS,Private & Voluntary Home Care,Mrs B Kimber,1451.71, 22-Nov-2012
1369,Revenue,CCHD,Purchase of Non-Res Care - PS,Private & Voluntary Day Care,Mrs B Kimber,1084.47, 22-Nov-2012
1370,Revenue,CCHD,Home Care - Elderly - South,Other Small Contracts,Mrs B Kimber - Stepping Stones,4844.08, 02-Nov-2012
1371,Revenue,CCHD,Home Care - Elderly - North,Other Small Contracts,Mrs B Kimber - Stepping Stones,3629.05, 02-Nov-2012
1372,Revenue,CCHD,Day Care - South,Private & Voluntary Day Care,Mrs B Kimber - Stepping Stones,1010.52, 02-Nov-2012
1373,Revenue,CCHD,Day Care - North,Private & Voluntary Day Care,Mrs B Kimber - Stepping Stones,240.6, 02-Nov-2012
1374,Revenue,CCHD,Under 65s -MH  Home Care Purch,Other Small Contracts,Mrs B Kimber - Stepping Stones,200.5, 02-Nov-2012
1375,Revenue,CCHD,Home care - Elderly MH - North,Other Small Contracts,Mrs B Kimber - Stepping Stones,212.53, 02-Nov-2012
1376,Revenue,CCHD,Elderly MH Day Care North,Private & Voluntary Day Care,Mrs B Kimber - Stepping Stones,280.7, 02-Nov-2012
1377,Revenue,CCHD,Home care - Elderly MH - South,Other Small Contracts,Mrs B Kimber - Stepping Stones,228.57, 02-Nov-2012
1378,Revenue,CCHD,Supported Living - KD,Private & Voluntary Home Care,Mrs B Kimber - Stepping Stones,769.92, 02-Nov-2012
1379,Revenue,CCHD,Home Care - LD Under 65 - South,Private & Voluntary Home Care,Mrs B Kimber - Stepping Stones,108.27, 02-Nov-2012
1380,Revenue,CCHD,Home Care - LD Under 65 - North,Private & Voluntary Home Care,Mrs B Kimber - Stepping Stones,44.11, 02-Nov-2012
1381,Revenue,CCHD,PWLD Home Care - Under 65 - KH,Private & Voluntary Home Care,Mrs B Kimber - Stepping Stones,88.22, 02-Nov-2012
1382,Revenue,CCHD,Home Care - Elderly LD - North,Private & Voluntary Home Care,Mrs B Kimber - Stepping Stones,962.4, 02-Nov-2012
1383,Revenue,CCHD,Home Care - Elderly - South,Other Small Contracts,Mrs B Kimber - Stepping Stones,4803.98, 22-Nov-2012
1384,Revenue,CCHD,Home Care - Elderly - North,Other Small Contracts,Mrs B Kimber - Stepping Stones,3440.58, 22-Nov-2012
1385,Revenue,CCHD,Day Care - South,Private & Voluntary Day Care,Mrs B Kimber - Stepping Stones,1026.56, 22-Nov-2012
1386,Revenue,CCHD,Day Care - North,Private & Voluntary Day Care,Mrs B Kimber - Stepping Stones,236.59, 22-Nov-2012
1387,Revenue,CCHD,Under 65s -MH  Home Care Purch,Other Small Contracts,Mrs B Kimber - Stepping Stones,232.58, 22-Nov-2012
1388,Revenue,CCHD,Home care - Elderly MH - North,Other Small Contracts,Mrs B Kimber - Stepping Stones,248.62, 22-Nov-2012
1389,Revenue,CCHD,Elderly MH Day Care North,Private & Voluntary Day Care,Mrs B Kimber - Stepping Stones,288.72, 22-Nov-2012
1390,Revenue,CCHD,Home care - Elderly MH - South,Other Small Contracts,Mrs B Kimber - Stepping Stones,220.55, 22-Nov-2012
1391,Revenue,CCHD,Supported Living - KD,Private & Voluntary Home Care,Mrs B Kimber - Stepping Stones,962.4, 22-Nov-2012
1392,Revenue,CCHD,Home Care - LD Under 65 - South,Private & Voluntary Home Care,Mrs B Kimber - Stepping Stones,120.3, 22-Nov-2012
1393,Revenue,CCHD,Home Care - LD Under 65 - North,Private & Voluntary Home Care,Mrs B Kimber - Stepping Stones,48.12, 22-Nov-2012
1394,Revenue,CCHD,PWLD Home Care - Under 65 - KH,Private & Voluntary Home Care,Mrs B Kimber - Stepping Stones,88.22, 22-Nov-2012
1395,Revenue,CCHD,Home Care - Elderly LD - North,Private & Voluntary Home Care,Mrs B Kimber - Stepping Stones,753.88, 22-Nov-2012
1396,Revenue,CCHD,Home Care - Elderly - South,Other Small Contracts,Mrs B Kimber - Stepping Stones,4651.6, 22-Nov-2012
1397,Revenue,CCHD,Home Care - Elderly - North,Other Small Contracts,Mrs B Kimber - Stepping Stones,4014.01, 22-Nov-2012
1398,Revenue,CCHD,Day Care - South,Private & Voluntary Day Care,Mrs B Kimber - Stepping Stones,1006.51, 22-Nov-2012
1399,Revenue,CCHD,Day Care - North,Private & Voluntary Day Care,Mrs B Kimber - Stepping Stones,240.6, 22-Nov-2012
1400,Revenue,CCHD,Under 65s -MH  Home Care Purch,Other Small Contracts,Mrs B Kimber - Stepping Stones,200.5, 22-Nov-2012
1401,Revenue,CCHD,Home care - Elderly MH - North,Other Small Contracts,Mrs B Kimber - Stepping Stones,260.65, 22-Nov-2012
1402,Revenue,CCHD,Elderly MH Day Care North,Private & Voluntary Day Care,Mrs B Kimber - Stepping Stones,96.24, 22-Nov-2012
1403,Revenue,CCHD,Home care - Elderly MH - South,Other Small Contracts,Mrs B Kimber - Stepping Stones,232.58, 22-Nov-2012
1404,Revenue,CCHD,Supported Living - KD,Private & Voluntary Home Care,Mrs B Kimber - Stepping Stones,769.92, 22-Nov-2012
1405,Revenue,CCHD,Home Care - LD Under 65 - South,Private & Voluntary Home Care,Mrs B Kimber - Stepping Stones,112.28, 22-Nov-2012
1406,Revenue,CCHD,Home Care - LD Under 65 - North,Private & Voluntary Home Care,Mrs B Kimber - Stepping Stones,48.12, 22-Nov-2012
1407,Revenue,CCHD,PWLD Home Care - Under 65 - KH,Private & Voluntary Home Care,Mrs B Kimber - Stepping Stones,92.23, 22-Nov-2012
1408,Revenue,CCHD,Home Care - Elderly LD - North,Private & Voluntary Home Care,Mrs B Kimber - Stepping Stones,958.39, 22-Nov-2012
1409,Revenue,CCHD,Home Care - Elderly - South,Other Small Contracts,Mrs B Kimber - Stepping Stones,4643.58, 23-Nov-2012
1410,Revenue,CCHD,Home Care - Elderly - North,Other Small Contracts,Mrs B Kimber - Stepping Stones,4603.48, 23-Nov-2012
1411,Revenue,CCHD,Day Care - South,Private & Voluntary Day Care,Mrs B Kimber - Stepping Stones,970.42, 23-Nov-2012
1412,Revenue,CCHD,Day Care - North,Private & Voluntary Day Care,Mrs B Kimber - Stepping Stones,236.59, 23-Nov-2012
1413,Revenue,CCHD,Under 65s -MH  Home Care Purch,Other Small Contracts,Mrs B Kimber - Stepping Stones,228.57, 23-Nov-2012
1414,Revenue,CCHD,Home care - Elderly MH - North,Other Small Contracts,Mrs B Kimber - Stepping Stones,248.62, 23-Nov-2012
1415,Revenue,CCHD,Elderly MH Day Care North,Private & Voluntary Day Care,Mrs B Kimber - Stepping Stones,96.24, 23-Nov-2012
1416,Revenue,CCHD,Home care - Elderly MH - South,Other Small Contracts,Mrs B Kimber - Stepping Stones,208.52, 23-Nov-2012
1417,Revenue,CCHD,Supported Living - KD,Private & Voluntary Home Care,Mrs B Kimber - Stepping Stones,757.89, 23-Nov-2012
1418,Revenue,CCHD,Home Care - LD Under 65 - South,Private & Voluntary Home Care,Mrs B Kimber - Stepping Stones,112.28, 23-Nov-2012
1419,Revenue,CCHD,Home Care - LD Under 65 - North,Private & Voluntary Home Care,Mrs B Kimber - Stepping Stones,48.12, 23-Nov-2012
1420,Revenue,CCHD,PWLD Home Care - Under 65 - KH,Private & Voluntary Home Care,Mrs B Kimber - Stepping Stones,88.22, 23-Nov-2012
1421,Revenue,CCHD,Home Care - Elderly LD - North,Private & Voluntary Home Care,Mrs B Kimber - Stepping Stones,970.42, 23-Nov-2012
1422,Revenue,CCHD,Social Lettings Agency,Other Supplies & Services,Individual,632.81, 12-Nov-2012
1423,Revenue,CCHD,Social Lettings Agency,Other Supplies & Services,Individual,565, 23-Nov-2012
1424,Revenue,CCHD,Social Lettings Agency,Other Supplies & Services,Individual,565, 01-Nov-2012
1425,Revenue,CCHD,Social Lettings Agency,Other Supplies & Services,Individual,565, 30-Nov-2012
1426,Revenue,CCHD,Social Lettings Agency,Other Supplies & Services,Individual,565, 12-Nov-2012
1427,Revenue,CCHD,Social Lettings Agency,Other Supplies & Services,Individual,655.41, 15-Nov-2012
1428,Revenue,CCHD,Purchase of Non-Res Care - KD,Private & Voluntary Day Care,Mrs W Thompson,1484.4, 30-Nov-2012
1429,Revenue,CCHD,Purchase of Non-Res Care - KD,Private & Voluntary Day Care,Mrs W Thompson,563.28, 30-Nov-2012
1430,Revenue,CCHD,Social Lettings Agency,Other Supplies & Services,Individual,858.8, 09-Nov-2012
1431,Revenue,CCHD,Home Care - General,Other Supplies & Services,Muzzell Healthcare,798.85, 08-Nov-2012
1432,Revenue,CCHD,Younger MH non-res purchasing,Private & Voluntary Day Care,NAS Services Limited,626.8, 27-Nov-2012
1433,Revenue,CCHD,Younger MH non-res purchasing,Private & Voluntary Day Care,NAS Services Limited,733.06, 27-Nov-2012
1434,Revenue,CCHD,Younger MH non-res purchasing,Private & Voluntary Day Care,NAS Services Limited,549.15, 23-Nov-2012
1435,Revenue,CCHD,Younger MH non-res purchasing,Private & Voluntary Day Care,NAS Services Limited,639.85, 26-Nov-2012
1436,Revenue,CCHD,Younger MH non-res purchasing,Private & Voluntary Day Care,NAS Services Limited,573, 26-Nov-2012
1437,Revenue,CCHD,Bed Purchasing - Under 65s PWLD - South,Residential Homes,National Star College,4547.72, 27-Nov-2012
1438,Revenue,CCHD,Community Support ACM - South,Preventative Assistance,National Star College FDY Limited,5539.31, 30-Nov-2012
1439,Revenue,CCHD,Home Care - Elderly - South,Other Small Contracts,Network Health & Social Care,1034.38, 06-Nov-2012
1440,Revenue,CCHD,Home Care - Elderly - North,Other Small Contracts,Network Health & Social Care,3962.82, 06-Nov-2012
1441,Revenue,CCHD,Day Care - North,Private & Voluntary Day Care,Network Health & Social Care,26.95, 06-Nov-2012
1442,Revenue,CCHD,Under 65s -MH  Home Care Purch,Other Small Contracts,Network Health & Social Care,177.1, 06-Nov-2012
1443,Revenue,CCHD,Home Care - Elderly - South,Other Small Contracts,Network Health & Social Care,1080.58, 06-Nov-2012
1444,Revenue,CCHD,Home Care - Elderly - North,Other Small Contracts,Network Health & Social Care,3086.7, 06-Nov-2012
1445,Revenue,CCHD,Day Care - North,Private & Voluntary Day Care,Network Health & Social Care,30.8, 06-Nov-2012
1446,Revenue,CCHD,Under 65s -MH  Home Care Purch,Other Small Contracts,Network Health & Social Care,177.1, 06-Nov-2012
1447,Revenue,CCHD,Home Care - Elderly - South,Other Small Contracts,Network Health & Social Care,1076.74, 06-Nov-2012
1448,Revenue,CCHD,Home Care - Elderly - North,Other Small Contracts,Network Health & Social Care,3945.7, 06-Nov-2012
1449,Revenue,CCHD,Day Care - North,Private & Voluntary Day Care,Network Health & Social Care,30.8, 06-Nov-2012
1450,Revenue,CCHD,Under 65s -MH  Home Care Purch,Other Small Contracts,Network Health & Social Care,177.1, 06-Nov-2012
1451,Revenue,CCHD,Home Care - Elderly - South,Other Small Contracts,Network Health & Social Care,845.73, 06-Nov-2012
1452,Revenue,CCHD,Home Care - Elderly - North,Other Small Contracts,Network Health & Social Care,4016.81, 06-Nov-2012
1453,Revenue,CCHD,Day Care - North,Private & Voluntary Day Care,Network Health & Social Care,30.8, 06-Nov-2012
1454,Revenue,CCHD,Under 65s -MH  Home Care Purch,Other Small Contracts,Network Health & Social Care,173.25, 06-Nov-2012
1455,Revenue,CCHD,Home Care - Elderly - South,Other Small Contracts,Network Health & Social Care,918.85, 06-Nov-2012
1456,Revenue,CCHD,Home Care - Elderly - North,Other Small Contracts,Network Health & Social Care,4986.7, 06-Nov-2012
1457,Revenue,CCHD,Day Care - North,Private & Voluntary Day Care,Network Health & Social Care,23.1, 06-Nov-2012
1458,Revenue,CCHD,Under 65s -MH  Home Care Purch,Other Small Contracts,Network Health & Social Care,177.1, 06-Nov-2012
1459,Revenue,CCHD,Home Care - Elderly - South,Other Small Contracts,Network Health & Social Care,977.2, 09-Nov-2012
1460,Revenue,CCHD,Home Care - Elderly - North,Other Small Contracts,Network Health & Social Care,5472.67, 09-Nov-2012
1461,Revenue,CCHD,Day Care - North,Private & Voluntary Day Care,Network Health & Social Care,30.8, 09-Nov-2012
1462,Revenue,CCHD,Under 65s -MH  Home Care Purch,Other Small Contracts,Network Health & Social Care,169.4, 09-Nov-2012
1463,Revenue,CCHD,Home Care - Elderly - South,Other Small Contracts,Network Health & Social Care,916.3, 09-Nov-2012
1464,Revenue,CCHD,Home Care - Elderly - North,Other Small Contracts,Network Health & Social Care,5698.35, 09-Nov-2012
1465,Revenue,CCHD,Day Care - North,Private & Voluntary Day Care,Network Health & Social Care,23.1, 09-Nov-2012
1466,Revenue,CCHD,Under 65s -MH  Home Care Purch,Other Small Contracts,Network Health & Social Care,165.55, 09-Nov-2012
1467,Revenue,CCHD,Home Care - Elderly - South,Other Small Contracts,Network Health & Social Care,1001, 09-Nov-2012
1468,Revenue,CCHD,Home Care - Elderly - North,Other Small Contracts,Network Health & Social Care,5726.7, 09-Nov-2012
1469,Revenue,CCHD,Day Care - North,Private & Voluntary Day Care,Network Health & Social Care,15.4, 09-Nov-2012
1470,Revenue,CCHD,Under 65s -MH  Home Care Purch,Other Small Contracts,Network Health & Social Care,173.25, 09-Nov-2012
1471,Revenue,CCHD,Home Care - Elderly - South,Other Small Contracts,Network Health & Social Care,1085.7, 09-Nov-2012
1472,Revenue,CCHD,Home Care - Elderly - North,Other Small Contracts,Network Health & Social Care,6111.71, 09-Nov-2012
1473,Revenue,CCHD,Day Care - North,Private & Voluntary Day Care,Network Health & Social Care,30.8, 09-Nov-2012
1474,Revenue,CCHD,Home Care - Elderly - South,Other Small Contracts,Network Health & Social Care,1101.1, 21-Nov-2012
1475,Revenue,CCHD,Home Care - Elderly - North,Other Small Contracts,Network Health & Social Care,6127.1, 21-Nov-2012
1476,Revenue,CCHD,Day Care - North,Private & Voluntary Day Care,Network Health & Social Care,30.8, 21-Nov-2012
1477,Revenue,CCHD,Social Lettings Agency,Other Supplies & Services,Individual,565, 05-Nov-2012
1478,Revenue,CCHD,Assessment Team,"Holidays, Outings & Visits",Neville Williams,1104, 21-Nov-2012
1479,Revenue,CCHD,Bed Purchasing - Under 65s PWLD - South,Residential Homes,Nightingale Nursing Home,3076.64, 27-Nov-2012
1480,Revenue,CCHD,Delayed Transfers of Care Gran,Other Supplies & Services,North Bristol NHS Trust,1300, 12-Nov-2012
1481,Revenue,CCHD,Information Systems - Software,Software Support & Maintenance,Northgate Information Solutions UK Limited,15000, 30-Nov-2012
1482,Revenue,CCHD,Bed Purchasing - Under 65s PWLD - South,Residential Homes,Norwood   Broadway House,4853.64, 27-Nov-2012
1483,Revenue,CCHD,Bed Purchasing - Elderly MH - South,Residential Homes,Notaro Homes Ltd  Queensmead Court,1839.64, 27-Nov-2012
1484,Revenue,CCHD,Southmead Hospital Purchasing,Residential Homes,Notaro Homes Ltd  Queensmead Court,1362.84, 27-Nov-2012
1485,Revenue,CCHD,Home Care - Elderly - South,Other Small Contracts,Nursing Solutions Limited,953.42, 05-Nov-2012
1486,Revenue,CCHD,Home Care - Elderly - South,Other Small Contracts,Nursing Solutions Limited,887.8, 05-Nov-2012
1487,Revenue,CCHD,Home Care - Elderly - South,Other Small Contracts,Nursing Solutions Limited,976.58, 09-Nov-2012
1488,Revenue,CCHD,Home Care - Elderly - South,Other Small Contracts,Nursing Solutions Limited,1169.58, 15-Nov-2012
1489,Revenue,CCHD,Home Care - Elderly - South,Other Small Contracts,Nursing Solutions Limited,1127.12, 21-Nov-2012
1490,Revenue,CCHD,Bed Purchasing - Elderly - South,Residential Homes,Oaktree Lodge,1267.76, 27-Nov-2012
1491,Revenue,CCHD,Home Care - Elderly - South,Other Small Contracts,On the Up,374.74, 05-Nov-2012
1492,Revenue,CCHD,Day Care - South,Private & Voluntary Day Care,On the Up,518.6, 05-Nov-2012
1493,Revenue,CCHD,Day Care - North,Private & Voluntary Day Care,On the Up,506.16, 05-Nov-2012
1494,Revenue,CCHD,Younger MH non-res purchasing,Private & Voluntary Day Care,On the Up,250.8, 05-Nov-2012
1495,Revenue,CCHD,Elderly MH Day Care North,Private & Voluntary Day Care,On the Up,87.86, 05-Nov-2012
1496,Revenue,CCHD,Home Care - Elderly - South,Other Small Contracts,On the Up,370.92, 20-Nov-2012
1497,Revenue,CCHD,Day Care - South,Private & Voluntary Day Care,On the Up,472.26, 20-Nov-2012
1498,Revenue,CCHD,Day Care - North,Private & Voluntary Day Care,On the Up,519.7, 20-Nov-2012
1499,Revenue,CCHD,Younger MH non-res purchasing,Private & Voluntary Day Care,On the Up,332.88, 20-Nov-2012
1500,Revenue,CCHD,Elderly MH Day Care North,Private & Voluntary Day Care,On the Up,57.3, 20-Nov-2012
1501,Revenue,CCHD,Home Care - Elderly - South,Other Small Contracts,On the Up,382.38, 14-Nov-2012
1502,Revenue,CCHD,Day Care - South,Private & Voluntary Day Care,On the Up,518.6, 14-Nov-2012
1503,Revenue,CCHD,Day Care - North,Private & Voluntary Day Care,On the Up,419.52, 14-Nov-2012
1504,Revenue,CCHD,Younger MH non-res purchasing,Private & Voluntary Day Care,On the Up,319.2, 14-Nov-2012
1505,Revenue,CCHD,Turnberries,"Provisions (Food, etc)",Origin Cafe,656.2, 30-Nov-2012
1506,Revenue,CCHD,Bed Purchasing - Elderly - North,Residential Homes,Osbourne Court,956.4, 27-Nov-2012
1507,Revenue,CCHD,Bed Purchasing - Elderly S117- North,Residential Homes,Osbourne Court,1879.04, 27-Nov-2012
1508,Revenue,CCHD,Bed Purchasing - Elderly - North,Residential Homes,Osbourne Court,30160.27, 27-Nov-2012
1509,Revenue,CCHD,Bed Purchasing - Elderly S117- North,Residential Homes,Osbourne Court,3407.8, 27-Nov-2012
1510,Revenue,CCHD,Bed Purchasing - Elderly - North,Residential Homes,Osbourne Court,2395.2, 27-Nov-2012
1511,Revenue,CCHD,Bed Purchasing - Elderly S117- North,Residential Homes,Osbourne Court,1716, 27-Nov-2012
1512,Revenue,CCHD,Bed Purchasing - Elderly S117- North,Residential Homes,Osbourne Court,1880, 27-Nov-2012
1513,Revenue,CCHD,Southmead Hospital Purchasing,Residential Homes,Osbourne Court,1403.2, 27-Nov-2012
1514,Revenue,CCHD,Frenchay Hospital Purchasing,Residential Homes,Osbourne Court,1247.36, 27-Nov-2012
1515,Revenue,CCHD,Bed Purchasing - Elderly MH - South,Residential Homes,Park Farm House,1330.8, 27-Nov-2012
1516,Revenue,CCHD,Bed Purchasing - Elderly - South,Residential Homes,Park Farm House,6888.02, 27-Nov-2012
1517,Revenue,CCHD,Bed Purchasing - Elderly - South,Residential Homes,Park Farm House,1769.4, 27-Nov-2012
1518,Revenue,CCHD,Bed Purchasing - Elderly - South,Residential Homes,Park Farm House,1880, 27-Nov-2012
1519,Revenue,CCHD,Bed Purchasing - Elderly MH - South,Residential Homes,Park Farm House,1582.64, 27-Nov-2012
1520,Revenue,CCHD,Bed Purchasing - Under 65s PWLD - South,Residential Homes,Park Hall,5500, 27-Nov-2012
1521,Revenue,CCHD,Bed purchasing - Under 65s PWLD - North,Residential Homes,Park Hall,5082.32, 27-Nov-2012
1522,Revenue,CCHD,Bed Purchasing - Under 65s PWLD - South,Residential Homes,Park Hall,4894.68, 27-Nov-2012
1523,Revenue,CCHD,Bed Purchasing - Under 65s PWLD - South,Residential Homes,Park Hall,2173.96, 27-Nov-2012
1524,Revenue,CCHD,Bed purchasing - Elderly PWLD - South,Residential Homes,Park Hall,2501.56, 27-Nov-2012
1525,Revenue,CCHD,Bed Purchasing - Under 65s PWLD - South,Residential Homes,Park Hall,3788.6, 27-Nov-2012
1526,Revenue,CCHD,Bed purchasing - Elderly PWLD - North,Residential Homes,Park Hall,4855.8, 27-Nov-2012
1527,Revenue,CCHD,Bed purchasing - S28A Under 65 - South,Residential Homes,Park Hall,4571.08, 27-Nov-2012
1528,Revenue,CCHD,Bed Purchasing - Under 65s PWLD - South,Residential Homes,Park Hall,4871.2, 27-Nov-2012
1529,Revenue,CCHD,Bed purchasing - Under 65s PWLD - North,Residential Homes,Park Hall,4274.52, 27-Nov-2012
1530,Revenue,CCHD,Bed Purchasing - S28A - Over 65- North,Residential Homes,Park Hall,5240.84, 27-Nov-2012
1531,Revenue,CCHD,Bed Purchasing - Under 65s PWLD - South,Residential Homes,Park Hall,10510.04, 27-Nov-2012
1532,Revenue,CCHD,Bed purchasing -S28A  Under 65 - North,Residential Homes,Park Hall,5789.4, 27-Nov-2012
1533,Revenue,CCHD,Bed purchasing - S28A Under 65 - South,Residential Homes,Park Hall,5529.44, 27-Nov-2012
1534,Revenue,CCHD,Bed Purchasing - Elderly - South,Residential Homes,Park Street Home,2042.6, 27-Nov-2012
1535,Revenue,CCHD,Bed Purchasing - Under 65s PWLD - South,Residential Homes,Penleigh House Care Home,4451.6, 27-Nov-2012
1536,Revenue,CCHD,Bed Purchasing - Under 65s PWLD - South,Residential Homes,Penleigh House Care Home,5175.52, 27-Nov-2012
1537,Revenue,CCHD,Bed purchasing - Elderly PWLD - South,Residential Homes,Penleigh House Care Home,4222.56, 27-Nov-2012
1538,Revenue,CCHD,Bed Purchasing - Under 65s PWLD - South,Residential Homes,Penleigh House Care Home,4599.76, 27-Nov-2012
1539,Revenue,CCHD,Bed purchasing - S28A Under 65 - South,Residential Homes,Penleigh House Care Home,5366.32, 27-Nov-2012
1540,Revenue,CCHD,Bed Purchasing - Under 65s PWLD - South,Residential Homes,Penleigh House Care Home,4847.56, 27-Nov-2012
1541,Revenue,CCHD,Southmead Hospital Purchasing,Residential Homes,Petersfield Nursing Home,874.8, 27-Nov-2012
1542,Revenue,CCHD,Bed Purchasing - Elderly - North,Residential Homes,Petersfield Nursing Home,1271.56, 27-Nov-2012
1543,Revenue,CCHD,Supporting People Programme,Grants to Voluntary Bodies,Places for People,1107, 30-Nov-2012
1544,Revenue,CCHD,Supporting People Programme,Grants to Voluntary Bodies,Places for People,686.26, 13-Nov-2012
1545,Revenue,CCHD,Home Care - Elderly - South,Other Small Contracts,Premier Homecare Limited,220.99, 08-Nov-2012
1546,Revenue,CCHD,Home Care - Elderly - North,Other Small Contracts,Premier Homecare Limited,3589.17, 08-Nov-2012
1547,Revenue,CCHD,Day Care - North,Private & Voluntary Day Care,Premier Homecare Limited,126.28, 08-Nov-2012
1548,Revenue,CCHD,Younger MH non-res purchasing,Private & Voluntary Day Care,Premier Homecare Limited,27.06, 08-Nov-2012
1549,Revenue,CCHD,Home care - Elderly MH - North,Other Small Contracts,Premier Homecare Limited,270.6, 08-Nov-2012
1550,Revenue,CCHD,Elderly MH Day Care North,Private & Voluntary Day Care,Premier Homecare Limited,207.46, 08-Nov-2012
1551,Revenue,CCHD,Home Care - Elderly - South,Other Small Contracts,Premier Homecare Limited,216.48, 15-Nov-2012
1552,Revenue,CCHD,Home Care - Elderly - North,Other Small Contracts,Premier Homecare Limited,3729.77, 15-Nov-2012
1553,Revenue,CCHD,Day Care - North,Private & Voluntary Day Care,Premier Homecare Limited,130.79, 15-Nov-2012
1554,Revenue,CCHD,Younger MH non-res purchasing,Private & Voluntary Day Care,Premier Homecare Limited,27.06, 15-Nov-2012
1555,Revenue,CCHD,Home care - Elderly MH - North,Other Small Contracts,Premier Homecare Limited,248.05, 15-Nov-2012
1556,Revenue,CCHD,Elderly MH Day Care North,Private & Voluntary Day Care,Premier Homecare Limited,211.97, 15-Nov-2012
1557,Revenue,CCHD,Home Care - Elderly - South,Other Small Contracts,Premier Homecare Limited,180.4, 23-Nov-2012
1558,Revenue,CCHD,Home Care - Elderly - North,Other Small Contracts,Premier Homecare Limited,4124, 23-Nov-2012
1559,Revenue,CCHD,Day Care - North,Private & Voluntary Day Care,Premier Homecare Limited,157.85, 23-Nov-2012
1560,Revenue,CCHD,Younger MH non-res purchasing,Private & Voluntary Day Care,Premier Homecare Limited,27.06, 23-Nov-2012
1561,Revenue,CCHD,Home care - Elderly MH - North,Other Small Contracts,Premier Homecare Limited,216.48, 23-Nov-2012
1562,Revenue,CCHD,Elderly MH Day Care North,Private & Voluntary Day Care,Premier Homecare Limited,207.46, 23-Nov-2012
1563,Revenue,CCHD,Home Care - Elderly - South,Other Small Contracts,Prestige Nursing,678.93, 02-Nov-2012
1564,Revenue,CCHD,Home Care - Elderly - North,Other Small Contracts,Prestige Nursing,960.75, 02-Nov-2012
1565,Revenue,CCHD,Day Care - South,Private & Voluntary Day Care,Prestige Nursing,324.52, 02-Nov-2012
1566,Revenue,CCHD,Day Care - North,Private & Voluntary Day Care,Prestige Nursing,836.92, 02-Nov-2012
1567,Revenue,CCHD,Home care - Elderly MH - North,Other Small Contracts,Prestige Nursing,354.41, 02-Nov-2012
1568,Revenue,CCHD,Elderly MH Day Care North,Private & Voluntary Day Care,Prestige Nursing,401.38, 02-Nov-2012
1569,Revenue,CCHD,Home Care - Elderly - South,Other Small Contracts,Prestige Nursing,700.28, 02-Nov-2012
1570,Revenue,CCHD,Home Care - Elderly - North,Other Small Contracts,Prestige Nursing,734.44, 02-Nov-2012
1571,Revenue,CCHD,Day Care - South,Private & Voluntary Day Care,Prestige Nursing,324.52, 02-Nov-2012
1572,Revenue,CCHD,Day Care - North,Private & Voluntary Day Care,Prestige Nursing,572.18, 02-Nov-2012
1573,Revenue,CCHD,Home care - Elderly MH - North,Other Small Contracts,Prestige Nursing,375.76, 02-Nov-2012
1574,Revenue,CCHD,Elderly MH Day Care North,Private & Voluntary Day Care,Prestige Nursing,358.68, 02-Nov-2012
1575,Revenue,CCHD,Home Care - Elderly - South,Other Small Contracts,Prestige Nursing,683.2, 02-Nov-2012
1576,Revenue,CCHD,Home Care - Elderly - North,Other Small Contracts,Prestige Nursing,952.21, 02-Nov-2012
1577,Revenue,CCHD,Day Care - South,Private & Voluntary Day Care,Prestige Nursing,324.52, 02-Nov-2012
1578,Revenue,CCHD,Day Care - North,Private & Voluntary Day Care,Prestige Nursing,789.95, 02-Nov-2012
1579,Revenue,CCHD,Home care - Elderly MH - North,Other Small Contracts,Prestige Nursing,384.3, 02-Nov-2012
1580,Revenue,CCHD,Elderly MH Day Care North,Private & Voluntary Day Care,Prestige Nursing,362.95, 02-Nov-2012
1581,Revenue,CCHD,Training - Adult Services,Training Expenses,Qualsafe.com,600, 30-Nov-2012
1582,Revenue,CCHD,Bed purchasing - Elderly MH - North,Nursing Homes,Ravenswood,1265.84, 27-Nov-2012
1583,Revenue,CCHD,Bed Purchasing - Elderly - South,Residential Homes,Ravenswood,3781.68, 27-Nov-2012
1584,Revenue,CCHD,Bed Purchasing - Elderly - North,Nursing Homes,Ravenswood,1534.96, 27-Nov-2012
1585,Revenue,CCHD,Bed Purchasing - Elderly S117- North,Nursing Homes,Redholme Memory Care Limited,1944.12, 27-Nov-2012
1586,Revenue,CCHD,Supporting People Programme,Grants to Voluntary Bodies,Redland Housing Association Ltd,509.21, 27-Nov-2012
1587,Revenue,CCHD,Bed Purchasing - Elderly - South,Nursing Homes,Regent House,1637.96, 27-Nov-2012
1588,Revenue,CCHD,Bed Purchasing - Elderly - South,Nursing Homes,Regent House,1686.16, 27-Nov-2012
1589,Revenue,CCHD,Bed Purchasing - Elderly - South,Nursing Homes,Regent House,2029.8, 27-Nov-2012
1590,Revenue,CCHD,Bed Purchasing - Elderly - South,Nursing Homes,Regent House,1961.92, 27-Nov-2012
1591,Revenue,CCHD,Bed Purchasing - Elderly MH - South,Nursing Homes,Regent House,753.16, 27-Nov-2012
1592,Revenue,CCHD,Bed Purchasing - Elderly - South,Nursing Homes,Regent House,1796.8, 27-Nov-2012
1593,Revenue,CCHD,Bed Purchasing - Elderly - North,Nursing Homes,Regent House,1311.2, 27-Nov-2012
1594,Revenue,CCHD,Bed Purchasing - Elderly - South,Nursing Homes,Regent House,1637.96, 27-Nov-2012
1595,Revenue,CCHD,Bed Purchasing - Elderly - South,Nursing Homes,Regent House,632.92, 27-Nov-2012
1596,Revenue,CCHD,Southmead Hospital Purchasing,Nursing Homes,Regent House,1379.88, 27-Nov-2012
1597,Revenue,CCHD,South Glos Users in South Glos Homes,Nursing Homes,Regent House,1288.87, 27-Nov-2012
1598,Revenue,CCHD,Bed Purchasing - Elderly - South,Nursing Homes,Regent House,1423.28, 27-Nov-2012
1599,Revenue,CCHD,Bed Purchasing - Elderly - South,Nursing Homes,Regent House,1635.28, 27-Nov-2012
1600,Revenue,CCHD,Bed Purchasing - Elderly MH - South,Nursing Homes,Regent House,1195.08, 27-Nov-2012
1601,Revenue,CCHD,Bed purchasing - Elderly MH - North,Nursing Homes,Regent House,1276.8, 27-Nov-2012
1602,Revenue,CCHD,Bed Purchasing - Elderly - South,Nursing Homes,Regent House,2581.2, 27-Nov-2012
1603,Revenue,CCHD,Bed Purchasing - Elderly - South,Nursing Homes,Regent House,1533, 27-Nov-2012
1604,Revenue,CCHD,Bed Purchasing - Under 65s PWLD - South,Residential Homes,Ridgeway House,3418.56, 27-Nov-2012
1605,Revenue,CCHD,Bed purchasing - Elderly PWLD - South,Residential Homes,Rockleaze,2159.92, 27-Nov-2012
1606,Revenue,CCHD,Bed purchasing - Elderly PWLD - South,Residential Homes,Rockleaze,1399.76, 27-Nov-2012
1607,Revenue,CCHD,Bed Purchasing - LD S28A- Over 65- South,Residential Homes,Rockleaze,2039.28, 27-Nov-2012
1608,Revenue,CCHD,Bed Purchasing - Under 65s PWLD - South,Residential Homes,Rockleaze,2364.24, 27-Nov-2012
1609,Revenue,CCHD,Bed purchasing - Elderly PWLD - South,Residential Homes,Rockleaze,1399.76, 27-Nov-2012
1610,Revenue,CCHD,Bed Purchasing - Under 65s PWLD - South,Residential Homes,Rosewood Lodge & Brook House,4460.6, 27-Nov-2012
1611,Revenue,CCHD,Bed Purchasing - Elderly MH - South,Residential Homes,Ross Healthcare,1280.12, 27-Nov-2012
1612,Revenue,CCHD,Frenchay Hospital Purchasing,Residential Homes,Roundham Court,1239.2, 27-Nov-2012
1613,Revenue,CCHD,Swift Dump Code,Residential Homes,Saffron House,2508.76, 01-Nov-2012
1614,Revenue,CCHD,Bed Purchasing - Under 65s PWLD - South,Residential Homes,Salters Hill Barn,1995.2, 27-Nov-2012
1615,Revenue,CCHD,Southmead Hospital Purchasing,Residential Homes,Sanctuary Care Limited,3652.4, 27-Nov-2012
1616,Revenue,CCHD,Learning Difficulties PSL,Rent,Individual,1400, 01-Nov-2012
1617,Revenue,CCHD,Learning Difficulties PSL,Rent,Individual,1400, 30-Nov-2012
1618,Revenue,CCHD,Rent in Advance,Other Supplies & Services,Sarah Udo-Affia,725.01, 21-Nov-2012
1619,Revenue,CCHD,Woodleaze,"Provisions (Food, etc)",School Milk Services Limited,877.04, 30-Nov-2012
1620,Revenue,CCHD,Day Care - North,Private & Voluntary Day Care,SeeAbility,1924.22, 30-Nov-2012
1621,Revenue,CCHD,Supported Living - KD,Private & Voluntary Home Care,SeeAbility,1329.72, 30-Nov-2012
1622,Revenue,CCHD,Supported Living - KD,Private & Voluntary Home Care,SeeAbility,6628.38, 30-Nov-2012
1623,Revenue,CCHD,Southmead Hospital Purchasing,Nursing Homes,Sefton Hall Res. & Nursing Home,1944, 27-Nov-2012
1624,Revenue,CCHD,Supported Living - PS,Private & Voluntary Home Care,Selborne Care Ltd,5080.44, 05-Nov-2012
1625,Revenue,CCHD,Supported Living - PS,Private & Voluntary Home Care,Selborne Care Ltd,5080.44, 05-Nov-2012
1626,Revenue,CCHD,Supported Living - PS,Private & Voluntary Home Care,Selborne Care Ltd,1734.8, 05-Nov-2012
1627,Revenue,CCHD,Supported Living - PS,Private & Voluntary Home Care,Selborne Care Ltd,2653.64, 07-Nov-2012
1628,Revenue,CCHD,Supported Living - PS,Private & Voluntary Home Care,Selborne Care Ltd,1020.16, 05-Nov-2012
1629,Revenue,CCHD,Supported Living - PS,Private & Voluntary Home Care,Selborne Care Ltd,4981, 05-Nov-2012
1630,Revenue,CCHD,Supported Living - PS,Private & Voluntary Home Care,Selborne Care Ltd,5080.44, 05-Nov-2012
1631,Revenue,CCHD,Purchase of Non-Res Care - KD,Private & Voluntary Day Care,Selborne Care Ltd,892.64, 08-Nov-2012
1632,Revenue,CCHD,Supported Living - PS,Private & Voluntary Home Care,Selborne Care Ltd,1130.2, 12-Nov-2012
1633,Revenue,CCHD,Purchase of Non-Res Care - KD,Private & Voluntary Day Care,Selborne Care Ltd,799.28, 12-Nov-2012
1634,Revenue,CCHD,Supported Living - PS,Private & Voluntary Home Care,Selborne Care Ltd,4632.8, 07-Nov-2012
1635,Revenue,CCHD,Purchase of Non-Res Care - KD,Private & Voluntary Day Care,Selborne Care Ltd,740.96, 16-Nov-2012
1636,Revenue,CCHD,Supported Living - PS,Private & Voluntary Home Care,Selborne Care Ltd,517.52, 05-Nov-2012
1637,Revenue,CCHD,Supported Living - PS,Private & Voluntary Home Care,Selborne Care Ltd,1826.78, 05-Nov-2012
1638,Revenue,CCHD,Purchase of Non-Res Care - KD,Private & Voluntary Day Care,Selborne Care Ltd,845.28, 12-Nov-2012
1639,Revenue,CCHD,Supported Living - PS,Private & Voluntary Home Care,Selborne Care Ltd,1734.8, 27-Nov-2012
1640,Revenue,CCHD,Supported Living - PS,Private & Voluntary Home Care,Selborne Care Ltd,2726.36, 27-Nov-2012
1641,Revenue,CCHD,Supported Living - PS,Private & Voluntary Home Care,Selborne Care Ltd,1020.16, 27-Nov-2012
1642,Revenue,CCHD,Supported Living - PS,Private & Voluntary Home Care,Selborne Care Ltd,4974.4, 27-Nov-2012
1643,Revenue,CCHD,Supported Living - PS,Private & Voluntary Home Care,Selborne Care Ltd,4945.38, 27-Nov-2012
1644,Revenue,CCHD,Supported Living - PS,Private & Voluntary Home Care,Selborne Care Ltd,1142.2, 27-Nov-2012
1645,Revenue,CCHD,Supported Living - PS,Private & Voluntary Home Care,Selborne Care Ltd,510.08, 27-Nov-2012
1646,Revenue,CCHD,Supported Living - PS,Private & Voluntary Home Care,Selborne Care Ltd,4569.04, 27-Nov-2012
1647,Revenue,CCHD,Supported Living - PS,Private & Voluntary Home Care,Selborne Care Ltd,549.4, 27-Nov-2012
1648,Revenue,CCHD,Supported Living - PS,Private & Voluntary Home Care,Selborne Care Ltd,1841.78, 27-Nov-2012
1649,Revenue,CCHD,Southmead Hospital Purchasing,Nursing Homes,Shaw Healthcare Ltd,1467.2, 27-Nov-2012
1650,Revenue,CCHD,Bed Purchasing - Elderly S117- North,Nursing Homes,Shaw Healthcare Ltd,1944, 27-Nov-2012
1651,Revenue,CCHD,Bed purchasing - Elderly S117 - South,Nursing Homes,Shaw Healthcare Ltd,1496.4, 27-Nov-2012
1652,Revenue,CCHD,Bed purchasing - Elderly S117 - South,Nursing Homes,Shaw Healthcare Ltd,748.2, 27-Nov-2012
1653,Revenue,CCHD,Bed purchasing - Elderly MH - North,Nursing Homes,Shaw Healthcare Ltd,1226.36, 27-Nov-2012
1654,Revenue,CCHD,Bed purchasing - S28A Under 65 - South,Residential Homes,Shaw Healthcare Ltd,10408.68, 27-Nov-2012
1655,Revenue,CCHD,Bed purchasing - S28A Under 65 - South,Residential Homes,Shaw Healthcare Ltd,10410.04, 27-Nov-2012
1656,Revenue,CCHD,Bed purchasing - S28A Under 65 - South,Residential Homes,Shaw Healthcare Ltd,10243.28, 27-Nov-2012
1657,Revenue,CCHD,Bed Purchasing - Under 65s PWLD - South,Residential Homes,Shaw Healthcare Ltd,8892.88, 27-Nov-2012
1658,Revenue,CCHD,Bed purchasing - Elderly PWLD - South,Residential Homes,Shaw Healthcare Ltd,3875.12, 27-Nov-2012
1659,Revenue,CCHD,Bed Purchasing - S28A - Over 65- North,Residential Homes,Shaw Healthcare Ltd,4203.2, 27-Nov-2012
1660,Revenue,CCHD,Bed Purchasing - S28A - Over 65- North,Residential Homes,Shaw Healthcare Ltd,3602.74, 27-Nov-2012
1661,Revenue,CCHD,Bed purchasing -S28A  Under 65 - North,Residential Homes,Shaw Healthcare Ltd,4218.4, 27-Nov-2012
1662,Revenue,CCHD,Bed Purchasing - LD S28A- Over 65- South,Residential Homes,Shaw Healthcare Ltd,4722.48, 27-Nov-2012
1663,Revenue,CCHD,Bed Purchasing - LD S28A- Over 65- South,Residential Homes,Shaw Healthcare Ltd,4412.12, 27-Nov-2012
1664,Revenue,CCHD,Bed Purchasing - LD S28A- Over 65- South,Residential Homes,Shaw Healthcare Ltd,4404, 27-Nov-2012
1665,Revenue,CCHD,Bed Purchasing - LD S28A- Over 65- South,Residential Homes,Shaw Healthcare Ltd,4411.68, 27-Nov-2012
1666,Revenue,CCHD,Bed purchasing -S28A  Under 65 - North,Residential Homes,Shaw Healthcare Ltd,9087.56, 27-Nov-2012
1667,Revenue,CCHD,Bed Purchasing - S28A - Over 65- North,Residential Homes,Shaw Healthcare Ltd,8894.24, 27-Nov-2012
1668,Revenue,CCHD,Purchase of Non-Res Care - KD,Private & Voluntary Day Care,Shaw Healthcare Specialist Services Limited,800.38, 02-Nov-2012
1669,Revenue,CCHD,Day Care - North,Private & Voluntary Day Care,Silva Care Limited,722.09, 26-Nov-2012
1670,Revenue,CCHD,Day Care - North,Private & Voluntary Day Care,Silva Care Limited,673.36, 05-Nov-2012
1671,Revenue,CCHD,Supported Living - PS,Private & Voluntary Home Care,Silva Care Limited,4415.44, 20-Nov-2012
1672,Revenue,CCHD,Downend Day Centre,Refuse Collection Charges,SITA UK LTD,1656.64, 01-Nov-2012
1673,Revenue,CCHD,Purchase of Non-Res Care - KD,Private & Voluntary Day Care,Smile Independent Living Support Limited,1429.44, 30-Nov-2012
1674,Revenue,CCHD,Supported Living - KD,Private & Voluntary Home Care,Smile Independent Living Support Limited,3362.26, 30-Nov-2012
1675,Revenue,CCHD,Purchase of Non-Res Care - KD,Private & Voluntary Day Care,Smile Independent Living Support Limited,1279.12, 30-Nov-2012
1676,Revenue,CCHD,Purchase of Non-Res Care - KD,Private & Voluntary Day Care,Smile Independent Living Support Limited,751.29, 30-Nov-2012
1677,Revenue,CCHD,Purchase of Non-Res Care - KD,Private & Voluntary Day Care,Smile Independent Living Support Limited,1354.26, 30-Nov-2012
1678,Revenue,CCHD,Purchase of Non-Res Care - KD,Private & Voluntary Day Care,Smile Independent Living Support Limited,575.58, 30-Nov-2012
1679,Revenue,CCHD,Supported Living - KD,Private & Voluntary Home Care,Smile Independent Living Support Limited,3261.51, 30-Nov-2012
1680,Revenue,CCHD,Supported Living - KD,Private & Voluntary Home Care,Smile Independent Living Support Limited,2658.38, 30-Nov-2012
1681,Revenue,CCHD,Day Care - South,Private & Voluntary Day Care,Smile Independent Living Support Limited,918.98, 15-Nov-2012
1682,Revenue,CCHD,Purchase of Non-Res Care - PS,Private & Voluntary Day Care,Smile Independent Living Support Limited,705.2, 15-Nov-2012
1683,Revenue,CCHD,Planning and Partnerships procurement,Other Supplies & Services,South Gloucestershire Deaf Association,6000, 30-Nov-2012
1684,Revenue,CCHD,Bed Purchasing - Under 65s PWLD - South,Residential Homes,St Brigas,2036.8, 27-Nov-2012
1685,Revenue,CCHD,Bed Purchasing - Under 65s PWLD - South,Residential Homes,St Brigas,2944.64, 27-Nov-2012
1686,Revenue,CCHD,Bed Purchasing - Under 65s PWLD - South,Residential Homes,St Brigas,1985.08, 27-Nov-2012
1687,Revenue,CCHD,Frenchay Hospital Purchasing,Nursing Homes,St George Nursing Home,1295.2, 27-Nov-2012
1688,Revenue,CCHD,Southmead Hospital Purchasing,Nursing Homes,St George Nursing Home,806.8, 27-Nov-2012
1689,Revenue,CCHD,Bed Purchasing - Elderly - South,Nursing Homes,St George Nursing Home,1295.2, 27-Nov-2012
1690,Revenue,CCHD,Frenchay Hospital Purchasing,Nursing Homes,St George Nursing Home,1295.2, 27-Nov-2012
1691,Revenue,CCHD,Bed Purchasing - Elderly - North,Nursing Homes,St Monicas Trust,977.08, 27-Nov-2012
1692,Revenue,CCHD,Bed Purchasing - Elderly - North,Nursing Homes,St Monicas Trust,2768.4, 27-Nov-2012
1693,Revenue,CCHD,Training - Adult Services,Training Expenses,St Peter`s Hospice,607.83, 13-Nov-2012
1694,Revenue,CCHD,Bed Purchasing - Elderly - South,Nursing Homes,St Roses School,3944.36, 23-Nov-2012
1695,Revenue,CCHD,Bed Purchasing - Under 65s PWLD - South,Residential Homes,Stepping Stones Re-Sett. Unit,8597.28, 27-Nov-2012
1696,Revenue,CCHD,Supported Living - PS,Private & Voluntary Home Care,Supported Independence Ltd,1735.13, 05-Nov-2012
1697,Revenue,CCHD,Supported Living - KD,Private & Voluntary Home Care,Supported Independence Ltd,793.2, 22-Nov-2012
1698,Revenue,CCHD,Section 117 Placements MH Younger,Private & Voluntary Day Care,Supported Independence Ltd,3935.4, 23-Nov-2012
1699,Revenue,CCHD,Younger MH non-res purchasing,Private & Voluntary Day Care,Supported Independence Ltd,872.52, 22-Nov-2012
1700,Revenue,CCHD,Younger MH non-res purchasing,Private & Voluntary Day Care,Supported Independence Ltd,951.84, 23-Nov-2012
1701,Revenue,CCHD,Supported Living - PS,Private & Voluntary Home Care,Supported Independence Ltd,813.03, 07-Nov-2012
1702,Revenue,CCHD,Younger MH non-res purchasing,Private & Voluntary Day Care,Supported Independence Ltd,4948.05, 23-Nov-2012
1703,Revenue,CCHD,Younger MH non-res purchasing,Private & Voluntary Day Care,Supported Independence Ltd,713.88, 23-Nov-2012
1704,Revenue,CCHD,Younger MH non-res purchasing,Private & Voluntary Day Care,Supported Independence Ltd,644.48, 22-Nov-2012
1705,Revenue,CCHD,Supported Living - PS,Private & Voluntary Home Care,Supported Independence Ltd,753.54, 30-Nov-2012
1706,Revenue,CCHD,Supporting People Programme,Grants to Voluntary Bodies,Supported Independence Ltd,2958.54, 01-Nov-2012
1707,Revenue,CCHD,Supporting People Programme,Grants to Voluntary Bodies,Supported Independence Ltd,2958.54, 30-Nov-2012
1708,Revenue,CCHD,Supporting People Programme,Grants to Voluntary Bodies,Supported Independence Ltd,6117.49, 01-Nov-2012
1709,Revenue,CCHD,Supporting People Programme,Grants to Voluntary Bodies,Supported Independence Ltd,6117.49, 30-Nov-2012
1710,Revenue,CCHD,Supported Living - PS,Private & Voluntary Home Care,Supported Independent Living Schemes,642.96, 12-Nov-2012
1711,Revenue,CCHD,Supported Living - PS,Private & Voluntary Home Care,Supported Independent Living Schemes,642.96, 29-Nov-2012
1712,Revenue,CCHD,Supporting People Programme,Grants to Voluntary Bodies,Supported Independent Living Schemes,10545.66, 01-Nov-2012
1713,Revenue,CCHD,Supporting People Programme,Grants to Voluntary Bodies,Supported Independent Living Schemes,10545.66, 30-Nov-2012
1714,Revenue,CCHD,Supported Living - PS,Private & Voluntary Home Care,Supporting Options,800.42, 21-Nov-2012
1715,Revenue,CCHD,Telecare,Other Supplies & Services,Telecare Services Association,816, 28-Nov-2012
1716,Revenue,CCHD,Bed Purchasing - Under 65s PWLD - South,Residential Homes,The Ann Coleman Centre,6046.48, 27-Nov-2012
1717,Revenue,CCHD,Southmead Hospital Purchasing,Residential Homes,The Beeches,696.6, 27-Nov-2012
1718,Revenue,CCHD,Southmead Hospital Purchasing,Residential Homes,The Beeches,1227.4, 27-Nov-2012
1719,Revenue,CCHD,Frenchay Hospital Purchasing,Residential Homes,The Beeches,1239.2, 27-Nov-2012
1720,Revenue,CCHD,Frenchay Hospital Purchasing,Residential Homes,The Beeches,1141.52, 27-Nov-2012
1721,Revenue,CCHD,Bed Purchasing - Elderly - South,Residential Homes,The Beeches,1652.86, 27-Nov-2012
1722,Revenue,CCHD,Southmead Hospital Purchasing,Residential Homes,The Beeches,1239.2, 27-Nov-2012
1723,Revenue,CCHD,Day Care - South,Private & Voluntary Day Care,The Brandon Trust,622.2, 23-Nov-2012
1724,Revenue,CCHD,Younger MH non-res purchasing,Private & Voluntary Day Care,The Brandon Trust,885.78, 02-Nov-2012
1725,Revenue,CCHD,Purchase of Non-Res Care - PS,Private & Voluntary Day Care,The Brandon Trust,583.52, 20-Nov-2012
1726,Revenue,CCHD,Day Care - North,Private & Voluntary Day Care,The Brandon Trust,562.68, 22-Nov-2012
1727,Revenue,CCHD,Purchase of Non-Res Care - PS,Private & Voluntary Day Care,The Brandon Trust,759.24, 20-Nov-2012
1728,Revenue,CCHD,Purchase of Non-Res Care - PS,Private & Voluntary Day Care,The Brandon Trust,506.16, 22-Nov-2012
1729,Revenue,CCHD,Purchase of Non-Res Care - PS,Private & Voluntary Day Care,The Brandon Trust,672.09, 22-Nov-2012
1730,Revenue,CCHD,Younger MH non-res purchasing,Private & Voluntary Day Care,The Brandon Trust,506.16, 22-Nov-2012
1731,Revenue,CCHD,Purchase of Non-Res Care - PS,Private & Voluntary Day Care,The Brandon Trust,1012.32, 14-Nov-2012
1732,Revenue,CCHD,Purchase of Non-Res Care - KD,Private & Voluntary Day Care,The Brandon Trust,1012.32, 30-Nov-2012
1733,Revenue,CCHD,Younger MH non-res purchasing,Private & Voluntary Day Care,The Brandon Trust,1202.13, 22-Nov-2012
1734,Revenue,CCHD,Purchase of Non-Res Care - PS,Private & Voluntary Day Care,The Brandon Trust,506.16, 20-Nov-2012
1735,Revenue,CCHD,Purchase of Non-Res Care - PS,Private & Voluntary Day Care,The Brandon Trust,2500.8, 22-Nov-2012
1736,Revenue,CCHD,Purchase of Non-Res Care - PS,Private & Voluntary Day Care,The Brandon Trust,506.16, 20-Nov-2012
1737,Revenue,CCHD,Purchase of Non-Res Care - PS,Private & Voluntary Day Care,The Brandon Trust,506.16, 14-Nov-2012
1738,Revenue,CCHD,Purchase of Non-Res Care - PS,Private & Voluntary Day Care,The Brandon Trust,1012.32, 14-Nov-2012
1739,Revenue,CCHD,Day Care - North,Private & Voluntary Day Care,The Brandon Trust,506.16, 22-Nov-2012
1740,Revenue,CCHD,Purchase of Non-Res Care - KD,Private & Voluntary Day Care,The Brandon Trust,656.46, 30-Nov-2012
1741,Revenue,CCHD,Purchase of Non-Res Care - PS,Private & Voluntary Day Care,The Brandon Trust,506.16, 22-Nov-2012
1742,Revenue,CCHD,Day Care - South,Private & Voluntary Day Care,The Brandon Trust,521, 22-Nov-2012
1743,Revenue,CCHD,Purchase of Non-Res Care - KD,Private & Voluntary Day Care,The Brandon Trust,875.28, 30-Nov-2012
1744,Revenue,CCHD,Purchase of Non-Res Care - PS,Private & Voluntary Day Care,The Brandon Trust,1012.32, 13-Nov-2012
1745,Revenue,CCHD,Purchase of Non-Res Care - PS,Private & Voluntary Day Care,The Brandon Trust,1012.32, 20-Nov-2012
1746,Revenue,CCHD,Supported Living - PS,Private & Voluntary Home Care,The Brandon Trust,695.97, 20-Nov-2012
1747,Revenue,CCHD,Day Care - South,Private & Voluntary Day Care,The Brandon Trust,632.7, 22-Nov-2012
1748,Revenue,CCHD,Purchase of Non-Res Care - PS,Private & Voluntary Day Care,The Brandon Trust,569.43, 22-Nov-2012
1749,Revenue,CCHD,Purchase of Non-Res Care - PS,Private & Voluntary Day Care,The Brandon Trust,5751.84, 20-Nov-2012
1750,Revenue,CCHD,Purchase of Non-Res Care - KD,Private & Voluntary Day Care,The Brandon Trust,604.36, 30-Nov-2012
1751,Revenue,CCHD,Supported Living - PS,Private & Voluntary Home Care,The Brandon Trust,510.58, 22-Nov-2012
1752,Revenue,CCHD,Day Care - South,Private & Voluntary Day Care,The Brandon Trust,506.16, 22-Nov-2012
1753,Revenue,CCHD,Purchase of Non-Res Care - PS,Private & Voluntary Day Care,The Brandon Trust,3792.88, 20-Nov-2012
1754,Revenue,CCHD,Purchase of Non-Res Care - PS,Private & Voluntary Day Care,The Brandon Trust,1627.81, 22-Nov-2012
1755,Revenue,CCHD,Purchase of Non-Res Care - PS,Private & Voluntary Day Care,The Brandon Trust,1012.32, 20-Nov-2012
1756,Revenue,CCHD,Bed purchasing - S28A Under 65 - South,Residential Homes,The Brandon Trust,27747.04, 20-Nov-2012
1757,Revenue,CCHD,Bed Purchasing - Under 65s PWLD - South,Nursing Homes,The Brandon Trust  Olympus House,4930.56, 27-Nov-2012
1758,Revenue,CCHD,Bed Purchasing - S28A - Over 65- North,Residential Homes,The Brandon Trust  Olympus House,3587.32, 27-Nov-2012
1759,Revenue,CCHD,Bed Purchasing - Under 65s PWLD - South,Residential Homes,The Brandon Trust  Olympus House,11325.76, 27-Nov-2012
1760,Revenue,CCHD,Bed Purchasing - Under 65s PWLD - South,Residential Homes,The Brandon Trust  Olympus House,3939.8, 27-Nov-2012
1761,Revenue,CCHD,Bed purchasing - Under 65s PWLD - North,Residential Homes,The Brandon Trust  Olympus House,5182.6, 27-Nov-2012
1762,Revenue,CCHD,Bed purchasing - Elderly PWLD - South,Residential Homes,The Brandon Trust  Olympus House,3384.16, 27-Nov-2012
1763,Revenue,CCHD,Bed Purchasing - LD S28A- Over 65- South,Residential Homes,The Brandon Trust  Olympus House,3835.12, 27-Nov-2012
1764,Revenue,CCHD,Bed Purchasing - Under 65s PWLD - South,Nursing Homes,The Brandon Trust  Olympus House,4895.24, 27-Nov-2012
1765,Revenue,CCHD,Bed purchasing - S28A Under 65 - South,Nursing Homes,The Brandon Trust  Olympus House,5365.8, 27-Nov-2012
1766,Revenue,CCHD,South Glos Users in South Glos Homes,Nursing Homes,The Brandon Trust  Olympus House,760.9, 27-Nov-2012
1767,Revenue,CCHD,Bed purchasing - S28A Under 65 - South,Residential Homes,The Brandon Trust  Olympus House,22926.06, 27-Nov-2012
1768,Revenue,CCHD,Bed purchasing - S28A Under 65 - South,Residential Homes,The Brandon Trust  Olympus House,4790.52, 27-Nov-2012
1769,Revenue,CCHD,Bed purchasing - S28A Under 65 - South,Residential Homes,The Brandon Trust  Olympus House,26055.34, 27-Nov-2012
1770,Revenue,CCHD,Bed purchasing - S28A Under 65 - South,Nursing Homes,The Brandon Trust  Olympus House,5365.8, 27-Nov-2012
1771,Revenue,CCHD,Bed Purchasing - LD S28A- Over 65- South,Nursing Homes,The Brandon Trust  Olympus House,5200.4, 27-Nov-2012
1772,Revenue,CCHD,South Glos Users in South Glos Homes,Nursing Homes,The Brandon Trust  Olympus House,760.9, 27-Nov-2012
1773,Revenue,CCHD,Bed Purchasing - LD S28A- Over 65- South,Nursing Homes,The Brandon Trust  Olympus House,4787.16, 27-Nov-2012
1774,Revenue,CCHD,South Glos Users in South Glos Homes,Nursing Homes,The Brandon Trust  Olympus House,1071.47, 27-Nov-2012
1775,Revenue,CCHD,Bed Purchasing - S28A - Over 65- North,Nursing Homes,The Brandon Trust  Olympus House,5369.72, 27-Nov-2012
1776,Revenue,CCHD,Bed purchasing - S28A Under 65 - South,Residential Homes,The Brandon Trust  Olympus House,5078.48, 27-Nov-2012
1777,Revenue,CCHD,Bed purchasing - S28A Under 65 - South,Residential Homes,The Brandon Trust  Olympus House,5132.8, 27-Nov-2012
1778,Revenue,CCHD,Bed Purchasing - S28A - Over 65- North,Residential Homes,The Brandon Trust  Olympus House,7213.64, 27-Nov-2012
